Service Area,Service Area Categorisation,Service Division Categorisation,Responsible Unit,Expenses Types,Detailed Expenses Type,Expense Code,Narrative,Invoice Date,Payment Date,Amount,Capital/Revenue,Supplier Name
Neighbourhood Services,Waste and Street Services,Communities & Place,Fitting Shop Grounds,Supplies & Services,"Equipment, Furniture and Materials",Materials & Consumables.,,13/09/2023,22/09/2023,27.42,,Mon & Border Motor Factors Ltd
Neighbourhood Services,Waste and Street Services,Communities & Place,Fitting Shop Grounds,Supplies & Services,"Equipment, Furniture and Materials",Materials & Consumables.,,12/09/2023,22/09/2023,196.8,,David Evans Agricultural Ltd
Neighbourhood Services,Waste and Street Services,Communities & Place,Fitting Shop Grounds,Supplies & Services,"Equipment, Furniture and Materials",Materials & Consumables.,,13/09/2023,22/09/2023,223.9,,Trailparts
Neighbourhood Services,Highways,Communities & Place,Internal others,Supplies & Services,"Equipment, Furniture and Materials",Materials & Consumables.,,01/08/2023,04/09/2023,7635.5,,Civils Store Ltd
Adult Services,Community Care Team,Social Care and Health,Chepstow Adult Team,Third Party Payments,Third Party,Residential.,,23/08/2023,07/09/2023,3220,,Gibraltar Care Village Limited t/a PSP Healthcare Limited
Adult Services,Community Care Team,Social Care and Health,Monmouth Adult Team,Third Party Payments,Third Party,FNC Social Care Nursing Tasks,,23/08/2023,07/09/2023,31.44,,Gibraltar Care Village Limited t/a PSP Healthcare Limited
Adult Services,Community Care Team,Social Care and Health,Monmouth Adult Team,Third Party Payments,Third Party,FNC Social Care Nursing Tasks,,23/08/2023,07/09/2023,12.35,,Gibraltar Care Village Limited t/a PSP Healthcare Limited
Adult Services,Community Care Team,Social Care and Health,Monmouth Adult Team,Third Party Payments,Third Party,FNC Social Care Nursing Tasks,,23/08/2023,07/09/2023,31.44,,Gibraltar Care Village Limited t/a PSP Healthcare Limited
Adult Services,Community Care Team,Social Care and Health,Monmouth Adult Team,Third Party Payments,Third Party,Residential.,,23/08/2023,07/09/2023,3584,,Gibraltar Care Village Limited t/a PSP Healthcare Limited
Adult Services,Community Care Team,Social Care and Health,Monmouth Adult Team,Third Party Payments,Third Party,Residential.,,23/08/2023,07/09/2023,3220,,Gibraltar Care Village Limited t/a PSP Healthcare Limited
Adult Services,Community Care Team,Social Care and Health,Monmouth Adult Team,Third Party Payments,Third Party,Residential.,,23/08/2023,07/09/2023,3584,,Gibraltar Care Village Limited t/a PSP Healthcare Limited
Adult Services,Community Care Team,Social Care and Health,Monmouth Adult Team,Third Party Payments,Third Party,Residential.,,23/08/2023,07/09/2023,3220,,Gibraltar Care Village Limited t/a PSP Healthcare Limited
Neighbourhood Services,Waste and Street Services,Communities & Place,Fitting Shop Grounds,Supplies & Services,"Equipment, Furniture and Materials",Materials & Consumables.,,03/07/2023,26/09/2023,560.6,,Capital Windscreens & Body Glass Ltd
Adult Services,Community Care Team,Social Care and Health,Abergavenny Adult Team,Third Party Payments,Third Party,FNC Social Care Nursing Tasks,,23/08/2023,07/09/2023,31.44,,Gibraltar Care Village Limited t/a PSP Healthcare Limited
Adult Services,Community Care Team,Social Care and Health,Abergavenny Adult Team,Third Party Payments,Third Party,FNC Social Care Nursing Tasks,,23/08/2023,07/09/2023,5.61,,Gibraltar Care Village Limited t/a PSP Healthcare Limited
Adult Services,Community Care Team,Social Care and Health,Mental Health Care Team,Third Party Payments,Third Party,Residential.,,23/08/2023,07/09/2023,3584,,Gibraltar Care Village Limited t/a PSP Healthcare Limited
Adult Services,Community Care Team,Social Care and Health,Abergavenny Adult Team,Third Party Payments,Third Party,Nursing.,,23/08/2023,07/09/2023,3388,,Gibraltar Care Village Limited t/a PSP Healthcare Limited
Adult Services,Community Care Team,Social Care and Health,Abergavenny Adult Team,Third Party Payments,Third Party,Nursing.,,23/08/2023,07/09/2023,605,,Gibraltar Care Village Limited t/a PSP Healthcare Limited
Adult Services,Community Care Team,Social Care and Health,Monmouth Adult Team,Third Party Payments,Third Party,Residential.,,18/08/2023,07/09/2023,3220,,Parade Residential Home
Adult Services,Community Care Team,Social Care and Health,Monmouth Adult Team,Third Party Payments,Third Party,Residential.,,18/08/2023,07/09/2023,3220,,Parade Residential Home
Standards,Additional Learning Needs,Children & Young People,Additional Learning Needs Equipment Budget,Supplies & Services,"Equipment, Furniture and Materials",Materials & Consumables.,,25/08/2023,25/09/2023,45.48,,TTS Group Ltd
Neighbourhood Services,Waste and Street Services,Communities & Place,Fitting Shop Grounds,Supplies & Services,"Equipment, Furniture and Materials",Materials & Consumables.,,31/08/2023,21/09/2023,29.48,,Cambrian Group UK
Neighbourhood Services,Waste and Street Services,Communities & Place,Refuse & Cleansing Operations,Supplies & Services,"Equipment, Furniture and Materials",Materials & Consumables.,,18/08/2023,06/09/2023,612.3,,Surrey Loams Ltd
Neighbourhood Services,Waste and Street Services,Communities & Place,Refuse & Cleansing Operations,Supplies & Services,"Equipment, Furniture and Materials",Materials & Consumables.,,18/08/2023,06/09/2023,644.04,,Surrey Loams Ltd
Neighbourhood Services,Highways,Communities & Place,Potholing,Supplies & Services,"Equipment, Furniture and Materials",Materials & Consumables.,,07/08/2023,06/09/2023,760,,Dragon Asphalt Ltd
Neighbourhood Services,Highways,Communities & Place,Potholing,Supplies & Services,"Equipment, Furniture and Materials",Materials & Consumables.,,05/08/2023,06/09/2023,760,,Dragon Asphalt Ltd
Standards,Additional Learning Needs,Children & Young People,Additional Learning Needs Equipment Budget,Supplies & Services,"Equipment, Furniture and Materials",Materials & Consumables.,,01/09/2023,08/09/2023,131.3,,ESPO
Neighbourhood Services,Waste and Street Services,Communities & Place,Fitting Shop Grounds,Supplies & Services,"Equipment, Furniture and Materials",Materials & Consumables.,,04/09/2023,08/09/2023,542.45,,REDACTED PERSONAL DATA
Neighbourhood Services,Waste and Street Services,Communities & Place,Refuse & Cleansing Operations,Supplies & Services,"Equipment, Furniture and Materials",Materials & Consumables.,,06/09/2023,08/09/2023,675,,HM Prison & Probation Service
Schools Total,School Group 2 � Pupil Capacity 144-314,MCC Schools,Thornwell Primary School,Supplies & Services,"Equipment, Furniture and Materials",Display Materials,,27/06/2023,12/09/2023,15,,Edgy Productions
Adult Services,Community Care Team,Social Care and Health,Chepstow Adult Team,Third Party Payments,Third Party,Domestic Care,,03/09/2023,12/09/2023,23376.64,,Abicare Services Ltd
Schools Total,School Group 7 � Pupil Capacity 501-1800,MCC Schools,Chepstow School,Supplies & Services,"Equipment, Furniture and Materials",Provisions.,,12/09/2023,21/09/2023,175.9,,Hope Education Ltd
"Commercial, Corporate & landlord Services",Property Services & Facilities Management,Resources,Gwent Police Collaboration,Premises,"Repairs, Alterations & Maintenance of Buildings",Building Improvements / Maintenance,,24/08/2023,05/09/2023,134,,Power Electrics (Bristol) Ltd
"Commercial, Corporate & landlord Services",Property Services & Facilities Management,Resources,Gwent Police Collaboration,Premises,"Repairs, Alterations & Maintenance of Buildings",Building Improvements / Maintenance,,07/09/2023,21/09/2023,23,,A.J Quinn Building Contractors Ltd
"Commercial, Corporate & landlord Services",Property Services & Facilities Management,Resources,Gwent Police Collaboration,Premises,"Repairs, Alterations & Maintenance of Buildings",Building Improvements / Maintenance,,07/09/2023,21/09/2023,94.3,,A.J Quinn Building Contractors Ltd
"Commercial, Corporate & landlord Services",Property Services & Facilities Management,Resources,Gwent Police Collaboration,Premises,"Repairs, Alterations & Maintenance of Buildings",Building Improvements / Maintenance,,04/09/2023,21/09/2023,64,,A.J Quinn Building Contractors Ltd
"Commercial, Corporate & landlord Services",Property Services & Facilities Management,Resources,Gwent Police Collaboration,Premises,"Repairs, Alterations & Maintenance of Buildings",Building Improvements / Maintenance,,04/09/2023,21/09/2023,64,,A.J Quinn Building Contractors Ltd
Schools Total,School Group 7 � Pupil Capacity 501-1800,MCC Schools,Chepstow School,Supplies & Services,"Equipment, Furniture and Materials",Provisions.,,12/09/2023,21/09/2023,51.54,,Hope Education Ltd
"Commercial, Corporate & landlord Services",Property Services & Facilities Management,Resources,Gwent Police Collaboration,Premises,"Repairs, Alterations & Maintenance of Buildings",Building Improvements / Maintenance,,01/09/2023,04/09/2023,60,,P&P Pest Control
"Commercial, Corporate & landlord Services",Property Services & Facilities Management,Resources,Gwent Police Collaboration,Premises,"Repairs, Alterations & Maintenance of Buildings",Building Improvements / Maintenance,,01/09/2023,04/09/2023,55,,P&P Pest Control
Schools Total,School Group 7 � Pupil Capacity 501-1800,MCC Schools,Chepstow School,Supplies & Services,"Equipment, Furniture and Materials",Provisions.,,01/09/2023,07/09/2023,5.49,,Hope Education Ltd
"Commercial, Corporate & landlord Services",Property Services & Facilities Management,Resources,Gwent Police Collaboration,Premises,"Repairs, Alterations & Maintenance of Buildings",Building Improvements / Maintenance,,06/09/2023,07/09/2023,150,,Ambassador Fire & Security LTD
"Commercial, Corporate & landlord Services",Property Services & Facilities Management,Resources,Gwent Police Collaboration,Premises,"Repairs, Alterations & Maintenance of Buildings",Building Improvements / Maintenance,,01/09/2023,04/09/2023,128.74,,REDACTED PERSONAL DATA
"Commercial, Corporate & landlord Services",Property Services & Facilities Management,Resources,Gwent Police Collaboration,Premises,"Repairs, Alterations & Maintenance of Buildings",Building Improvements / Maintenance,,06/09/2023,07/09/2023,150,,Ambassador Fire & Security LTD
"Commercial, Corporate & landlord Services",Property Services & Facilities Management,Resources,Gwent Police Collaboration,Premises,"Repairs, Alterations & Maintenance of Buildings",Building Improvements / Maintenance,,06/09/2023,07/09/2023,150,,Ambassador Fire & Security LTD
Schools Total,SCHGRP3 � School Group 3 � Pupil Capacity 315-500,MCC Schools,Undy Primary School,Premises,"Repairs, Alterations & Maintenance of Buildings",Premises Repairs And Maintenance,,24/07/2023,18/09/2023,500,,Roberts Audio Solutions
Children Services,Children Services Teams,Social Care and Health,Long Term Support Team,Premises,"Repairs, Alterations & Maintenance of Buildings",Building Improvements / Maintenance,,31/05/2023,07/09/2023,352,,TLC EDUCATION GROUP
Schools Total,School Group 7 � Pupil Capacity 501-1800,MCC Schools,King Henry 3-19 School,Premises,"Repairs, Alterations & Maintenance of Buildings",Premises Repairs And Maintenance,,04/09/2023,29/09/2023,33.33,,Screwfix Trade UK
Schools Total,School Group 7 � Pupil Capacity 501-1800,MCC Schools,King Henry 3-19 School,Premises,"Repairs, Alterations & Maintenance of Buildings",Premises Repairs And Maintenance,,07/09/2023,29/09/2023,24.99,,Screwfix Trade UK
"Commercial, Corporate & landlord Services",Property Services & Facilities Management,Resources,Gwent Police Collaboration,Premises,"Repairs, Alterations & Maintenance of Buildings",Building Improvements / Maintenance,,24/08/2023,04/09/2023,165,,Power Electrics (Bristol) Ltd
"Commercial, Corporate & landlord Services",Property Services & Facilities Management,Resources,Gwent Police Collaboration,Premises,"Repairs, Alterations & Maintenance of Buildings",Building Improvements / Maintenance,,24/08/2023,04/09/2023,165,,Power Electrics (Bristol) Ltd
"Commercial, Corporate & landlord Services",Property Services & Facilities Management,Resources,Gwent Police Collaboration,Premises,"Repairs, Alterations & Maintenance of Buildings",Building Improvements / Maintenance,,24/08/2023,04/09/2023,165,,Power Electrics (Bristol) Ltd
"Commercial, Corporate & landlord Services",Property Services & Facilities Management,Resources,Gwent Police Collaboration,Premises,"Repairs, Alterations & Maintenance of Buildings",Building Improvements / Maintenance,,24/08/2023,04/09/2023,134,,Power Electrics (Bristol) Ltd
"Commercial, Corporate & landlord Services",Property Services & Facilities Management,Resources,Gwent Police Collaboration,Premises,"Repairs, Alterations & Maintenance of Buildings",Building Improvements / Maintenance,,24/08/2023,04/09/2023,165,,Power Electrics (Bristol) Ltd
Schools Total,School Group 7 � Pupil Capacity 501-1800,MCC Schools,Chepstow School,Supplies & Services,"Equipment, Furniture and Materials",Provisions.,,25/08/2023,08/09/2023,12,,RM Educational Resources Ltd
Schools Total,School Group 7 � Pupil Capacity 501-1800,MCC Schools,Chepstow School,Supplies & Services,"Equipment, Furniture and Materials",Provisions.,,25/08/2023,08/09/2023,17.08,,RM Educational Resources Ltd
Schools Total,School Group 7 � Pupil Capacity 501-1800,MCC Schools,Chepstow School,Supplies & Services,"Equipment, Furniture and Materials",Provisions.,,01/09/2023,08/09/2023,3.17,,RM Educational Resources Ltd
Resources,Support Services,Children & Young People,Financial Mgmt Services,Premises,"Repairs, Alterations & Maintenance of Buildings",Premises Repairs And Maintenance,,25/08/2023,08/09/2023,402.79,,REMUS
"Commercial, Corporate & landlord Services",Asset Management,Resources,MCC Markets,Premises,"Repairs, Alterations & Maintenance of Buildings",Building Improvements / Maintenance,,07/09/2023,08/09/2023,240,,REDACTED PERSONAL DATA
Schools Total,SCHGRP3 � School Group 3 � Pupil Capacity 315-500,MCC Schools,Magor CiW Primary School (VA),Premises,"Repairs, Alterations & Maintenance of Buildings",Premises Repairs And Maintenance,,08/08/2023,19/09/2023,49.6,,Undy Building Supplies
Schools Total,School Group 7 � Pupil Capacity 501-1800,MCC Schools,Monmouth Comprehensive,Premises,"Repairs, Alterations & Maintenance of Buildings",Premises Repairs And Maintenance,,05/09/2023,12/09/2023,23.82,,Screwfix Trade UK
"Commercial, Corporate & landlord Services",Property Services & Facilities Management,Resources,Gwent Police Collaboration,Premises,"Repairs, Alterations & Maintenance of Buildings",Building Improvements / Maintenance,,12/09/2023,21/09/2023,444.27,,REDACTED PERSONAL DATA
"Commercial, Corporate & landlord Services",Property Services & Facilities Management,Resources,Gwent Police Collaboration,Premises,"Repairs, Alterations & Maintenance of Buildings",Building Improvements / Maintenance,,12/09/2023,21/09/2023,216.05,,REDACTED PERSONAL DATA
"Commercial, Corporate & landlord Services",Property Services & Facilities Management,Resources,Gwent Police Collaboration,Premises,"Repairs, Alterations & Maintenance of Buildings",Building Improvements / Maintenance,,12/09/2023,21/09/2023,227.63,,REDACTED PERSONAL DATA
Schools Total,School Group 2 � Pupil Capacity 144-314,MCC Schools,Goytre Fawr Primary School,Supplies & Services,Communications and Computing,Postages,,23/07/2023,07/09/2023,21.6,,digiDen Creative Media
Neighbourhood Services,Waste and Street Services,Communities & Place,Fitting Shop Grounds,Supplies & Services,"Equipment, Furniture and Materials",Materials & Consumables.,,21/09/2023,26/09/2023,250,,Mon & Border Motor Factors Ltd
Finance & Business Devlopment,Learning,MonLife Directorate,Learning,Supplies & Services,Communications and Computing,Postages,,30/08/2023,19/09/2023,12.5,,Replicawarehouse
Adult Services,Community Care Team,Social Care and Health,Chepstow Adult Team,Third Party Payments,Third Party,Residential.,,23/08/2023,07/09/2023,3584,,Gibraltar Care Village Limited t/a PSP Healthcare Limited
Adult Services,Community Care Team,Social Care and Health,Mental Health Care Team,Third Party Payments,Third Party,Residential.,,23/08/2023,07/09/2023,3584,,Gibraltar Care Village Limited t/a PSP Healthcare Limited
Adult Services,Community Care Team,Social Care and Health,Mental Health Care Team,Third Party Payments,Third Party,Residential.,,23/08/2023,07/09/2023,3508,,Gibraltar Care Village Limited t/a PSP Healthcare Limited
Adult Services,Community Care Team,Social Care and Health,Mental Health Care Team,Third Party Payments,Third Party,Residential.,,23/08/2023,07/09/2023,3584,,Gibraltar Care Village Limited t/a PSP Healthcare Limited
Schools Total,School Group 2 � Pupil Capacity 144-314,MCC Schools,Kymin View Primary School,Supplies & Services,Communications and Computing,Postages,,20/09/2023,26/09/2023,18,,SRS Public
"Policy, Scrutiny & Customer Service",Policy And Partnerships,Chief Executive's Unit,Partnerships Management,Supplies & Services,"Equipment, Furniture and Materials",Marketing Materials,,18/09/2023,26/09/2023,1500,,Sensible Branding Ltd
Neighbourhood Services,Waste and Street Services,Communities & Place,Fitting Shop Grounds,Supplies & Services,"Equipment, Furniture and Materials",Materials & Consumables.,,19/09/2023,26/09/2023,13.34,,David Evans Agricultural Ltd
Neighbourhood Services,Waste and Street Services,Communities & Place,Fitting Shop Grounds,Supplies & Services,"Equipment, Furniture and Materials",Materials & Consumables.,,18/09/2023,26/09/2023,391.2,,Trailparts
Neighbourhood Services,Waste and Street Services,Communities & Place,Fitting Shop Grounds,Supplies & Services,"Equipment, Furniture and Materials",Materials & Consumables.,,14/08/2023,26/09/2023,225,,24/7 Powered Access Support Ltd
Neighbourhood Services,Waste and Street Services,Communities & Place,Fitting Shop Grounds,Supplies & Services,"Equipment, Furniture and Materials",Materials & Consumables.,,14/08/2023,26/09/2023,450,,24/7 Powered Access Support Ltd
Neighbourhood Services,Waste and Street Services,Communities & Place,Fitting Shop Grounds,Supplies & Services,"Equipment, Furniture and Materials",Materials & Consumables.,,14/08/2023,26/09/2023,850,,24/7 Powered Access Support Ltd
Neighbourhood Services,Waste and Street Services,Communities & Place,Fitting Shop Grounds,Supplies & Services,"Equipment, Furniture and Materials",Materials & Consumables.,,07/09/2023,26/09/2023,53.94,,Fleetwheel
Neighbourhood Services,Waste and Street Services,Communities & Place,Fitting Shop Grounds,Supplies & Services,"Equipment, Furniture and Materials",Materials & Consumables.,,07/09/2023,26/09/2023,83.76,,Fleetwheel
Neighbourhood Services,Waste and Street Services,Communities & Place,Fitting Shop Grounds,Supplies & Services,"Equipment, Furniture and Materials",Materials & Consumables.,,07/09/2023,26/09/2023,59.94,,Fleetwheel
Neighbourhood Services,Waste and Street Services,Communities & Place,Fitting Shop Grounds,Supplies & Services,"Equipment, Furniture and Materials",Materials & Consumables.,,07/09/2023,26/09/2023,71.88,,Fleetwheel
Neighbourhood Services,Waste and Street Services,Communities & Place,Fitting Shop Grounds,Supplies & Services,"Equipment, Furniture and Materials",Materials & Consumables.,,07/09/2023,26/09/2023,71.88,,Fleetwheel
Neighbourhood Services,Waste and Street Services,Communities & Place,Fitting Shop Grounds,Supplies & Services,"Equipment, Furniture and Materials",Materials & Consumables.,,06/09/2023,26/09/2023,10,,Fleetwheel
Neighbourhood Services,Waste and Street Services,Communities & Place,Fitting Shop Grounds,Supplies & Services,"Equipment, Furniture and Materials",Materials & Consumables.,,06/09/2023,26/09/2023,10,,Fleetwheel
Neighbourhood Services,Waste and Street Services,Communities & Place,Fitting Shop Grounds,Supplies & Services,"Equipment, Furniture and Materials",Materials & Consumables.,,14/09/2023,26/09/2023,203.18,,Fasteners & Engineering Suppliers Ltd
Schools Total,Schools,MCC Schools,Pupil Referral Unit,Supplies & Services,"Equipment, Furniture and Materials",Materials & Consumables.,,07/09/2023,26/09/2023,-354.3,,Twinkl.co.uk
Schools Total,Schools,MCC Schools,Pupil Referral Unit,Supplies & Services,"Equipment, Furniture and Materials",Materials & Consumables.,,07/09/2023,26/09/2023,354.3,,Twinkl.co.uk
Schools Total,Schools,MCC Schools,Pupil Referral Unit,Supplies & Services,"Equipment, Furniture and Materials",Materials & Consumables.,,07/09/2023,26/09/2023,1233.7,,Twinkl.co.uk
Standards,Additional Learning Needs,Children & Young People,ALN SPLD,Supplies & Services,"Equipment, Furniture and Materials",Materials & Consumables.,,24/08/2023,26/09/2023,3.95,,TTS Group Ltd
Standards,Additional Learning Needs,Children & Young People,ALN SPLD,Supplies & Services,"Equipment, Furniture and Materials",Materials & Consumables.,,24/08/2023,26/09/2023,16.99,,TTS Group Ltd
Standards,Additional Learning Needs,Children & Young People,ALN SPLD,Supplies & Services,"Equipment, Furniture and Materials",Materials & Consumables.,,23/08/2023,26/09/2023,67,,Phonic Books Ltd
Neighbourhood Services,Waste and Street Services,Communities & Place,Refuse & Cleansing Operations,Supplies & Services,"Equipment, Furniture and Materials",Materials & Consumables.,,04/09/2023,26/09/2023,299.16,,Fiddes & Son Ltd T/a Bowcom
Adult Services,Community Care Team,Social Care and Health,Mental Health Care Team,Third Party Payments,Third Party,Residential.,,27/05/2023,18/09/2023,4039.76,,Tregwillym Lodge
Adult Services,Community Care Team,Social Care and Health,Monmouth Adult Team,Third Party Payments,Third Party,Nursing.,,23/08/2023,07/09/2023,3388,,Gibraltar Care Village Limited t/a PSP Healthcare Limited
Neighbourhood Services,Highways,Communities & Place,Internal others,Supplies & Services,"Equipment, Furniture and Materials",Materials & Consumables.,,16/08/2023,19/09/2023,843.66,,Hanson Quarry Products Europe Ltd
Neighbourhood Services,Highways,Communities & Place,Internal others,Supplies & Services,"Equipment, Furniture and Materials",Materials & Consumables.,,07/07/2023,19/09/2023,934.29,,Civils Store Ltd
Neighbourhood Services,Highways,Communities & Place,Drainage works,Supplies & Services,"Equipment, Furniture and Materials",Materials & Consumables.,,21/08/2023,19/09/2023,416.7,,Civils Store Ltd
Adult Services,Community Care Team,Social Care and Health,Monmouth Adult Team,Third Party Payments,Third Party,Nursing.,,23/08/2023,07/09/2023,3388,,Gibraltar Care Village Limited t/a PSP Healthcare Limited
Adult Services,Community Care Team,Social Care and Health,Monmouth Adult Team,Third Party Payments,Third Party,Nursing.,,23/08/2023,07/09/2023,1331,,Gibraltar Care Village Limited t/a PSP Healthcare Limited
Schools Total,School Group 7 � Pupil Capacity 501-1800,MCC Schools,King Henry 3-19 School,Supplies & Services,Communications and Computing,Postages,,17/08/2023,19/09/2023,870,,Royal Mail
Adult Services,Community Care Team,Social Care and Health,Monmouth Adult Team,Third Party Payments,Third Party,Nursing.,,23/08/2023,07/09/2023,3388,,Gibraltar Care Village Limited t/a PSP Healthcare Limited
Adult Services,Community Care Team,Social Care and Health,Mental Health Care Team,Third Party Payments,Third Party,Nursing.,,23/08/2023,07/09/2023,3508,,Gibraltar Care Village Limited t/a PSP Healthcare Limited
Adult Services,Community Care Team,Social Care and Health,Monmouth Adult Team,Third Party Payments,Third Party,FNC Social Care Nursing Tasks,,23/08/2023,07/09/2023,31.44,,Gibraltar Care Village Limited t/a PSP Healthcare Limited
Schools Total,School Group 7 � Pupil Capacity 501-1800,MCC Schools,Chepstow School,Supplies & Services,"Equipment, Furniture and Materials",Advertising,,29/08/2023,18/09/2023,150,,Monnow Voice Ltd
Adult Services,Community Care Team,Social Care and Health,Monmouth Adult Team,Third Party Payments,Third Party,FNC Social Care Nursing Tasks,,23/08/2023,07/09/2023,31.44,,Gibraltar Care Village Limited t/a PSP Healthcare Limited
Adult Services,Community Care Team,Social Care and Health,Monmouth Adult Team,Third Party Payments,Third Party,FNC Social Care Nursing Tasks,,23/08/2023,07/09/2023,31.44,,Gibraltar Care Village Limited t/a PSP Healthcare Limited
Adult Services,Community Care Team,Social Care and Health,Monmouth Adult Team,Third Party Payments,Third Party,FNC Social Care Nursing Tasks,,23/08/2023,07/09/2023,31.44,,Gibraltar Care Village Limited t/a PSP Healthcare Limited
Adult Services,Community Care Team,Social Care and Health,Monmouth Adult Team,Third Party Payments,Third Party,FNC Social Care Nursing Tasks,,23/08/2023,07/09/2023,31.44,,Gibraltar Care Village Limited t/a PSP Healthcare Limited
Adult Services,Community Care Team,Social Care and Health,Mental Health Care Team,Third Party Payments,Third Party,FNC Social Care Nursing Tasks,,23/08/2023,07/09/2023,31.44,,Gibraltar Care Village Limited t/a PSP Healthcare Limited
Adult Services,Community Care Team,Social Care and Health,Mental Health Care Team,Third Party Payments,Third Party,FNC Social Care Nursing Tasks,,23/08/2023,07/09/2023,31.44,,Gibraltar Care Village Limited t/a PSP Healthcare Limited
Adult Services,Community Care Team,Social Care and Health,Mental Health Care Team,Third Party Payments,Third Party,Nursing.,,23/08/2023,07/09/2023,3508,,Gibraltar Care Village Limited t/a PSP Healthcare Limited
Adult Services,Community Care Team,Social Care and Health,Mental Health Care Team,Third Party Payments,Third Party,Nursing.,,23/08/2023,07/09/2023,3508,,Gibraltar Care Village Limited t/a PSP Healthcare Limited
Adult Services,Community Care Team,Social Care and Health,Abergavenny Adult Team,Third Party Payments,Third Party,FNC Social Care Nursing Tasks,,23/08/2023,07/09/2023,31.44,,Gibraltar Care Village Limited t/a PSP Healthcare Limited
Adult Services,Community Care Team,Social Care and Health,Monmouth Adult Team,Third Party Payments,Third Party,Nursing.,,23/08/2023,07/09/2023,3388,,Gibraltar Care Village Limited t/a PSP Healthcare Limited
Adult Services,Community Care Team,Social Care and Health,Monmouth Adult Team,Third Party Payments,Third Party,Nursing.,,23/08/2023,07/09/2023,3388,,Gibraltar Care Village Limited t/a PSP Healthcare Limited
Adult Services,Community Care Team,Social Care and Health,Monmouth Adult Team,Third Party Payments,Third Party,Nursing.,,23/08/2023,07/09/2023,3388,,Gibraltar Care Village Limited t/a PSP Healthcare Limited
Adult Services,Community Care Team,Social Care and Health,Monmouth Adult Team,Third Party Payments,Third Party,Nursing.,,23/08/2023,07/09/2023,3388,,Gibraltar Care Village Limited t/a PSP Healthcare Limited
Adult Services,Community Care Team,Social Care and Health,Abergavenny Adult Team,Third Party Payments,Third Party,Nursing.,,23/08/2023,07/09/2023,3388,,Gibraltar Care Village Limited t/a PSP Healthcare Limited
Adult Services,Community Care Team,Social Care and Health,Mental Health Care Team,Third Party Payments,Third Party,Residential.,,23/08/2023,07/09/2023,3584,,Gibraltar Care Village Limited t/a PSP Healthcare Limited
Adult Services,Community Care Team,Social Care and Health,Mental Health Care Team,Third Party Payments,Third Party,Residential.,,23/08/2023,07/09/2023,3584,,Gibraltar Care Village Limited t/a PSP Healthcare Limited
Adult Services,Community Care Team,Social Care and Health,Monmouth Adult Team,Third Party Payments,Third Party,Residential.,,23/08/2023,07/09/2023,3584,,Gibraltar Care Village Limited t/a PSP Healthcare Limited
Adult Services,Community Care Team,Social Care and Health,Monmouth Adult Team,Third Party Payments,Third Party,Residential.,,23/08/2023,07/09/2023,3584,,Gibraltar Care Village Limited t/a PSP Healthcare Limited
Adult Services,Community Care Team,Social Care and Health,Monmouth Adult Team,Third Party Payments,Third Party,Residential.,,23/08/2023,07/09/2023,3220,,Gibraltar Care Village Limited t/a PSP Healthcare Limited
Adult Services,Community Care Team,Social Care and Health,Monmouth Adult Team,Third Party Payments,Third Party,Residential.,,23/08/2023,07/09/2023,3000,,Gibraltar Care Village Limited t/a PSP Healthcare Limited
Adult Services,Community Care Team,Social Care and Health,Monmouth Adult Team,Third Party Payments,Third Party,Residential.,,23/08/2023,07/09/2023,3584,,Gibraltar Care Village Limited t/a PSP Healthcare Limited
Adult Services,Community Care Team,Social Care and Health,Chepstow Adult Team,Third Party Payments,Third Party,Residential.,,23/08/2023,07/09/2023,3584,,Gibraltar Care Village Limited t/a PSP Healthcare Limited
Adult Services,Community Care Team,Social Care and Health,Abergavenny Adult Team,Third Party Payments,Third Party,Nursing.,,23/08/2023,07/09/2023,3388,,Gibraltar Care Village Limited t/a PSP Healthcare Limited
Adult Services,Community Care Team,Social Care and Health,Abergavenny Adult Team,Third Party Payments,Third Party,Nursing.,,23/08/2023,07/09/2023,3388,,Gibraltar Care Village Limited t/a PSP Healthcare Limited
Adult Services,Community Care Team,Social Care and Health,Abergavenny Adult Team,Third Party Payments,Third Party,Nursing.,,23/08/2023,07/09/2023,1754,,Gibraltar Care Village Limited t/a PSP Healthcare Limited
Adult Services,Community Care Team,Social Care and Health,Monmouth Adult Team,Third Party Payments,Third Party,Nursing.,,23/08/2023,07/09/2023,3388,,Gibraltar Care Village Limited t/a PSP Healthcare Limited
Adult Services,Community Care Team,Social Care and Health,Monmouth Adult Team,Third Party Payments,Third Party,Nursing.,,23/08/2023,07/09/2023,3388,,Gibraltar Care Village Limited t/a PSP Healthcare Limited
Adult Services,Community Care Team,Social Care and Health,Abergavenny Adult Team,Third Party Payments,Third Party,FNC Social Care Nursing Tasks,,23/08/2023,07/09/2023,31.44,,Gibraltar Care Village Limited t/a PSP Healthcare Limited
Adult Services,Community Care Team,Social Care and Health,Abergavenny Adult Team,Third Party Payments,Third Party,FNC Social Care Nursing Tasks,,23/08/2023,07/09/2023,31.44,,Gibraltar Care Village Limited t/a PSP Healthcare Limited
Adult Services,Community Care Team,Social Care and Health,Chepstow Adult Team,Third Party Payments,Third Party,Nursing.,,23/08/2023,07/09/2023,3388,,Gibraltar Care Village Limited t/a PSP Healthcare Limited
Adult Services,Community Care Team,Social Care and Health,Mental Health Care Team,Third Party Payments,Third Party,FNC Social Care Nursing Tasks,,23/08/2023,07/09/2023,31.44,,Gibraltar Care Village Limited t/a PSP Healthcare Limited
Adult Services,Community Care Team,Social Care and Health,Mental Health Care Team,Third Party Payments,Third Party,FNC Social Care Nursing Tasks,,23/08/2023,07/09/2023,31.44,,Gibraltar Care Village Limited t/a PSP Healthcare Limited
Adult Services,Community Care Team,Social Care and Health,Chepstow Adult Team,Third Party Payments,Third Party,FNC Social Care Nursing Tasks,,23/08/2023,07/09/2023,31.44,,Gibraltar Care Village Limited t/a PSP Healthcare Limited
Adult Services,Community Care Team,Social Care and Health,Monmouth Adult Team,Third Party Payments,Third Party,FNC Social Care Nursing Tasks,,23/08/2023,07/09/2023,31.44,,Gibraltar Care Village Limited t/a PSP Healthcare Limited
Adult Services,Community Care Team,Social Care and Health,Monmouth Adult Team,Third Party Payments,Third Party,FNC Social Care Nursing Tasks,,23/08/2023,07/09/2023,31.44,,Gibraltar Care Village Limited t/a PSP Healthcare Limited
Adult Services,Community Care Team,Social Care and Health,Monmouth Adult Team,Third Party Payments,Third Party,FNC Social Care Nursing Tasks,,23/08/2023,07/09/2023,31.44,,Gibraltar Care Village Limited t/a PSP Healthcare Limited
Adult Services,Community Care Team,Social Care and Health,Monmouth Adult Team,Third Party Payments,Third Party,FNC Social Care Nursing Tasks,,23/08/2023,07/09/2023,31.44,,Gibraltar Care Village Limited t/a PSP Healthcare Limited
Adult Services,Community Care Team,Social Care and Health,Monmouth Adult Team,Third Party Payments,Third Party,FNC Social Care Nursing Tasks,,23/08/2023,07/09/2023,15.72,,Gibraltar Care Village Limited t/a PSP Healthcare Limited
Adult Services,Community Care Team,Social Care and Health,Mental Health Care Team,Third Party Payments,Third Party,FNC Social Care Nursing Tasks,,23/08/2023,07/09/2023,31.44,,Gibraltar Care Village Limited t/a PSP Healthcare Limited
Adult Services,Community Care Team,Social Care and Health,Abergavenny Adult Team,Third Party Payments,Third Party,FNC Social Care Nursing Tasks,,23/08/2023,07/09/2023,15.72,,Gibraltar Care Village Limited t/a PSP Healthcare Limited
Adult Services,Community Care Team,Social Care and Health,Abergavenny Adult Team,Third Party Payments,Third Party,FNC Social Care Nursing Tasks,,23/08/2023,07/09/2023,62.88,,Gibraltar Care Village Limited t/a PSP Healthcare Limited
Adult Services,Community Care Team,Social Care and Health,Mental Health Care Team,Third Party Payments,Third Party,Nursing.,,23/08/2023,07/09/2023,3508,,Gibraltar Care Village Limited t/a PSP Healthcare Limited
Adult Services,Community Care Team,Social Care and Health,Mental Health Care Team,Third Party Payments,Third Party,Nursing.,,23/08/2023,07/09/2023,3508,,Gibraltar Care Village Limited t/a PSP Healthcare Limited
Adult Services,Community Care Team,Social Care and Health,Monmouth Adult Team,Third Party Payments,Third Party,Nursing.,,23/08/2023,07/09/2023,3388,,Gibraltar Care Village Limited t/a PSP Healthcare Limited
Adult Services,Community Care Team,Social Care and Health,Monmouth Adult Team,Third Party Payments,Third Party,Nursing.,,23/08/2023,07/09/2023,3388,,Gibraltar Care Village Limited t/a PSP Healthcare Limited
Adult Services,Community Care Team,Social Care and Health,Monmouth Adult Team,Third Party Payments,Third Party,Nursing.,,23/08/2023,07/09/2023,1754,,Gibraltar Care Village Limited t/a PSP Healthcare Limited
Adult Services,Community Care Team,Social Care and Health,Mental Health Care Team,Third Party Payments,Third Party,Residential.,,31/08/2023,07/09/2023,3584,,St Annes Nursing Home
Adult Services,Community Care Team,Social Care and Health,Monmouth Adult Team,Third Party Payments,Third Party,Residential.,,23/08/2023,07/09/2023,3220,,Gibraltar Care Village Limited t/a PSP Healthcare Limited
Adult Services,Community Care Team,Social Care and Health,Chepstow Adult Team,Third Party Payments,Third Party,Residential.,,31/08/2023,07/09/2023,3584,,St Annes Nursing Home
Adult Services,Community Care Team,Social Care and Health,Chepstow Adult Team,Third Party Payments,Third Party,Residential.,,31/08/2023,07/09/2023,3584,,St Annes Nursing Home
Adult Services,Community Care Team,Social Care and Health,Mental Health Care Team,Third Party Payments,Third Party,Residential.,,31/08/2023,07/09/2023,4224,,St Annes Nursing Home
Adult Services,Community Care Team,Social Care and Health,Mental Health Care Team,Third Party Payments,Third Party,Residential.,,31/08/2023,07/09/2023,3584,,St Annes Nursing Home
Adult Services,Community Care Team,Social Care and Health,Mental Health Care Team,Third Party Payments,Third Party,Residential.,,31/08/2023,07/09/2023,3584,,St Annes Nursing Home
Adult Services,Community Care Team,Social Care and Health,Mental Health Care Team,Third Party Payments,Third Party,Residential.,,31/08/2023,07/09/2023,-31.44,,St Annes Nursing Home
Adult Services,Community Care Team,Social Care and Health,Mental Health Care Team,Third Party Payments,Third Party,Residential.,,31/08/2023,07/09/2023,-31.44,,St Annes Nursing Home
Adult Services,Community Care Team,Social Care and Health,Mental Health Care Team,Third Party Payments,Third Party,Residential.,,31/08/2023,07/09/2023,76,,St Annes Nursing Home
Adult Services,Community Care Team,Social Care and Health,Mental Health Care Team,Third Party Payments,Third Party,Residential.,,31/08/2023,07/09/2023,76,,St Annes Nursing Home
Adult Services,Community Care Team,Social Care and Health,Mental Health Care Team,Third Party Payments,Third Party,Residential.,,31/08/2023,07/09/2023,3584,,St Annes Nursing Home
Adult Services,Community Care Team,Social Care and Health,Mental Health Care Team,Third Party Payments,Third Party,Nursing.,,31/08/2023,07/09/2023,3508,,St Annes Nursing Home
Adult Services,Community Care Team,Social Care and Health,Mental Health Care Team,Third Party Payments,Third Party,Nursing.,,31/08/2023,07/09/2023,3508,,St Annes Nursing Home
Adult Services,Community Care Team,Social Care and Health,Mental Health Care Team,Third Party Payments,Third Party,Nursing.,,31/08/2023,07/09/2023,3508,,St Annes Nursing Home
Adult Services,Community Care Team,Social Care and Health,Mental Health Care Team,Third Party Payments,Third Party,Nursing.,,31/08/2023,07/09/2023,3388,,St Annes Nursing Home
Adult Services,Community Care Team,Social Care and Health,Mental Health Care Team,Third Party Payments,Third Party,FNC Social Care Nursing Tasks,,31/08/2023,07/09/2023,31.44,,St Annes Nursing Home
Adult Services,Community Care Team,Social Care and Health,Mental Health Care Team,Third Party Payments,Third Party,FNC Social Care Nursing Tasks,,31/08/2023,07/09/2023,31.44,,St Annes Nursing Home
Adult Services,Community Care Team,Social Care and Health,Mental Health Care Team,Third Party Payments,Third Party,FNC Social Care Nursing Tasks,,31/08/2023,07/09/2023,31.44,,St Annes Nursing Home
Adult Services,Community Care Team,Social Care and Health,Mental Health Care Team,Third Party Payments,Third Party,FNC Social Care Nursing Tasks,,31/08/2023,07/09/2023,31.44,,St Annes Nursing Home
Adult Services,Community Care Team,Social Care and Health,Mental Health Care Team,Third Party Payments,Third Party,FNC Social Care Nursing Tasks,,31/08/2023,07/09/2023,31.44,,St Annes Nursing Home
Adult Services,Community Care Team,Social Care and Health,Mental Health Care Team,Third Party Payments,Third Party,FNC Social Care Nursing Tasks,,31/08/2023,07/09/2023,125.76,,St Annes Nursing Home
Adult Services,Community Care Team,Social Care and Health,Mental Health Care Team,Third Party Payments,Third Party,FNC Social Care Nursing Tasks,,31/08/2023,07/09/2023,43.79,,St Annes Nursing Home
Adult Services,Community Care Team,Social Care and Health,Mental Health Care Team,Third Party Payments,Third Party,Nursing.,,31/08/2023,07/09/2023,3508,,St Annes Nursing Home
Adult Services,Community Care Team,Social Care and Health,Mental Health Care Team,Third Party Payments,Third Party,Nursing.,,31/08/2023,07/09/2023,4886.14,,St Annes Nursing Home
Neighbourhood Services,Waste and Street Services,Communities & Place,Fitting Shop Grounds,Supplies & Services,"Equipment, Furniture and Materials",Materials & Consumables.,,29/08/2023,06/09/2023,64.1,,Trailparts
Neighbourhood Services,Waste and Street Services,Communities & Place,Fitting Shop Grounds,Supplies & Services,"Equipment, Furniture and Materials",Materials & Consumables.,,18/08/2023,06/09/2023,77.08,,Acorn Industrial Services
Neighbourhood Services,Waste and Street Services,Communities & Place,Fitting Shop Grounds,Supplies & Services,"Equipment, Furniture and Materials",Materials & Consumables.,,21/08/2023,06/09/2023,408.24,,Acorn Industrial Services
Democratic Services,Democratic Services,People & Governance,Committee Section,Supplies & Services,Communications and Computing,Licences,,21/08/2023,12/09/2023,14900.13,,Civica UK Ltd
"Policy, Scrutiny & Customer Service",Contact Centre,Chief Executive's Unit,Contact Centre,Supplies & Services,"Equipment, Furniture and Materials",Materials & Consumables.,,25/09/2023,29/09/2023,273.24,,Valltech Limited
Adult Services,Community Care Team,Social Care and Health,Chepstow Adult Team,Third Party Payments,Third Party,Domestic Care,,09/07/2023,12/09/2023,23376.64,,Abicare Services Ltd
Finance & Business Devlopment,Marketing & Sales,MonLife Directorate,Sales & Marketing,Supplies & Services,"Equipment, Furniture and Materials",Marketing Materials,,31/08/2023,12/09/2023,181,,Zenith Print and Packaging Ltd
Schools Total,SCHGRP3 � School Group 3 � Pupil Capacity 315-500,MCC Schools,Undy Primary School,Supplies & Services,"Equipment, Furniture and Materials",Materials & Consumables.,,17/07/2023,18/09/2023,7.68,,RM Educational Resources Ltd
Schools Total,School Group 2 � Pupil Capacity 144-314,MCC Schools,Archbishop Rowan Williams CiW Primary School (VA),Supplies & Services,"Equipment, Furniture and Materials",Materials & Consumables.,,11/07/2023,26/09/2023,295.31,,RM Educational Resources Ltd
Schools Total,School Group 2 � Pupil Capacity 144-314,MCC Schools,Dewstow Primary School,Supplies & Services,"Equipment, Furniture and Materials",Materials & Consumables.,,31/08/2023,18/09/2023,69.98,,TTS Group Ltd
Adult Services,Community Care Team,Social Care and Health,Chepstow Adult Team,Third Party Payments,Third Party,Personal Care.,,04/09/2023,07/09/2023,684,,Lougher Home Care Ltd
Adult Services,Community Care Team,Social Care and Health,Chepstow Adult Team,Third Party Payments,Third Party,Personal Care.,,04/09/2023,07/09/2023,4149.6,,Lougher Home Care Ltd
Adult Services,Community Care Team,Social Care and Health,Chepstow Adult Team,Third Party Payments,Third Party,Personal Care.,,04/09/2023,07/09/2023,2553.6,,Lougher Home Care Ltd
Adult Services,Community Care Team,Social Care and Health,Chepstow Adult Team,Third Party Payments,Third Party,Personal Care.,,04/09/2023,07/09/2023,4149.6,,Lougher Home Care Ltd
Adult Services,Community Care Team,Social Care and Health,Chepstow Adult Team,Third Party Payments,Third Party,Personal Care.,,04/09/2023,07/09/2023,4468.8,,Lougher Home Care Ltd
Adult Services,Community Care Team,Social Care and Health,Chepstow Adult Team,Third Party Payments,Third Party,Personal Care.,,04/09/2023,07/09/2023,461.7,,Lougher Home Care Ltd
Adult Services,Community Care Team,Social Care and Health,Chepstow Adult Team,Third Party Payments,Third Party,Personal Care.,,04/09/2023,07/09/2023,478.8,,Lougher Home Care Ltd
Adult Services,Community Care Team,Social Care and Health,Chepstow Adult Team,Third Party Payments,Third Party,Personal Care.,,17/08/2023,07/09/2023,721.26,,Radis Community Care
Adult Services,Community Care Team,Social Care and Health,Chepstow Adult Team,Third Party Payments,Third Party,Personal Care.,,17/08/2023,07/09/2023,1433.35,,Radis Community Care
Adult Services,Community Care Team,Social Care and Health,Chepstow Adult Team,Third Party Payments,Third Party,Personal Care.,,17/08/2023,07/09/2023,652.02,,Radis Community Care
Adult Services,Community Care Team,Social Care and Health,Chepstow Adult Team,Third Party Payments,Third Party,Personal Care.,,17/08/2023,07/09/2023,707.44,,Radis Community Care
Adult Services,Community Care Team,Social Care and Health,Chepstow Adult Team,Third Party Payments,Third Party,Personal Care.,,17/08/2023,07/09/2023,3407.68,,Radis Community Care
Adult Services,Community Care Team,Social Care and Health,Chepstow Adult Team,Third Party Payments,Third Party,Personal Care.,,04/09/2023,08/09/2023,1276.8,,Lougher Home Care Ltd
Schools Total,School Group 2 � Pupil Capacity 144-314,MCC Schools,Raglan CiW Primary School (VC),Supplies & Services,"Equipment, Furniture and Materials",Materials & Consumables.,,18/07/2023,08/09/2023,339.98,,Screwfix Trade UK
Schools Total,School Group 2 � Pupil Capacity 144-314,MCC Schools,Rogiet Primary School,Supplies & Services,"Equipment, Furniture and Materials",Materials & Consumables.,,12/07/2023,08/09/2023,314.77,,BRIGHTSPARKS4KIDS LTD
Schools Total,School Group 2 � Pupil Capacity 144-314,MCC Schools,Our Lady & St Michael's (OLSM) RC Primary School (VA),Supplies & Services,"Equipment, Furniture and Materials",Materials & Consumables.,,13/06/2023,12/09/2023,137.3,,RM Educational Resources Ltd
Schools Total,School Group 2 � Pupil Capacity 144-314,MCC Schools,Our Lady & St Michael's (OLSM) RC Primary School (VA),Supplies & Services,"Equipment, Furniture and Materials",Materials & Consumables.,,06/06/2023,12/09/2023,11.3,,RM Educational Resources Ltd
Schools Total,School Group 2 � Pupil Capacity 144-314,MCC Schools,Cantref Primary School,Supplies & Services,"Equipment, Furniture and Materials",Materials & Consumables.,,06/09/2023,12/09/2023,6.38,,Hope Education Ltd
Adult Services,Community Care Team,Social Care and Health,Chepstow Adult Team,Third Party Payments,Third Party,Personal Care.,,17/08/2023,07/09/2023,277.4,,Radis Community Care
Adult Services,Community Care Team,Social Care and Health,Chepstow Adult Team,Third Party Payments,Third Party,Personal Care.,,17/08/2023,07/09/2023,762.86,,Radis Community Care
Adult Services,Community Care Team,Social Care and Health,Chepstow Adult Team,Third Party Payments,Third Party,Personal Care.,,17/08/2023,07/09/2023,698.15,,Radis Community Care
Adult Services,Community Care Team,Social Care and Health,Chepstow Adult Team,Third Party Payments,Third Party,Personal Care.,,17/08/2023,07/09/2023,1340.78,,Radis Community Care
Adult Services,Community Care Team,Social Care and Health,Chepstow Adult Team,Third Party Payments,Third Party,Personal Care.,,06/09/2023,07/09/2023,300.21,,REDACTED PERSONAL DATA
Adult Services,Community Care Team,Social Care and Health,Chepstow Adult Team,Third Party Payments,Third Party,Personal Care.,,17/08/2023,07/09/2023,1794.18,,Radis Community Care
Adult Services,Community Care Team,Social Care and Health,Chepstow Adult Team,Third Party Payments,Third Party,Personal Care.,,17/08/2023,07/09/2023,1709.92,,Radis Community Care
Adult Services,Community Care Team,Social Care and Health,Chepstow Adult Team,Third Party Payments,Third Party,Personal Care.,,17/08/2023,07/09/2023,3153.14,,Radis Community Care
Adult Services,Community Care Team,Social Care and Health,Chepstow Adult Team,Third Party Payments,Third Party,Personal Care.,,17/08/2023,07/09/2023,1077.34,,Radis Community Care
Adult Services,Community Care Team,Social Care and Health,Chepstow Adult Team,Third Party Payments,Third Party,Personal Care.,,17/08/2023,07/09/2023,1553.44,,Radis Community Care
Schools Total,Schools,MCC Schools,Pupil Referral Unit,Supplies & Services,"Equipment, Furniture and Materials",Rental / Hire,,18/09/2023,29/09/2023,-68.27,,Phs Group
Adult Services,Community Care Team,Social Care and Health,Monmouth Adult Team,Third Party Payments,Third Party,Personal Care.,,18/04/2023,24/10/2023,-3964.12,,Drive Ltd
"Commercial, Corporate & landlord Services",Property Services & Facilities Management,Resources,Reactive Maintenance,Premises,"Repairs, Alterations & Maintenance of Buildings",Building Improvements / Maintenance,,07/09/2023,21/09/2023,70.6,,A.J Quinn Building Contractors Ltd
"Commercial, Corporate & landlord Services",Property Services & Facilities Management,Resources,Reactive Maintenance,Premises,"Repairs, Alterations & Maintenance of Buildings",Building Improvements / Maintenance,,07/09/2023,21/09/2023,46,,A.J Quinn Building Contractors Ltd
"Commercial, Corporate & landlord Services",Property Services & Facilities Management,Resources,Reactive Maintenance,Premises,"Repairs, Alterations & Maintenance of Buildings",Building Improvements / Maintenance,,04/09/2023,21/09/2023,132.69,,A.J Quinn Building Contractors Ltd
"Commercial, Corporate & landlord Services",Property Services & Facilities Management,Resources,Reactive Maintenance,Premises,"Repairs, Alterations & Maintenance of Buildings",Building Improvements / Maintenance,,04/09/2023,21/09/2023,196.89,,A.J Quinn Building Contractors Ltd
Schools Total,School Group 2 � Pupil Capacity 144-314,MCC Schools,Rogiet Primary School,Employees,Direct Employee Expenses,Agency Staff,,19/09/2023,21/09/2023,444.52,,TeacherActive
Schools Total,Schools,MCC Schools,Pupil Referral Unit,Employees,Direct Employee Expenses,Agency Staff,,19/09/2023,26/09/2023,970.84,,Apollo Teaching Services LTD
Schools Total,School Group 7 � Pupil Capacity 501-1800,MCC Schools,King Henry 3-19 School,Supplies & Services,"Equipment, Furniture and Materials",Health & Safety Equipment.,,18/09/2023,26/09/2023,3.71,,Amazon Payments UK Limited
"Commercial, Corporate & landlord Services",Property Services & Facilities Management,Resources,Reactive Maintenance,Premises,"Repairs, Alterations & Maintenance of Buildings",Building Improvements / Maintenance,,09/08/2023,04/09/2023,46,,A.J Quinn Building Contractors Ltd
"Commercial, Corporate & landlord Services",Property Services & Facilities Management,Resources,Reactive Maintenance,Premises,"Repairs, Alterations & Maintenance of Buildings",Building Improvements / Maintenance,,09/08/2023,04/09/2023,237.56,,A.J Quinn Building Contractors Ltd
"Commercial, Corporate & landlord Services",Property Services & Facilities Management,Resources,Reactive Maintenance,Premises,"Repairs, Alterations & Maintenance of Buildings",Building Improvements / Maintenance,,28/08/2023,04/09/2023,119,,P&P Pest Control
Information Communication Technology,Technology & Organisational Design,Resources,Cyber Security,Supplies & Services,"Equipment, Furniture and Materials",Health & Safety Equipment.,,05/09/2023,18/09/2023,495,,PDP Training
Finance & Business Devlopment,Learning,MonLife Directorate,Learning,Supplies & Services,"Equipment, Furniture and Materials",Equipment Purchases,,30/08/2023,19/09/2023,287,,Replicawarehouse
"Commercial, Corporate & landlord Services",Property Services & Facilities Management,Resources,External Clients,Premises,"Repairs, Alterations & Maintenance of Buildings",Building Improvements / Maintenance,,21/08/2023,19/09/2023,5469.68,,A.J Quinn Building Contractors Ltd
"Commercial, Corporate & landlord Services",Property Services & Facilities Management,Resources,Reactive Maintenance,Premises,"Repairs, Alterations & Maintenance of Buildings",Building Improvements / Maintenance,,21/08/2023,19/09/2023,198,,A.J Quinn Building Contractors Ltd
"Commercial, Corporate & landlord Services",Property Services & Facilities Management,Resources,Reactive Maintenance,Premises,"Repairs, Alterations & Maintenance of Buildings",Building Improvements / Maintenance,,21/08/2023,22/09/2023,280.5,,A.J Quinn Building Contractors Ltd
"Commercial, Corporate & landlord Services",Property Services & Facilities Management,Resources,Reactive Maintenance,Premises,"Repairs, Alterations & Maintenance of Buildings",Building Improvements / Maintenance,,21/08/2023,22/09/2023,138.38,,A.J Quinn Building Contractors Ltd
Schools Total,School Group 2 � Pupil Capacity 144-314,MCC Schools,St Mary�s RC Primary School (VA),Employees,Direct Employee Expenses,Agency Staff,,20/09/2023,26/09/2023,3254.19,,Teaching 4 Wales Ltd
Schools Total,School Group 2 � Pupil Capacity 144-314,MCC Schools,Rogiet Primary School,Employees,Direct Employee Expenses,Agency Staff,,05/09/2023,07/09/2023,301.99,,Teaching 4 Wales Ltd
Adult Services,Community Care Team,Social Care and Health,Abergavenny Adult Team,Third Party Payments,Third Party,Personal Care.,,17/08/2023,07/09/2023,518,,Radis Community Care
Schools Total,School Group 2 � Pupil Capacity 144-314,MCC Schools,St Mary�s RC Primary School (VA),Employees,Direct Employee Expenses,Agency Staff,,05/09/2023,12/09/2023,384.2,,Teaching 4 Wales Ltd
Schools Total,School Group 7 � Pupil Capacity 501-1800,MCC Schools,Monmouth Comprehensive,Employees,Direct Employee Expenses,Agency Staff,,07/06/2023,12/09/2023,132.4,,Teaching Personnel
Schools Total,School Group 2 � Pupil Capacity 144-314,MCC Schools,Dewstow Primary School,Employees,Direct Employee Expenses,Agency Staff,,03/09/2023,08/09/2023,214.43,,New Directions Education Ltd
Schools Total,School Group 2 � Pupil Capacity 144-314,MCC Schools,St Mary�s RC Primary School (VA),Employees,Direct Employee Expenses,Agency Staff,,26/07/2023,12/09/2023,3592.27,,Teaching 4 Wales Ltd
Schools Total,School Group 2 � Pupil Capacity 144-314,MCC Schools,Raglan CiW Primary School (VC),Employees,Direct Employee Expenses,Agency Staff,,25/07/2023,08/09/2023,328.32,,TeacherActive
Schools Total,School Group 2 � Pupil Capacity 144-314,MCC Schools,Raglan CiW Primary School (VC),Employees,Direct Employee Expenses,Agency Staff,,25/07/2023,08/09/2023,1154.65,,TeacherActive
Schools Total,School Group 2 � Pupil Capacity 144-314,MCC Schools,Raglan CiW Primary School (VC),Employees,Direct Employee Expenses,Agency Staff,,25/07/2023,08/09/2023,547.2,,TeacherActive
Schools Total,School Group 7 � Pupil Capacity 501-1800,MCC Schools,Monmouth Comprehensive,Employees,Direct Employee Expenses,Agency Staff,,06/09/2023,12/09/2023,230,,Back Office Support Services Ltd (Education Supply Pool)
"Enterprise, Housing & Community Animation",Business Growth & Enterprise,Communities & Place,Infuse � West Wales & Valleys,Supplies & Services,"Equipment, Furniture and Materials",Equipment Purchases,,07/09/2023,12/09/2023,1080,,Tim Lewis Production Ltd
Standards,Early Years,Children & Young People,Flying Start Grant,Supplies & Services,"Equipment, Furniture and Materials",Equipment Purchases,,18/08/2023,12/09/2023,34.95,,St John Ambulance Supplies
"Leisure, Youth & Outdoor Adventure",Leisure Services,MonLife Directorate,Abergavenny Leisure Centre,Supplies & Services,"Equipment, Furniture and Materials",Equipment Purchases,,04/09/2023,12/09/2023,16.2,,J P Lennard Ltd
"Leisure, Youth & Outdoor Adventure",Leisure Services,MonLife Directorate,Abergavenny Leisure Centre,Supplies & Services,"Equipment, Furniture and Materials",Equipment Purchases,,04/09/2023,12/09/2023,174.2,,J P Lennard Ltd
Adult Services,Community Care Team,Social Care and Health,Abergavenny Adult Team,Third Party Payments,Third Party,Personal Care.,,19/09/2023,25/09/2023,832.4,,Radis Community Care
Schools Total,School Group 2 � Pupil Capacity 144-314,MCC Schools,Dewstow Primary School,Employees,Direct Employee Expenses,Agency Staff,,24/05/2023,25/09/2023,4221.15,,Teaching 4 Wales Ltd
"Commercial, Corporate & landlord Services",Property Services & Facilities Management,Resources,Reactive Maintenance,Premises,"Repairs, Alterations & Maintenance of Buildings",Building Improvements / Maintenance,,01/09/2023,19/09/2023,540,,A.J Quinn Building Contractors Ltd
"Commercial, Corporate & landlord Services",Property Services & Facilities Management,Resources,Reactive Maintenance,Premises,"Repairs, Alterations & Maintenance of Buildings",Building Improvements / Maintenance,,04/09/2023,19/09/2023,146.68,,A.J Quinn Building Contractors Ltd
Schools Total,School Group 2 � Pupil Capacity 144-314,MCC Schools,Castle Park Primary School,Supplies & Services,"Equipment, Furniture and Materials",Rental / Hire,,07/08/2023,04/09/2023,304.48,,Watercoolers Direct
Schools Total,School Group 2 � Pupil Capacity 144-314,MCC Schools,Pembroke Primary School,Employees,Direct Employee Expenses,Agency Staff,,19/07/2023,18/09/2023,96.05,,Teaching 4 Wales Ltd
Schools Total,School Group 2 � Pupil Capacity 144-314,MCC Schools,Pembroke Primary School,Employees,Direct Employee Expenses,Agency Staff,,19/07/2023,18/09/2023,2914.16,,Teaching 4 Wales Ltd
Adult Services,Community Care Team,Social Care and Health,Abergavenny Adult Team,Third Party Payments,Third Party,Personal Care.,,18/09/2023,19/09/2023,19.8,,REDACTED PERSONAL DATA
Adult Services,Community Care Team,Social Care and Health,Abergavenny Adult Team,Third Party Payments,Third Party,Personal Care.,,18/09/2023,19/09/2023,19.8,,REDACTED PERSONAL DATA
Adult Services,Community Care Team,Social Care and Health,Abergavenny Adult Team,Third Party Payments,Third Party,Personal Care.,,18/09/2023,19/09/2023,19.8,,REDACTED PERSONAL DATA
Adult Services,Community Care Team,Social Care and Health,Abergavenny Adult Team,Third Party Payments,Third Party,Personal Care.,,18/09/2023,19/09/2023,43.6,,REDACTED PERSONAL DATA
Adult Services,Community Care Team,Social Care and Health,Abergavenny Adult Team,Third Party Payments,Third Party,Personal Care.,,18/09/2023,19/09/2023,43.6,,REDACTED PERSONAL DATA
Adult Services,Community Care Team,Social Care and Health,Abergavenny Adult Team,Third Party Payments,Third Party,Personal Care.,,18/09/2023,19/09/2023,43.6,,REDACTED PERSONAL DATA
Adult Services,Community Care Team,Social Care and Health,Abergavenny Adult Team,Third Party Payments,Third Party,Personal Care.,,17/08/2023,07/09/2023,3884.16,,Radis Community Care
Schools Total,School Group 2 � Pupil Capacity 144-314,MCC Schools,Shirenewton Primary School,Employees,Direct Employee Expenses,Agency Staff,,19/07/2023,19/09/2023,320,,Affinity Workforce Solutions Ltd
Adult Services,Community Care Team,Social Care and Health,Abergavenny Adult Team,Third Party Payments,Third Party,Personal Care.,,17/08/2023,07/09/2023,259,,Radis Community Care
Adult Services,Community Care Team,Social Care and Health,Abergavenny Adult Team,Third Party Payments,Third Party,Personal Care.,,17/08/2023,07/09/2023,518,,Radis Community Care
"Commercial, Corporate & landlord Services",Property Services & Facilities Management,Resources,Usk Accommodation,Premises,"Repairs, Alterations & Maintenance of Buildings",Building Improvements / Maintenance,,08/06/2023,07/09/2023,1327,,Hydro-Logic Services Ltd
"Commercial, Corporate & landlord Services",Property Services & Facilities Management,Resources,External Clients,Premises,"Repairs, Alterations & Maintenance of Buildings",Building Improvements / Maintenance,,22/08/2023,19/09/2023,146.69,,A.J Quinn Building Contractors Ltd
"Commercial, Corporate & landlord Services",Property Services & Facilities Management,Resources,External Clients,Premises,"Repairs, Alterations & Maintenance of Buildings",Building Improvements / Maintenance,,23/08/2023,19/09/2023,139.76,,A.J Quinn Building Contractors Ltd
"Commercial, Corporate & landlord Services",Property Services & Facilities Management,Resources,Reactive Maintenance,Premises,"Repairs, Alterations & Maintenance of Buildings",Building Improvements / Maintenance,,22/08/2023,19/09/2023,34.5,,A.J Quinn Building Contractors Ltd
"Commercial, Corporate & landlord Services",Property Services & Facilities Management,Resources,Reactive Maintenance,Premises,"Repairs, Alterations & Maintenance of Buildings",Building Improvements / Maintenance,,21/08/2023,19/09/2023,148.5,,A.J Quinn Building Contractors Ltd
Schools Total,School Group 7 � Pupil Capacity 501-1800,MCC Schools,Monmouth Comprehensive,Employees,Direct Employee Expenses,Agency Staff,,20/09/2023,26/09/2023,995.99,,Back Office Support Services Ltd (Education Supply Pool)
Schools Total,School Group 7 � Pupil Capacity 501-1800,MCC Schools,Monmouth Comprehensive,Employees,Direct Employee Expenses,Agency Staff,,20/09/2023,26/09/2023,480.01,,Back Office Support Services Ltd (Education Supply Pool)
Schools Total,School Group 7 � Pupil Capacity 501-1800,MCC Schools,Monmouth Comprehensive,Employees,Direct Employee Expenses,Agency Staff,,20/09/2023,26/09/2023,416,,Back Office Support Services Ltd (Education Supply Pool)
Schools Total,School Group 7 � Pupil Capacity 501-1800,MCC Schools,Monmouth Comprehensive,Employees,Direct Employee Expenses,Agency Staff,,20/09/2023,26/09/2023,240,,Back Office Support Services Ltd (Education Supply Pool)
Schools Total,School Group 7 � Pupil Capacity 501-1800,MCC Schools,Monmouth Comprehensive,Employees,Direct Employee Expenses,Agency Staff,,20/09/2023,26/09/2023,450.01,,Back Office Support Services Ltd (Education Supply Pool)
Adult Services,Community Care Team,Social Care and Health,Abergavenny Adult Team,Third Party Payments,Third Party,Personal Care.,,19/09/2023,25/09/2023,346.79,,Radis Community Care
Adult Services,Community Care Team,Social Care and Health,Abergavenny Adult Team,Third Party Payments,Third Party,Personal Care.,,19/09/2023,25/09/2023,1109.86,,Radis Community Care
Adult Services,Community Care Team,Social Care and Health,Abergavenny Adult Team,Third Party Payments,Third Party,Personal Care.,,19/09/2023,25/09/2023,1553.44,,Radis Community Care
Schools Total,SCHGRP3 � School Group 3 � Pupil Capacity 315-500,MCC Schools,The Dell Primary School,Employees,Direct Employee Expenses,Agency Staff,,03/09/2023,08/09/2023,214.43,,New Directions Education Ltd
Schools Total,School Group 2 � Pupil Capacity 144-314,MCC Schools,Cross Ash Primary School,Employees,Direct Employee Expenses,Agency Staff,,03/09/2023,08/09/2023,57.5,,New Directions Education Ltd
Adult Services,Community Care Team,Social Care and Health,Chepstow Adult Team,Third Party Payments,Third Party,Personal Care.,,17/08/2023,07/09/2023,647.36,,Radis Community Care
Adult Services,Community Care Team,Social Care and Health,Chepstow Adult Team,Third Party Payments,Third Party,Personal Care.,,17/08/2023,07/09/2023,138.72,,Radis Community Care
Adult Services,Community Care Team,Social Care and Health,Chepstow Adult Team,Third Party Payments,Third Party,Personal Care.,,04/09/2023,07/09/2023,359.1,,Lougher Home Care Ltd
Adult Services,Community Care Team,Social Care and Health,Chepstow Adult Team,Third Party Payments,Third Party,Personal Care.,,04/09/2023,07/09/2023,798,,Lougher Home Care Ltd
Adult Services,Community Care Team,Social Care and Health,Chepstow Adult Team,Third Party Payments,Third Party,Personal Care.,,17/08/2023,07/09/2023,240.42,,Radis Community Care
Adult Services,Community Care Team,Social Care and Health,Chepstow Adult Team,Third Party Payments,Third Party,Personal Care.,,17/08/2023,07/09/2023,772.1,,Radis Community Care
Adult Services,Community Care Team,Social Care and Health,Chepstow Adult Team,Third Party Payments,Third Party,Personal Care.,,17/08/2023,07/09/2023,518,,Radis Community Care
Adult Services,Community Care Team,Social Care and Health,Chepstow Adult Team,Third Party Payments,Third Party,Personal Care.,,17/08/2023,07/09/2023,357.18,,Radis Community Care
Adult Services,Community Care Team,Social Care and Health,Chepstow Adult Team,Third Party Payments,Third Party,Personal Care.,,17/08/2023,07/09/2023,208.05,,Radis Community Care
Schools Total,School Group 2 � Pupil Capacity 144-314,MCC Schools,St Mary�s RC Primary School (VA),Supplies & Services,"Equipment, Furniture and Materials",Materials & Consumables.,,20/09/2023,26/09/2023,14.16,,Amazon Payments UK Limited
Schools Total,School Group 2 � Pupil Capacity 144-314,MCC Schools,Cantref Primary School,Supplies & Services,"Equipment, Furniture and Materials",Materials & Consumables.,,08/09/2023,12/09/2023,6.66,,Amazon Payments UK Limited
Schools Total,School Group 2 � Pupil Capacity 144-314,MCC Schools,Cantref Primary School,Supplies & Services,"Equipment, Furniture and Materials",Materials & Consumables.,,08/09/2023,12/09/2023,17.48,,Amazon Payments UK Limited
Schools Total,School Group 2 � Pupil Capacity 144-314,MCC Schools,Cantref Primary School,Supplies & Services,"Equipment, Furniture and Materials",Materials & Consumables.,,07/09/2023,12/09/2023,15.79,,Amazon Payments UK Limited
Schools Total,School Group 2 � Pupil Capacity 144-314,MCC Schools,St Mary�s RC Primary School (VA),Supplies & Services,"Equipment, Furniture and Materials",Materials & Consumables.,,20/09/2023,26/09/2023,13.99,,Amazon Payments UK Limited
Schools Total,School Group 2 � Pupil Capacity 144-314,MCC Schools,Thornwell Primary School,Supplies & Services,"Equipment, Furniture and Materials",Materials & Consumables.,,21/07/2023,12/09/2023,19.24,,Wye Valley Country Store
Schools Total,School Group 2 � Pupil Capacity 144-314,MCC Schools,Thornwell Primary School,Supplies & Services,"Equipment, Furniture and Materials",Materials & Consumables.,,21/07/2023,12/09/2023,13.99,,Wye Valley Country Store
Schools Total,School Group 2 � Pupil Capacity 144-314,MCC Schools,Thornwell Primary School,Supplies & Services,"Equipment, Furniture and Materials",Materials & Consumables.,,21/07/2023,12/09/2023,-13.99,,Wye Valley Country Store
Schools Total,School Group 2 � Pupil Capacity 144-314,MCC Schools,Archbishop Rowan Williams CiW Primary School (VA),Supplies & Services,"Equipment, Furniture and Materials",Materials & Consumables.,,03/07/2023,12/09/2023,100,,Science Made Simple
Adult Services,Community Care Team,Social Care and Health,Chepstow Adult Team,Third Party Payments,Third Party,Personal Care.,,19/09/2023,25/09/2023,388.36,,Radis Community Care
Adult Services,Community Care Team,Social Care and Health,Chepstow Adult Team,Third Party Payments,Third Party,Personal Care.,,19/09/2023,25/09/2023,138.7,,Radis Community Care
Adult Services,Community Care Team,Social Care and Health,Chepstow Adult Team,Third Party Payments,Third Party,Personal Care.,,19/09/2023,25/09/2023,370,,Radis Community Care
Adult Services,Community Care Team,Social Care and Health,Chepstow Adult Team,Third Party Payments,Third Party,Personal Care.,,19/09/2023,25/09/2023,346.75,,Radis Community Care
Adult Services,Community Care Team,Social Care and Health,Chepstow Adult Team,Third Party Payments,Third Party,Personal Care.,,19/09/2023,25/09/2023,795.27,,Radis Community Care
Adult Services,Community Care Team,Social Care and Health,Chepstow Adult Team,Third Party Payments,Third Party,Personal Care.,,19/09/2023,25/09/2023,1059.12,,Radis Community Care
Schools Total,School Group 2 � Pupil Capacity 144-314,MCC Schools,St Mary�s RC Primary School (VA),Supplies & Services,"Equipment, Furniture and Materials",Materials & Consumables.,,22/09/2023,29/09/2023,10.82,,Amazon Payments UK Limited
Schools Total,School Group 2 � Pupil Capacity 144-314,MCC Schools,St Mary�s RC Primary School (VA),Supplies & Services,"Equipment, Furniture and Materials",Materials & Consumables.,,22/09/2023,29/09/2023,9.16,,Amazon Payments UK Limited
Adult Services,Community Care Team,Social Care and Health,Chepstow Adult Team,Third Party Payments,Third Party,Personal Care.,,02/09/2023,18/09/2023,125,,Helping Hands
Schools Total,School Group 2 � Pupil Capacity 144-314,MCC Schools,Thornwell Primary School,Supplies & Services,"Equipment, Furniture and Materials",Materials & Consumables.,,10/08/2023,12/09/2023,13.99,,Amazon Payments UK Limited
Adult Services,Community Care Team,Social Care and Health,Chepstow Adult Team,Third Party Payments,Third Party,Personal Care.,,11/09/2023,12/09/2023,12.96,,REDACTED PERSONAL DATA
Adult Services,Community Care Team,Social Care and Health,Chepstow Adult Team,Third Party Payments,Third Party,Personal Care.,,19/09/2023,25/09/2023,4853.45,,Radis Community Care
Adult Services,Community Care Team,Social Care and Health,Chepstow Adult Team,Third Party Payments,Third Party,Personal Care.,,19/09/2023,25/09/2023,517.98,,Radis Community Care
Adult Services,Community Care Team,Social Care and Health,Chepstow Adult Team,Third Party Payments,Third Party,Personal Care.,,19/09/2023,25/09/2023,369.87,,Radis Community Care
"Commercial, Corporate & landlord Services",Property Services & Facilities Management,Resources,Gwent Police Collaboration,Premises,"Repairs, Alterations & Maintenance of Buildings",Building Improvements / Maintenance,,12/09/2023,21/09/2023,82.59,,REDACTED PERSONAL DATA
"Commercial, Corporate & landlord Services",Property Services & Facilities Management,Resources,Gwent Police Collaboration,Premises,"Repairs, Alterations & Maintenance of Buildings",Building Improvements / Maintenance,,22/08/2023,22/09/2023,188.62,,A.J Quinn Building Contractors Ltd
"Commercial, Corporate & landlord Services",Property Services & Facilities Management,Resources,Gwent Police Collaboration,Premises,"Repairs, Alterations & Maintenance of Buildings",Building Improvements / Maintenance,,23/08/2023,22/09/2023,34.5,,A.J Quinn Building Contractors Ltd
Schools Total,School Group 2 � Pupil Capacity 144-314,MCC Schools,Thornwell Primary School,Supplies & Services,"Equipment, Furniture and Materials",Provisions.,,07/09/2023,12/09/2023,33.37,,Dole
Neighbourhood Services,Waste and Street Services,Communities & Place,Refuse & Cleansing Operations,Premises,"Repairs, Alterations & Maintenance of Buildings",Building Improvements / Maintenance,,25/07/2023,04/09/2023,5517.45,,EFS Systems (UK) Ltd
Neighbourhood Services,Waste and Street Services,Communities & Place,Refuse & Cleansing Operations,Premises,"Repairs, Alterations & Maintenance of Buildings",Building Improvements / Maintenance,,25/07/2023,04/09/2023,110.25,,EFS Systems (UK) Ltd
"Leisure, Youth & Outdoor Adventure",Leisure Services,MonLife Directorate,Abergavenny Leisure Centre,Premises,"Repairs, Alterations & Maintenance of Buildings",Premises Repairs And Maintenance,,18/08/2023,12/09/2023,121.67,,UNIVAR
"Commercial, Corporate & landlord Services",Property Services & Facilities Management,Resources,Gwent Police Collaboration,Premises,"Repairs, Alterations & Maintenance of Buildings",Building Improvements / Maintenance,,12/09/2023,21/09/2023,114.98,,REDACTED PERSONAL DATA
Children Services,Children Services Other,Social Care and Health,Therapeutic Service,Premises,"Repairs, Alterations & Maintenance of Buildings",Building Improvements / Maintenance,,21/06/2023,06/09/2023,375,,Foresight Fire Prevention Ltd
"Commercial, Corporate & landlord Services",Property Services & Facilities Management,Resources,Gwent Police Collaboration,Premises,"Repairs, Alterations & Maintenance of Buildings",Building Improvements / Maintenance,,09/08/2023,06/09/2023,98,,EFS Systems (UK) Ltd
"Commercial, Corporate & landlord Services",Property Services & Facilities Management,Resources,Gwent Police Collaboration,Premises,"Repairs, Alterations & Maintenance of Buildings",Building Improvements / Maintenance,,09/08/2023,06/09/2023,52.65,,EFS Systems (UK) Ltd
"Leisure, Youth & Outdoor Adventure",Leisure Services,MonLife Directorate,Abergavenny Leisure Centre,Premises,"Repairs, Alterations & Maintenance of Buildings",Premises Repairs And Maintenance,,23/08/2023,12/09/2023,756,,UNIVAR
"Commercial, Corporate & landlord Services",Asset Management,Resources,MCC Markets,Premises,"Repairs, Alterations & Maintenance of Buildings",Building Improvements / Maintenance,,14/09/2023,18/09/2023,86.68,,Mr Paper Ltd
Adult Services,Management Team,Social Care and Health,Adult Services Man/Support,Premises,"Repairs, Alterations & Maintenance of Buildings",Building Improvements / Maintenance,,14/08/2023,12/09/2023,1000,,ADSS Cymru
"Leisure, Youth & Outdoor Adventure",Youth & Education,MonLife Directorate,Gilwern,Supplies & Services,"Equipment, Furniture and Materials",Provisions.,,04/10/2022,27/09/2023,73.05,,Dole Foodservice (Hereford)
Schools Total,School Group 2 � Pupil Capacity 144-314,MCC Schools,Trellech Primary School,Premises,"Repairs, Alterations & Maintenance of Buildings",Premises Repairs And Maintenance,,06/06/2023,27/09/2023,37.38,,Handyman House (Lydney) Ltd
Capital Division,Capital Dept,Capital,Capital Programme,Premises,"Repairs, Alterations & Maintenance of Buildings",Premises Repairs And Maintenance,,01/09/2023,06/09/2023,2134186.34,,REDACTED PERSONAL DATA
Finance & Business Devlopment,Museums,MonLife Directorate,Museums General,Supplies & Services,"Equipment, Furniture and Materials",Provisions.,,06/09/2023,12/09/2023,92.7,,Brookes Wye Valley Dairy Co Ltd
Schools Total,School Group 7 � Pupil Capacity 501-1800,MCC Schools,King Henry 3-19 School,Premises,"Repairs, Alterations & Maintenance of Buildings",Premises Repairs And Maintenance,,13/09/2023,18/09/2023,12.49,,Screwfix Trade UK
Schools Total,School Group 7 � Pupil Capacity 501-1800,MCC Schools,King Henry 3-19 School,Premises,"Repairs, Alterations & Maintenance of Buildings",Premises Repairs And Maintenance,,13/09/2023,18/09/2023,2.47,,Screwfix Trade UK
"Commercial, Corporate & landlord Services",Property Services & Facilities Management,Resources,Gwent Police Collaboration,Premises,"Repairs, Alterations & Maintenance of Buildings",Building Improvements / Maintenance,,22/08/2023,19/09/2023,49.18,,A.J Quinn Building Contractors Ltd
"Commercial, Corporate & landlord Services",Property Services & Facilities Management,Resources,Gwent Police Collaboration,Premises,"Repairs, Alterations & Maintenance of Buildings",Building Improvements / Maintenance,,23/08/2023,19/09/2023,77.8,,A.J Quinn Building Contractors Ltd
"Commercial, Corporate & landlord Services",Asset Management,Resources,MCC Markets,Premises,"Repairs, Alterations & Maintenance of Buildings",Building Improvements / Maintenance,,11/09/2023,18/09/2023,30,,Handprint Production Ltd T/A Pom
"Leisure, Youth & Outdoor Adventure",Leisure Services,MonLife Directorate,Caldicot Leisure Centre,Premises,"Repairs, Alterations & Maintenance of Buildings",Premises Repairs And Maintenance,,14/09/2023,19/09/2023,78.15,,J P Lennard Ltd
"Commercial, Corporate & landlord Services",Property Services & Facilities Management,Resources,Gwent Police Collaboration,Premises,"Repairs, Alterations & Maintenance of Buildings",Building Improvements / Maintenance,,22/08/2023,27/09/2023,128.52,,Fire Safety Direct
"Commercial, Corporate & landlord Services",Property Services & Facilities Management,Resources,Gwent Police Collaboration,Premises,"Repairs, Alterations & Maintenance of Buildings",Building Improvements / Maintenance,,24/08/2023,27/09/2023,253.36,,Fire Safety Direct
Schools Total,School Group 2 � Pupil Capacity 144-314,MCC Schools,Cross Ash Primary School,Supplies & Services,"Equipment, Furniture and Materials",Provisions.,,07/07/2023,25/09/2023,129.6,,Howard Plastics Ltd
Schools Total,School Group 7 � Pupil Capacity 501-1800,MCC Schools,King Henry 3-19 School,Premises,"Repairs, Alterations & Maintenance of Buildings",Premises Repairs And Maintenance,,14/07/2023,18/09/2023,7.49,,Screwfix Trade UK
Schools Total,School Group 7 � Pupil Capacity 501-1800,MCC Schools,King Henry 3-19 School,Premises,"Repairs, Alterations & Maintenance of Buildings",Premises Repairs And Maintenance,,12/09/2023,18/09/2023,10.75,,Screwfix Trade UK
Schools Total,School Group 7 � Pupil Capacity 501-1800,MCC Schools,King Henry 3-19 School,Premises,"Repairs, Alterations & Maintenance of Buildings",Premises Repairs And Maintenance,,12/09/2023,18/09/2023,7.49,,Screwfix Trade UK
Schools Total,School Group 7 � Pupil Capacity 501-1800,MCC Schools,Monmouth Comprehensive,Premises,"Repairs, Alterations & Maintenance of Buildings",Premises Repairs And Maintenance,,15/09/2023,19/09/2023,10.8,,Lock Doctor Services Ltd
Resources,Support Services,Children & Young People,Financial Mgmt Services,Premises,"Repairs, Alterations & Maintenance of Buildings",Premises Repairs And Maintenance,,11/09/2023,15/09/2023,402.79,,REMUS
Adult Services,Community Care Team,Social Care and Health,Chepstow Adult Team,Third Party Payments,Third Party,Personal Care.,,19/09/2023,25/09/2023,513.37,,Radis Community Care
Adult Services,Community Care Team,Social Care and Health,Chepstow Adult Team,Third Party Payments,Third Party,Personal Care.,,12/09/2023,26/09/2023,1438.4,,Home Instead Senior Care
Schools Total,School Group 1 � Pupil Capacity 1-143,MCC Schools,Ysgol Gymraeg Y Ffin,Supplies & Services,"Equipment, Furniture and Materials",Materials & Consumables.,,21/09/2023,26/09/2023,255,,Hope Education Ltd
Schools Total,School Group 1 � Pupil Capacity 1-143,MCC Schools,Ysgol Gymraeg Y Ffin,Supplies & Services,"Equipment, Furniture and Materials",Materials & Consumables.,,21/09/2023,26/09/2023,290,,Hope Education Ltd
Schools Total,School Group 1 � Pupil Capacity 1-143,MCC Schools,Ysgol Gymraeg Y Ffin,Supplies & Services,"Equipment, Furniture and Materials",Materials & Consumables.,,21/09/2023,26/09/2023,155,,Hope Education Ltd
Schools Total,School Group 2 � Pupil Capacity 144-314,MCC Schools,Cantref Primary School,Supplies & Services,"Equipment, Furniture and Materials",Materials & Consumables.,,21/09/2023,26/09/2023,81.22,,Hope Education Ltd
Adult Services,Community Care Team,Social Care and Health,Chepstow Adult Team,Third Party Payments,Third Party,Personal Care.,,19/09/2023,25/09/2023,1400.88,,Radis Community Care
Schools Total,School Group 2 � Pupil Capacity 144-314,MCC Schools,Archbishop Rowan Williams CiW Primary School (VA),Supplies & Services,"Equipment, Furniture and Materials",Materials & Consumables.,,25/08/2023,07/09/2023,55.78,,RM Educational Resources Ltd
Adult Services,Community Care Team,Social Care and Health,Chepstow Adult Team,Third Party Payments,Third Party,Personal Care.,,04/09/2023,07/09/2023,1276.8,,Lougher Home Care Ltd
Schools Total,School Group 2 � Pupil Capacity 144-314,MCC Schools,Dewstow Primary School,Supplies & Services,"Equipment, Furniture and Materials",Materials & Consumables.,,06/09/2023,21/09/2023,180,,Maths Tree Resources Ltd
Adult Services,Community Care Team,Social Care and Health,Chepstow Adult Team,Third Party Payments,Third Party,Personal Care.,,19/09/2023,25/09/2023,799.87,,Radis Community Care
Adult Services,Community Care Team,Social Care and Health,Chepstow Adult Team,Third Party Payments,Third Party,Personal Care.,,19/09/2023,25/09/2023,277.4,,Radis Community Care
Adult Services,Community Care Team,Social Care and Health,Chepstow Adult Team,Third Party Payments,Third Party,Personal Care.,,19/09/2023,25/09/2023,3615.75,,Radis Community Care
Adult Services,Community Care Team,Social Care and Health,Chepstow Adult Team,Third Party Payments,Third Party,Personal Care.,,19/09/2023,25/09/2023,647.4,,Radis Community Care
Adult Services,Community Care Team,Social Care and Health,Chepstow Adult Team,Third Party Payments,Third Party,Personal Care.,,19/09/2023,25/09/2023,1882.04,,Radis Community Care
Adult Services,Community Care Team,Social Care and Health,Chepstow Adult Team,Third Party Payments,Third Party,Personal Care.,,19/09/2023,25/09/2023,3222.47,,Radis Community Care
Adult Services,Community Care Team,Social Care and Health,Chepstow Adult Team,Third Party Payments,Third Party,Personal Care.,,19/09/2023,25/09/2023,1049.62,,Radis Community Care
Adult Services,Community Care Team,Social Care and Health,Chepstow Adult Team,Third Party Payments,Third Party,Personal Care.,,19/09/2023,25/09/2023,1530.34,,Radis Community Care
Adult Services,Community Care Team,Social Care and Health,Chepstow Adult Team,Third Party Payments,Third Party,Personal Care.,,19/09/2023,25/09/2023,651.97,,Radis Community Care
Adult Services,Community Care Team,Social Care and Health,Chepstow Adult Team,Third Party Payments,Third Party,Personal Care.,,19/09/2023,25/09/2023,1183.62,,Radis Community Care
Adult Services,Community Care Team,Social Care and Health,Chepstow Adult Team,Third Party Payments,Third Party,Personal Care.,,04/09/2023,08/09/2023,1117.2,,Lougher Home Care Ltd
Schools Total,School Group 2 � Pupil Capacity 144-314,MCC Schools,Thornwell Primary School,Supplies & Services,"Equipment, Furniture and Materials",Materials & Consumables.,,04/08/2023,12/09/2023,9.09,,Amazon Payments UK Limited
Schools Total,School Group 2 � Pupil Capacity 144-314,MCC Schools,Thornwell Primary School,Supplies & Services,"Equipment, Furniture and Materials",Materials & Consumables.,,11/08/2023,12/09/2023,16.66,,Amazon Payments UK Limited
Schools Total,School Group 2 � Pupil Capacity 144-314,MCC Schools,Thornwell Primary School,Supplies & Services,"Equipment, Furniture and Materials",Materials & Consumables.,,09/08/2023,12/09/2023,16.66,,Amazon Payments UK Limited
Adult Services,Community Care Team,Social Care and Health,Chepstow Adult Team,Third Party Payments,Third Party,Personal Care.,,04/09/2023,08/09/2023,957.6,,Lougher Home Care Ltd
Adult Services,Community Care Team,Social Care and Health,Chepstow Adult Team,Third Party Payments,Third Party,Personal Care.,,04/09/2023,08/09/2023,1333.8,,Lougher Home Care Ltd
Adult Services,Community Care Team,Social Care and Health,Chepstow Adult Team,Third Party Payments,Third Party,Personal Care.,,04/09/2023,08/09/2023,4149.6,,Lougher Home Care Ltd
Adult Services,Community Care Team,Social Care and Health,Chepstow Adult Team,Third Party Payments,Third Party,Personal Care.,,16/08/2023,08/09/2023,2532,,Kind Tailored Care Ltd
Adult Services,Community Care Team,Social Care and Health,Chepstow Adult Team,Third Party Payments,Third Party,Personal Care.,,04/09/2023,08/09/2023,1094.4,,Lougher Home Care Ltd
Adult Services,Community Care Team,Social Care and Health,Chepstow Adult Team,Third Party Payments,Third Party,Personal Care.,,04/09/2023,08/09/2023,2074.8,,Lougher Home Care Ltd
Adult Services,Community Care Team,Social Care and Health,Chepstow Adult Team,Third Party Payments,Third Party,Personal Care.,,04/09/2023,08/09/2023,718.2,,Lougher Home Care Ltd
Adult Services,Community Care Team,Social Care and Health,Chepstow Adult Team,Third Party Payments,Third Party,Personal Care.,,04/09/2023,08/09/2023,957.6,,Lougher Home Care Ltd
Adult Services,Community Care Team,Social Care and Health,Chepstow Adult Team,Third Party Payments,Third Party,Personal Care.,,04/09/2023,08/09/2023,552.9,,Lougher Home Care Ltd
Adult Services,Community Care Team,Social Care and Health,Chepstow Adult Team,Third Party Payments,Third Party,Personal Care.,,04/09/2023,08/09/2023,1915.2,,Lougher Home Care Ltd
Adult Services,Community Care Team,Social Care and Health,Chepstow Adult Team,Third Party Payments,Third Party,Personal Care.,,04/09/2023,08/09/2023,957.6,,Lougher Home Care Ltd
Adult Services,Community Care Team,Social Care and Health,Chepstow Adult Team,Third Party Payments,Third Party,Personal Care.,,04/09/2023,08/09/2023,3670.8,,Lougher Home Care Ltd
Adult Services,Community Care Team,Social Care and Health,Chepstow Adult Team,Third Party Payments,Third Party,Personal Care.,,04/09/2023,08/09/2023,1960.8,,Lougher Home Care Ltd
Adult Services,Community Care Team,Social Care and Health,Chepstow Adult Team,Third Party Payments,Third Party,Personal Care.,,04/09/2023,08/09/2023,1436.4,,Lougher Home Care Ltd
Adult Services,Community Care Team,Social Care and Health,Chepstow Adult Team,Third Party Payments,Third Party,Personal Care.,,04/09/2023,08/09/2023,4138.2,,Lougher Home Care Ltd
Adult Services,Community Care Team,Social Care and Health,Chepstow Adult Team,Third Party Payments,Third Party,Personal Care.,,04/09/2023,08/09/2023,2097.6,,Lougher Home Care Ltd
Adult Services,Community Care Team,Social Care and Health,Chepstow Adult Team,Third Party Payments,Third Party,Personal Care.,,04/09/2023,08/09/2023,239.4,,Lougher Home Care Ltd
Adult Services,Community Care Team,Social Care and Health,Chepstow Adult Team,Third Party Payments,Third Party,Personal Care.,,04/09/2023,08/09/2023,399,,Lougher Home Care Ltd
Schools Total,School Group 2 � Pupil Capacity 144-314,MCC Schools,St Mary�s RC Primary School (VA),Supplies & Services,"Equipment, Furniture and Materials",Materials & Consumables.,,08/09/2023,12/09/2023,11.64,,Amazon Payments UK Limited
Schools Total,School Group 2 � Pupil Capacity 144-314,MCC Schools,Trellech Primary School,Supplies & Services,"Equipment, Furniture and Materials",Materials & Consumables.,,30/08/2023,12/09/2023,7.25,,ESPO
Schools Total,School Group 2 � Pupil Capacity 144-314,MCC Schools,Cantref Primary School,Supplies & Services,"Equipment, Furniture and Materials",Materials & Consumables.,,07/09/2023,12/09/2023,16.37,,RM Educational Resources Ltd
Schools Total,School Group 2 � Pupil Capacity 144-314,MCC Schools,Cantref Primary School,Supplies & Services,"Equipment, Furniture and Materials",Materials & Consumables.,,06/09/2023,12/09/2023,2.75,,Hope Education Ltd
Schools Total,School Group 2 � Pupil Capacity 144-314,MCC Schools,Cantref Primary School,Supplies & Services,"Equipment, Furniture and Materials",Materials & Consumables.,,06/09/2023,12/09/2023,4.89,,Hope Education Ltd
Schools Total,School Group 2 � Pupil Capacity 144-314,MCC Schools,Cantref Primary School,Supplies & Services,"Equipment, Furniture and Materials",Materials & Consumables.,,06/09/2023,12/09/2023,13.64,,Hope Education Ltd
Schools Total,School Group 2 � Pupil Capacity 144-314,MCC Schools,Cantref Primary School,Supplies & Services,"Equipment, Furniture and Materials",Materials & Consumables.,,06/09/2023,12/09/2023,17,,Hope Education Ltd
Schools Total,School Group 2 � Pupil Capacity 144-314,MCC Schools,Our Lady & St Michael's (OLSM) RC Primary School (VA),Supplies & Services,"Equipment, Furniture and Materials",Materials & Consumables.,,06/09/2023,12/09/2023,125.69,,Hope Education Ltd
Schools Total,School Group 2 � Pupil Capacity 144-314,MCC Schools,Shirenewton Primary School,Supplies & Services,"Equipment, Furniture and Materials",Materials & Consumables.,,19/07/2023,19/09/2023,963.99,,Educational Printing Service Ltd
Adult Services,Community Care Team,Social Care and Health,Chepstow Adult Team,Third Party Payments,Third Party,Personal Care.,,04/09/2023,08/09/2023,1732.8,,Lougher Home Care Ltd
Adult Services,Community Care Team,Social Care and Health,Chepstow Adult Team,Third Party Payments,Third Party,Personal Care.,,04/09/2023,08/09/2023,3351.6,,Lougher Home Care Ltd
Adult Services,Community Care Team,Social Care and Health,Chepstow Adult Team,Third Party Payments,Third Party,Personal Care.,,19/09/2023,25/09/2023,1387.1,,Radis Community Care
Adult Services,Community Care Team,Social Care and Health,Chepstow Adult Team,Third Party Payments,Third Party,Personal Care.,,19/09/2023,25/09/2023,832.21,,Radis Community Care
Adult Services,Community Care Team,Social Care and Health,Chepstow Adult Team,Third Party Payments,Third Party,Personal Care.,,19/09/2023,25/09/2023,1553.44,,Radis Community Care
Adult Services,Community Care Team,Social Care and Health,Chepstow Adult Team,Third Party Payments,Third Party,Personal Care.,,19/09/2023,25/09/2023,924.85,,Radis Community Care
Adult Services,Community Care Team,Social Care and Health,Chepstow Adult Team,Third Party Payments,Third Party,Personal Care.,,19/09/2023,25/09/2023,943.35,,Radis Community Care
Adult Services,Community Care Team,Social Care and Health,Chepstow Adult Team,Third Party Payments,Third Party,Personal Care.,,04/09/2023,08/09/2023,2057.7,,Lougher Home Care Ltd
Adult Services,Community Care Team,Social Care and Health,Chepstow Adult Team,Third Party Payments,Third Party,Personal Care.,,04/09/2023,08/09/2023,1561.8,,Lougher Home Care Ltd
Schools Total,School Group 1 � Pupil Capacity 1-143,MCC Schools,Ysgol Gymraeg Y Ffin,Supplies & Services,"Equipment, Furniture and Materials",Materials & Consumables.,,30/08/2023,08/09/2023,7.2,,ESPO
Schools Total,School Group 2 � Pupil Capacity 144-314,MCC Schools,Thornwell Primary School,Supplies & Services,"Equipment, Furniture and Materials",Materials & Consumables.,,04/08/2023,12/09/2023,19.96,,Amazon Payments UK Limited
Schools Total,School Group 2 � Pupil Capacity 144-314,MCC Schools,Llanfoist Fawr Primary School,Third Party Payments,Third Party,School Music Service,,18/09/2023,21/09/2023,630,,Upbeat Music And Arts Service Ltd
Schools Total,School Group 2 � Pupil Capacity 144-314,MCC Schools,Dewstow Primary School,Supplies & Services,"Printing, Stationery and General Office Expenses",Photocopying.,,30/06/2023,18/09/2023,249.19,,Blue Sky Digital Solutions ltd
Children Services,Children Services Teams,Social Care and Health,Long Term Support Team,Third Party Payments,Third Party,Individual Needs,,04/09/2023,19/09/2023,32396,,Midway Transitional Solutions Ltd
Schools Total,School Group 2 � Pupil Capacity 144-314,MCC Schools,Castle Park Primary School,Supplies & Services,"Printing, Stationery and General Office Expenses",Photocopying.,,11/07/2023,07/09/2023,1063.74,,PEAC UK Finance
Schools Total,School Group 7 � Pupil Capacity 501-1800,MCC Schools,Caldicot School,Employees,Direct Employee Expenses,Agency Staff,,03/09/2023,08/09/2023,228,,New Directions Education Ltd
Schools Total,School Group 7 � Pupil Capacity 501-1800,MCC Schools,Caldicot School,Employees,Direct Employee Expenses,Agency Staff,,03/09/2023,08/09/2023,123.24,,New Directions Education Ltd
Schools Total,School Group 7 � Pupil Capacity 501-1800,MCC Schools,Caldicot School,Employees,Direct Employee Expenses,Agency Staff,,03/09/2023,08/09/2023,81.12,,New Directions Education Ltd
Schools Total,School Group 7 � Pupil Capacity 501-1800,MCC Schools,Monmouth Comprehensive,Supplies & Services,"Printing, Stationery and General Office Expenses",Stationery,,14/09/2023,21/09/2023,41.64,,Screwfix Trade UK
Schools Total,School Group 7 � Pupil Capacity 501-1800,MCC Schools,Caldicot School,Employees,Direct Employee Expenses,Agency Staff,,27/08/2023,08/09/2023,116.61,,New Directions Education Ltd
Schools Total,School Group 7 � Pupil Capacity 501-1800,MCC Schools,Caldicot School,Employees,Direct Employee Expenses,Agency Staff,,27/08/2023,08/09/2023,131.82,,New Directions Education Ltd
Standards,Additional Learning Needs,Children & Young People,Additional Learning Needs,Third Party Payments,Third Party,Placement Fees,,01/08/2023,29/09/2023,-19204.83,,Orbis Education and Care
Schools Total,School Group 2 � Pupil Capacity 144-314,MCC Schools,St Mary�s RC Primary School (VA),Supplies & Services,"Printing, Stationery and General Office Expenses",Photocopying.,,18/08/2023,07/09/2023,3340,,CF Corporate Finance Limited
Schools Total,School Group 7 � Pupil Capacity 501-1800,MCC Schools,Monmouth Comprehensive,Supplies & Services,"Printing, Stationery and General Office Expenses",Stationery,,11/09/2023,18/09/2023,5.79,,Newitts
Schools Total,School Group 7 � Pupil Capacity 501-1800,MCC Schools,Monmouth Comprehensive,Supplies & Services,"Printing, Stationery and General Office Expenses",Stationery,,11/09/2023,18/09/2023,33.04,,Newitts
Schools Total,School Group 7 � Pupil Capacity 501-1800,MCC Schools,Monmouth Comprehensive,Supplies & Services,"Printing, Stationery and General Office Expenses",Stationery,,11/09/2023,18/09/2023,45.79,,Newitts
Schools Total,School Group 7 � Pupil Capacity 501-1800,MCC Schools,Monmouth Comprehensive,Supplies & Services,"Printing, Stationery and General Office Expenses",Stationery,,11/09/2023,18/09/2023,29.92,,Newitts
Schools Total,School Group 7 � Pupil Capacity 501-1800,MCC Schools,Monmouth Comprehensive,Supplies & Services,"Printing, Stationery and General Office Expenses",Stationery,,11/09/2023,18/09/2023,174.2,,Newitts
Schools Total,School Group 1 � Pupil Capacity 1-143,MCC Schools,Llandogo Primary School,Supplies & Services,"Printing, Stationery and General Office Expenses",Stationery,,31/08/2023,05/09/2023,4.67,,Hope Education Ltd
Schools Total,School Group 1 � Pupil Capacity 1-143,MCC Schools,Llandogo Primary School,Supplies & Services,"Printing, Stationery and General Office Expenses",Stationery,,31/08/2023,05/09/2023,2.43,,Hope Education Ltd
Schools Total,School Group 2 � Pupil Capacity 144-314,MCC Schools,Llantilio Pertholey CiW Primary School (VC),Supplies & Services,"Printing, Stationery and General Office Expenses",Photocopying.,,09/08/2023,04/09/2023,423.79,,Konica Minolta Bus. Solutions (UK) Ltd
Schools Total,SCHGRP3 � School Group 3 � Pupil Capacity 315-500,MCC Schools,Undy Primary School,Supplies & Services,"Printing, Stationery and General Office Expenses",Stationery,,23/06/2023,25/09/2023,405.51,,Hope Education Ltd
Schools Total,School Group 2 � Pupil Capacity 144-314,MCC Schools,Cross Ash Primary School,Supplies & Services,"Printing, Stationery and General Office Expenses",Stationery,,14/07/2023,25/09/2023,137.9,,Hope Education Ltd
Schools Total,School Group 2 � Pupil Capacity 144-314,MCC Schools,Cross Ash Primary School,Supplies & Services,"Printing, Stationery and General Office Expenses",Stationery,,14/07/2023,25/09/2023,21.76,,Hope Education Ltd
Schools Total,School Group 2 � Pupil Capacity 144-314,MCC Schools,Cross Ash Primary School,Supplies & Services,"Printing, Stationery and General Office Expenses",Stationery,,14/07/2023,25/09/2023,7.35,,Hope Education Ltd
Schools Total,School Group 2 � Pupil Capacity 144-314,MCC Schools,Cross Ash Primary School,Supplies & Services,"Printing, Stationery and General Office Expenses",Stationery,,14/07/2023,25/09/2023,8.49,,Hope Education Ltd
Schools Total,School Group 2 � Pupil Capacity 144-314,MCC Schools,Cross Ash Primary School,Supplies & Services,"Printing, Stationery and General Office Expenses",Stationery,,14/07/2023,25/09/2023,8.49,,Hope Education Ltd
Schools Total,School Group 2 � Pupil Capacity 144-314,MCC Schools,Cross Ash Primary School,Supplies & Services,"Printing, Stationery and General Office Expenses",Stationery,,14/07/2023,25/09/2023,3.7,,Hope Education Ltd
Schools Total,School Group 2 � Pupil Capacity 144-314,MCC Schools,Cross Ash Primary School,Supplies & Services,"Printing, Stationery and General Office Expenses",Stationery,,14/07/2023,25/09/2023,24.3,,Hope Education Ltd
Schools Total,School Group 2 � Pupil Capacity 144-314,MCC Schools,Cross Ash Primary School,Supplies & Services,"Printing, Stationery and General Office Expenses",Stationery,,14/07/2023,25/09/2023,5.7,,Hope Education Ltd
Schools Total,School Group 2 � Pupil Capacity 144-314,MCC Schools,Cross Ash Primary School,Supplies & Services,"Printing, Stationery and General Office Expenses",Stationery,,14/07/2023,25/09/2023,5.28,,Hope Education Ltd
Schools Total,School Group 2 � Pupil Capacity 144-314,MCC Schools,Cross Ash Primary School,Supplies & Services,"Printing, Stationery and General Office Expenses",Stationery,,14/07/2023,25/09/2023,23.2,,Hope Education Ltd
Schools Total,School Group 2 � Pupil Capacity 144-314,MCC Schools,Cross Ash Primary School,Supplies & Services,"Printing, Stationery and General Office Expenses",Stationery,,14/07/2023,25/09/2023,5.18,,Hope Education Ltd
Schools Total,School Group 2 � Pupil Capacity 144-314,MCC Schools,Cross Ash Primary School,Supplies & Services,"Printing, Stationery and General Office Expenses",Stationery,,14/07/2023,25/09/2023,5.18,,Hope Education Ltd
Schools Total,School Group 2 � Pupil Capacity 144-314,MCC Schools,Thornwell Primary School,Supplies & Services,"Equipment, Furniture and Materials",Materials & Consumables.,,04/08/2023,12/09/2023,10.79,,Amazon Payments UK Limited
Schools Total,School Group 2 � Pupil Capacity 144-314,MCC Schools,Thornwell Primary School,Supplies & Services,"Equipment, Furniture and Materials",Materials & Consumables.,,21/07/2023,12/09/2023,36.97,,Wye Valley Country Store
Schools Total,School Group 2 � Pupil Capacity 144-314,MCC Schools,Rogiet Primary School,Supplies & Services,"Equipment, Furniture and Materials",Materials & Consumables.,,07/09/2023,18/09/2023,127.5,,ESPO
Adult Services,Community Care Team,Social Care and Health,Chepstow Adult Team,Third Party Payments,Third Party,Personal Care.,,12/09/2023,26/09/2023,2157.6,,Home Instead Senior Care
Adult Services,Community Care Team,Social Care and Health,Chepstow Adult Team,Third Party Payments,Third Party,Personal Care.,,02/09/2023,15/09/2023,687.5,,Helping Hands
Adult Services,Community Care Team,Social Care and Health,Chepstow Adult Team,Third Party Payments,Third Party,Personal Care.,,12/09/2023,26/09/2023,2697,,Home Instead Senior Care
Adult Services,Community Care Team,Social Care and Health,Chepstow Adult Team,Third Party Payments,Third Party,Personal Care.,,12/09/2023,26/09/2023,2523,,Home Instead Senior Care
Adult Services,Community Care Team,Social Care and Health,Chepstow Adult Team,Third Party Payments,Third Party,Personal Care.,,12/09/2023,26/09/2023,539.4,,Home Instead Senior Care
Adult Services,Community Care Team,Social Care and Health,Chepstow Adult Team,Third Party Payments,Third Party,Personal Care.,,02/09/2023,18/09/2023,1962.5,,Helping Hands
Schools Total,School Group 2 � Pupil Capacity 144-314,MCC Schools,Raglan CiW Primary School (VC),Supplies & Services,"Equipment, Furniture and Materials",Materials & Consumables.,,30/08/2023,19/09/2023,1.2,,ESPO
Schools Total,School Group 2 � Pupil Capacity 144-314,MCC Schools,Rogiet Primary School,Supplies & Services,"Equipment, Furniture and Materials",Materials & Consumables.,,16/08/2023,19/09/2023,6100,,Signet Signs Ltd
Schools Total,SCHGRP3 � School Group 3 � Pupil Capacity 315-500,MCC Schools,The Dell Primary School,Supplies & Services,"Equipment, Furniture and Materials",Materials & Consumables.,,25/07/2023,29/09/2023,199.75,,RM Educational Resources Ltd
Schools Total,School Group 2 � Pupil Capacity 144-314,MCC Schools,Usk CiW Primary School (VC),Supplies & Services,"Equipment, Furniture and Materials",Materials & Consumables.,,19/07/2023,12/09/2023,1.78,,Hope Education Ltd
Schools Total,School Group 2 � Pupil Capacity 144-314,MCC Schools,Usk CiW Primary School (VC),Supplies & Services,"Equipment, Furniture and Materials",Materials & Consumables.,,19/07/2023,12/09/2023,1.41,,Hope Education Ltd
Adult Services,Community Care Team,Social Care and Health,Chepstow Adult Team,Third Party Payments,Third Party,Personal Care.,,12/09/2023,26/09/2023,6559.8,,Home Instead Senior Care
Adult Services,Community Care Team,Social Care and Health,Chepstow Adult Team,Third Party Payments,Third Party,Personal Care.,,12/09/2023,26/09/2023,2876.8,,Home Instead Senior Care
Adult Services,Community Care Team,Social Care and Health,Chepstow Adult Team,Third Party Payments,Third Party,Personal Care.,,12/09/2023,26/09/2023,2337.4,,Home Instead Senior Care
Schools Total,School Group 2 � Pupil Capacity 144-314,MCC Schools,Usk CiW Primary School (VC),Supplies & Services,"Equipment, Furniture and Materials",Materials & Consumables.,,30/08/2023,12/09/2023,20.99,,Yorkshire Purchasing
Schools Total,SCHGRP3 � School Group 3 � Pupil Capacity 315-500,MCC Schools,The Dell Primary School,Supplies & Services,"Equipment, Furniture and Materials",Materials & Consumables.,,24/09/2023,29/09/2023,7.4,,Amazon Payments UK Limited
Adult Services,Community Care Team,Social Care and Health,Chepstow Adult Team,Third Party Payments,Third Party,Personal Care.,,12/09/2023,26/09/2023,4651.6,,Home Instead Senior Care
Adult Services,Community Care Team,Social Care and Health,Chepstow Adult Team,Third Party Payments,Third Party,Personal Care.,,12/09/2023,26/09/2023,6472.8,,Home Instead Senior Care
Adult Services,Community Care Team,Social Care and Health,Chepstow Adult Team,Third Party Payments,Third Party,Personal Care.,,12/09/2023,26/09/2023,823.6,,Home Instead Senior Care
Adult Services,Community Care Team,Social Care and Health,Chepstow Adult Team,Third Party Payments,Third Party,Personal Care.,,12/09/2023,26/09/2023,1798,,Home Instead Senior Care
Adult Services,Community Care Team,Social Care and Health,Chepstow Adult Team,Third Party Payments,Third Party,Personal Care.,,12/09/2023,26/09/2023,3236.4,,Home Instead Senior Care
Adult Services,Community Care Team,Social Care and Health,Chepstow Adult Team,Third Party Payments,Third Party,Personal Care.,,12/09/2023,26/09/2023,6728,,Home Instead Senior Care
Adult Services,Community Care Team,Social Care and Health,Chepstow Adult Team,Third Party Payments,Third Party,Personal Care.,,12/09/2023,26/09/2023,1421,,Home Instead Senior Care
Schools Total,SCHGRP3 � School Group 3 � Pupil Capacity 315-500,MCC Schools,The Dell Primary School,Supplies & Services,"Equipment, Furniture and Materials",Materials & Consumables.,,12/07/2023,05/09/2023,12.71,,Amazon Payments UK Limited
Schools Total,SCHGRP3 � School Group 3 � Pupil Capacity 315-500,MCC Schools,The Dell Primary School,Supplies & Services,"Equipment, Furniture and Materials",Materials & Consumables.,,11/07/2023,05/09/2023,17.44,,Amazon Payments UK Limited
Schools Total,SCHGRP3 � School Group 3 � Pupil Capacity 315-500,MCC Schools,The Dell Primary School,Supplies & Services,"Equipment, Furniture and Materials",Materials & Consumables.,,13/07/2023,05/09/2023,110.82,,Amazon Payments UK Limited
Schools Total,SCHGRP3 � School Group 3 � Pupil Capacity 315-500,MCC Schools,The Dell Primary School,Supplies & Services,"Equipment, Furniture and Materials",Materials & Consumables.,,12/07/2023,05/09/2023,18.66,,Amazon Payments UK Limited
Schools Total,SCHGRP3 � School Group 3 � Pupil Capacity 315-500,MCC Schools,The Dell Primary School,Supplies & Services,"Equipment, Furniture and Materials",Materials & Consumables.,,13/07/2023,05/09/2023,22.48,,Amazon Payments UK Limited
Schools Total,School Group 7 � Pupil Capacity 501-1800,MCC Schools,King Henry 3-19 School,Supplies & Services,"Equipment, Furniture and Materials",Advertising,,04/05/2023,18/09/2023,7,,Net Digitizing UK
Schools Total,School Group 7 � Pupil Capacity 501-1800,MCC Schools,King Henry 3-19 School,Supplies & Services,"Equipment, Furniture and Materials",Advertising,,08/09/2023,18/09/2023,7,,Net Digitizing UK
Schools Total,School Group 7 � Pupil Capacity 501-1800,MCC Schools,King Henry 3-19 School,Supplies & Services,"Equipment, Furniture and Materials",Advertising,,08/09/2023,18/09/2023,276,,Net Digitizing UK
Neighbourhood Services,Waste and Street Services,Communities & Place,Refuse & Cleansing Operations,Supplies & Services,"Equipment, Furniture and Materials",Materials & Consumables.,,31/08/2023,06/09/2023,455.8,,Tudor Environmental
Schools Total,School Group 7 � Pupil Capacity 501-1800,MCC Schools,King Henry 3-19 School,Supplies & Services,"Equipment, Furniture and Materials",Advertising,,04/05/2023,18/09/2023,385,,Net Digitizing UK
Neighbourhood Services,Waste and Street Services,Communities & Place,Fitting Shop Grounds,Supplies & Services,"Equipment, Furniture and Materials",Materials & Consumables.,,12/09/2023,21/09/2023,174.25,,David Evans Agricultural Ltd
Neighbourhood Services,Waste and Street Services,Communities & Place,Fitting Shop Grounds,Supplies & Services,"Equipment, Furniture and Materials",Materials & Consumables.,,12/09/2023,21/09/2023,393.6,,David Evans Agricultural Ltd
Neighbourhood Services,Waste and Street Services,Communities & Place,Fitting Shop Grounds,Supplies & Services,"Equipment, Furniture and Materials",Materials & Consumables.,,12/09/2023,21/09/2023,51.25,,David Evans Agricultural Ltd
Neighbourhood Services,Waste and Street Services,Communities & Place,Fitting Shop Grounds,Supplies & Services,"Equipment, Furniture and Materials",Materials & Consumables.,,12/09/2023,21/09/2023,213.2,,David Evans Agricultural Ltd
Neighbourhood Services,Waste and Street Services,Communities & Place,Refuse & Cleansing Operations,Supplies & Services,"Equipment, Furniture and Materials",Materials & Consumables.,,30/08/2023,06/09/2023,767.49,,Hays Specialist Recruitment Ltd
Schools Total,School Group 2 � Pupil Capacity 144-314,MCC Schools,Llanfoist Fawr Primary School,Supplies & Services,"Equipment, Furniture and Materials",Materials & Consumables.,,21/09/2023,26/09/2023,10.48,,Hope Education Ltd
Finance & Business Devlopment,Attractions,MonLife Directorate,Old Station Tintern,Supplies & Services,"Equipment, Furniture and Materials",Marketing Materials,,15/09/2023,19/09/2023,128,,Ottimo Digital Ltd
Standards,Additional Learning Needs,Children & Young People,ALN SPLD,Supplies & Services,"Equipment, Furniture and Materials",Materials & Consumables.,,07/09/2023,25/09/2023,88.72,,Hope Education Ltd
Neighbourhood Services,Highways,Communities & Place,Overhead - Mon Highways,Supplies & Services,"Equipment, Furniture and Materials",Materials & Consumables.,,30/08/2023,27/09/2023,155.92,,Robert Price Ltd
Neighbourhood Services,Waste and Street Services,Communities & Place,Refuse & Cleansing Operations,Supplies & Services,"Equipment, Furniture and Materials",Materials & Consumables.,,26/09/2023,29/09/2023,61.16,,Robert Price Ltd
Neighbourhood Services,Highways,Communities & Place,Overhead - Mon Highways,Supplies & Services,"Equipment, Furniture and Materials",Materials & Consumables.,,18/08/2023,27/09/2023,170,,Travis Perkins Trading Co Ltd
Neighbourhood Services,Highways,Communities & Place,Overhead - Mon Highways,Supplies & Services,"Equipment, Furniture and Materials",Materials & Consumables.,,31/07/2023,27/09/2023,101.47,,Travis Perkins Trading Co Ltd
Neighbourhood Services,Highways,Communities & Place,Overhead - Mon Highways,Supplies & Services,"Equipment, Furniture and Materials",Materials & Consumables.,,17/06/2023,27/09/2023,29.34,,Robert Price Ltd
Neighbourhood Services,Highways,Communities & Place,Internal others,Supplies & Services,"Equipment, Furniture and Materials",Materials & Consumables.,,10/07/2023,27/09/2023,-559.12,,Robert Price Ltd
Neighbourhood Services,Highways,Communities & Place,Internal others,Supplies & Services,"Equipment, Furniture and Materials",Materials & Consumables.,,10/07/2023,27/09/2023,-194.9,,Robert Price Ltd
Neighbourhood Services,Highways,Communities & Place,Internal others,Supplies & Services,"Equipment, Furniture and Materials",Materials & Consumables.,,25/08/2023,27/09/2023,1109.61,,Robert Price Ltd
Neighbourhood Services,Waste and Street Services,Communities & Place,Refuse & Cleansing Operations,Supplies & Services,"Equipment, Furniture and Materials",Materials & Consumables.,,06/09/2023,21/09/2023,65,,SUEZ Recycling and Recovery UK Ltd
Neighbourhood Services,Waste and Street Services,Communities & Place,Refuse & Cleansing Operations,Supplies & Services,"Equipment, Furniture and Materials",Materials & Consumables.,,08/09/2023,21/09/2023,6507.2,,Eco Vigour Ltd
Finance,Finance & Improvement Dept,Resources,Central Finance,Supplies & Services,Communications and Computing,Computer Licences,,11/09/2023,13/09/2023,2480.4,,Logotech Systems
Schools Total,School Group 2 � Pupil Capacity 144-314,MCC Schools,Pembroke Primary School,Supplies & Services,"Equipment, Furniture and Materials",Materials & Consumables.,,20/09/2023,27/09/2023,44.99,,Amazon Payments UK Limited
Schools Total,School Group 2 � Pupil Capacity 144-314,MCC Schools,Pembroke Primary School,Supplies & Services,"Equipment, Furniture and Materials",Materials & Consumables.,,29/06/2023,27/09/2023,116.17,,Marlow Vets Litd
Schools Total,School Group 2 � Pupil Capacity 144-314,MCC Schools,Pembroke Primary School,Supplies & Services,"Equipment, Furniture and Materials",Materials & Consumables.,,20/09/2023,27/09/2023,144.98,,Amazon Payments UK Limited
Schools Total,School Group 7 � Pupil Capacity 501-1800,MCC Schools,King Henry 3-19 School,Supplies & Services,"Equipment, Furniture and Materials",Advertising,,22/09/2023,29/09/2023,225,,Tindle Newspapers Wales & The Borders Ltd
Neighbourhood Services,Highways,Communities & Place,Overhead - Mon Highways,Supplies & Services,"Equipment, Furniture and Materials",Materials & Consumables.,,01/08/2023,19/09/2023,95.18,,LDC Pagers Direct
Adult Services,Community Care Team,Social Care and Health,Monmouth Adult Team,Third Party Payments,Third Party,Residential.,,20/09/2023,29/09/2023,3220,,Adriana Ltd
Adult Services,Community Care Team,Social Care and Health,Chepstow Adult Team,Third Party Payments,Third Party,Nursing.,,20/09/2023,29/09/2023,3388,,Adriana Ltd
Adult Services,Community Care Team,Social Care and Health,Chepstow Adult Team,Third Party Payments,Third Party,Nursing.,,20/09/2023,29/09/2023,3388,,Adriana Ltd
Adult Services,Community Care Team,Social Care and Health,Chepstow Adult Team,Third Party Payments,Third Party,Nursing.,,20/09/2023,29/09/2023,3388,,Adriana Ltd
Adult Services,Community Care Team,Social Care and Health,Monmouth Adult Team,Third Party Payments,Third Party,Nursing.,,20/09/2023,29/09/2023,3388,,Adriana Ltd
Children Services,Children Services Other,Social Care and Health,St David�s Day Fund (Grant),Supplies & Services,Services,Assistance To Clients,,29/08/2023,05/09/2023,500,,REDACTED PERSONAL DATA
Schools Total,School Group 7 � Pupil Capacity 501-1800,MCC Schools,Monmouth Comprehensive,Supplies & Services,"Printing, Stationery and General Office Expenses",Publications,,01/08/2023,19/09/2023,59,,The Week Ltd and Schools
Schools Total,School Group 7 � Pupil Capacity 501-1800,MCC Schools,Monmouth Comprehensive,Supplies & Services,"Printing, Stationery and General Office Expenses",Publications,,01/08/2023,19/09/2023,50,,The Week Ltd and Schools
"Enterprise, Housing & Community Animation",Business Growth & Enterprise,Communities & Place,Sustainable Food Development,Supplies & Services,"Printing, Stationery and General Office Expenses",Publications,,07/09/2023,21/09/2023,90,,Geerings Print Ltd
Finance & Business Devlopment,Museums,MonLife Directorate,Museums Abergavenny,Supplies & Services,"Equipment, Furniture and Materials",Repairs & Maintenance.,,23/06/2023,07/09/2023,121.05,,Franke Coffee Systems Ltd
Corporate (COL),Corporate (COL),Corporate Costs & Levies,Corporate Management (CM),Supplies & Services,Services,Professional And Specialist Fees,,04/05/2023,18/09/2023,15213.33,,Wales Audit Office
Capital Division,Capital Dept,Capital,Capital Programme,Supplies & Services,Services,Professional And Specialist Fees,,21/06/2023,26/09/2023,834.38,,WSP (Real Estate & Infrastructure) Ltd
People,Communications,People & Governance,Communications,Supplies & Services,"Printing, Stationery and General Office Expenses",Stationery,,14/09/2023,26/09/2023,1035,,Usk Farmers Club Ltd
Standards,Early Years,Children & Young People,Early Years Transformation Grant,Supplies & Services,"Printing, Stationery and General Office Expenses",Publications,,13/09/2023,26/09/2023,490,,Solihull Approach (University Hospitals Birmingham NHS Foundation Trust)
Schools Total,School Group 7 � Pupil Capacity 501-1800,MCC Schools,King Henry 3-19 School,Premises,Catering,Catering Equipment,,18/09/2023,26/09/2023,11.5,,REDACTED PERSONAL DATA
Adult Services,Direct Care Residential,Social Care and Health,Severn View Residential,Supplies & Services,"Printing, Stationery and General Office Expenses",Publications,,24/06/2023,21/09/2023,486.15,,News Team
Standards,Early Years,Children & Young People,Expansion of Early Years Grant,Third Party Payments,Third Party,Third party payments NOT relating to goods or services,,20/09/2023,21/09/2023,16200,,Puddle Ducks
Standards,Early Years,Children & Young People,Expansion of Early Years Grant,Third Party Payments,Third Party,Third party payments NOT relating to goods or services,,20/09/2023,21/09/2023,6750,,Shirenewton Playgroup
Children Services,Children Services Other,Social Care and Health,Fostering Allowances and Payments For Skills,Supplies & Services,Services,Private Nursery Fees,,06/06/2023,21/09/2023,194,,Puddle Ducks
"Policy, Scrutiny & Customer Service",Community Hubs,Chief Executive's Unit,Strategic Management,Supplies & Services,"Printing, Stationery and General Office Expenses",Book Purchases,,20/09/2023,26/09/2023,67,,Bolinda UK Ltd
Neighbourhood Services,Highways,Communities & Place,Structures Maintenance,Transport,Direct Transport Costs,Transportation of Supplies,,16/08/2023,04/09/2023,80,,Eagle Plant
Schools Total,SCHGRP3 � School Group 3 � Pupil Capacity 315-500,MCC Schools,The Dell Primary School,Supplies & Services,"Equipment, Furniture and Materials",Repairs & Maintenance.,,14/09/2023,29/09/2023,189.95,,Sportsafe UK Ltd
Standards,Early Years,Children & Young People,Expansion of Early Years Grant,Third Party Payments,Third Party,Third party payments NOT relating to goods or services,,20/09/2023,26/09/2023,3300,,Tiny Tots Premier Childcare Services
"Enterprise, Housing & Community Animation",Business Growth & Enterprise,Communities & Place,Infuse � East Wales,Supplies & Services,"Printing, Stationery and General Office Expenses",Publications,,20/09/2023,26/09/2023,1222,,Zenith Print and Packaging Ltd
Neighbourhood Services,Highways,Communities & Place,Overhead - SWTRA / External,Premises,Cleaning and Domestic Supplies,Premises Pest Control,,21/07/2023,26/09/2023,480,,P&P Pest Control
Neighbourhood Services,Highways,Communities & Place,Overhead - SWTRA / External,Premises,Cleaning and Domestic Supplies,Premises Pest Control,,10/08/2023,26/09/2023,494,,P&P Pest Control
Capital Division,Capital Dept,Capital,Capital Programme,Supplies & Services,Services,Professional And Specialist Fees,,25/08/2023,04/09/2023,4407.5,,The Landmark Practice
Schools Total,School Group 2 � Pupil Capacity 144-314,MCC Schools,St Mary�s RC Primary School (VA),Transport,Contract Hire and Operating Leases,Vehicle Hire Charge,,17/07/2023,12/09/2023,1450,,REDACTED PERSONAL DATA
Schools Total,School Group 2 � Pupil Capacity 144-314,MCC Schools,St Mary�s RC Primary School (VA),Transport,Contract Hire and Operating Leases,Vehicle Hire Charge,,17/07/2023,12/09/2023,-600,,REDACTED PERSONAL DATA
Schools Total,School Group 2 � Pupil Capacity 144-314,MCC Schools,St Mary�s RC Primary School (VA),Transport,Contract Hire and Operating Leases,Vehicle Hire Charge,,17/07/2023,12/09/2023,600,,REDACTED PERSONAL DATA
"Leisure, Youth & Outdoor Adventure",Youth & Education,MonLife Directorate,Duke of Edinburgh Award,Supplies & Services,Services,Independent Accommodation,,07/08/2023,06/09/2023,184.17,,Llangorse Multi Activity Centre
"Leisure, Youth & Outdoor Adventure",Leisure Services,MonLife Directorate,Caldicot Leisure Centre,Supplies & Services,"Printing, Stationery and General Office Expenses",Stationery,,07/09/2023,12/09/2023,39.4,,Mr Paper Ltd
"Leisure, Youth & Outdoor Adventure",Leisure Services,MonLife Directorate,Caldicot Leisure Centre,Supplies & Services,"Printing, Stationery and General Office Expenses",Stationery,,07/09/2023,12/09/2023,5.99,,Mr Paper Ltd
Standards,Early Years,Children & Young People,Early Years,Supplies & Services,"Printing, Stationery and General Office Expenses",Book Purchases,,25/08/2022,12/09/2023,24.99,,REDACTED PERSONAL DATA
Capital Division,Capital Dept,Capital,Capital Programme,Supplies & Services,Services,Professional And Specialist Fees,,25/08/2023,27/09/2023,6202,,Amey Consulting
Children Services,Children Services Other,Social Care and Health,Younger People�s Accommodation � Under 18,Supplies & Services,Services,Supported Housing Costs,,01/09/2023,29/09/2023,8250,,D2 ProproLtd
Schools Total,School Group 7 � Pupil Capacity 501-1800,MCC Schools,Monmouth Comprehensive,Supplies & Services,"Printing, Stationery and General Office Expenses",Book Purchases,,12/09/2023,18/09/2023,176.87,,Browns Books for Students
Schools Total,School Group 7 � Pupil Capacity 501-1800,MCC Schools,Monmouth Comprehensive,Supplies & Services,"Printing, Stationery and General Office Expenses",Book Purchases,,13/09/2023,18/09/2023,290.42,,Browns Books for Students
Capital Division,Capital Dept,Capital,Capital Programme,Supplies & Services,Services,Professional And Specialist Fees,,25/05/2023,25/09/2023,1958,,WSP (Real Estate & Infrastructure) Ltd
Schools Total,SCHGRP3 � School Group 3 � Pupil Capacity 315-500,MCC Schools,The Dell Primary School,Supplies & Services,"Equipment, Furniture and Materials",Materials & Consumables.,,13/07/2023,05/09/2023,46.48,,Amazon Payments UK Limited
Schools Total,SCHGRP3 � School Group 3 � Pupil Capacity 315-500,MCC Schools,The Dell Primary School,Supplies & Services,"Equipment, Furniture and Materials",Materials & Consumables.,,13/07/2023,05/09/2023,23.24,,Amazon Payments UK Limited
Schools Total,School Group 2 � Pupil Capacity 144-314,MCC Schools,Cantref Primary School,Supplies & Services,"Equipment, Furniture and Materials",Materials & Consumables.,,27/09/2023,29/09/2023,53.13,,Out Of The Ark Music
Schools Total,SCHGRP3 � School Group 3 � Pupil Capacity 315-500,MCC Schools,Overmonnow Primary School,Supplies & Services,"Equipment, Furniture and Materials",Materials & Consumables.,,20/09/2023,29/09/2023,164.53,,Pyramid Educational Consultants UK
Schools Total,School Group 2 � Pupil Capacity 144-314,MCC Schools,St Mary�s RC Primary School (VA),Supplies & Services,"Equipment, Furniture and Materials",Materials & Consumables.,,26/09/2023,29/09/2023,15.48,,Amazon Payments UK Limited
Schools Total,School Group 2 � Pupil Capacity 144-314,MCC Schools,St Mary�s RC Primary School (VA),Supplies & Services,"Equipment, Furniture and Materials",Materials & Consumables.,,27/09/2023,29/09/2023,7.49,,Amazon Payments UK Limited
Schools Total,SCHGRP3 � School Group 3 � Pupil Capacity 315-500,MCC Schools,The Dell Primary School,Supplies & Services,"Equipment, Furniture and Materials",Materials & Consumables.,,14/07/2023,05/09/2023,325.36,,Amazon Payments UK Limited
Schools Total,School Group 2 � Pupil Capacity 144-314,MCC Schools,Raglan CiW Primary School (VC),Supplies & Services,"Equipment, Furniture and Materials",Materials & Consumables.,,08/09/2023,14/09/2023,22.08,,Lyreco Ltd
Schools Total,School Group 2 � Pupil Capacity 144-314,MCC Schools,Dewstow Primary School,Supplies & Services,"Equipment, Furniture and Materials",Materials & Consumables.,,26/07/2023,14/09/2023,156.75,,Cambridge University Press
Schools Total,School Group 2 � Pupil Capacity 144-314,MCC Schools,Dewstow Primary School,Supplies & Services,"Equipment, Furniture and Materials",Materials & Consumables.,,26/07/2023,14/09/2023,156.75,,Cambridge University Press
Schools Total,School Group 2 � Pupil Capacity 144-314,MCC Schools,Dewstow Primary School,Supplies & Services,"Equipment, Furniture and Materials",Materials & Consumables.,,26/07/2023,14/09/2023,156.75,,Cambridge University Press
Schools Total,School Group 2 � Pupil Capacity 144-314,MCC Schools,Dewstow Primary School,Supplies & Services,"Equipment, Furniture and Materials",Materials & Consumables.,,26/07/2023,14/09/2023,156.75,,Cambridge University Press
Adult Services,Community Care Team,Social Care and Health,Chepstow Adult Team,Third Party Payments,Third Party,Personal Care.,,02/09/2023,15/09/2023,200,,Helping Hands
Adult Services,Community Care Team,Social Care and Health,Chepstow Adult Team,Third Party Payments,Third Party,Personal Care.,,02/09/2023,15/09/2023,687.5,,Helping Hands
Adult Services,Community Care Team,Social Care and Health,Chepstow Adult Team,Third Party Payments,Third Party,Personal Care.,,02/09/2023,15/09/2023,1050,,Helping Hands
Adult Services,Community Care Team,Social Care and Health,Chepstow Adult Team,Third Party Payments,Third Party,Personal Care.,,02/09/2023,15/09/2023,843.75,,Helping Hands
Adult Services,Community Care Team,Social Care and Health,Chepstow Adult Team,Third Party Payments,Third Party,Personal Care.,,02/09/2023,15/09/2023,1725,,Helping Hands
Schools Total,School Group 2 � Pupil Capacity 144-314,MCC Schools,Shirenewton Primary School,Supplies & Services,"Equipment, Furniture and Materials",Materials & Consumables.,,31/08/2023,13/09/2023,39,,Cosy
Schools Total,School Group 2 � Pupil Capacity 144-314,MCC Schools,Shirenewton Primary School,Supplies & Services,"Equipment, Furniture and Materials",Materials & Consumables.,,31/08/2023,13/09/2023,629,,Cosy
Adult Services,Community Care Team,Social Care and Health,Chepstow Adult Team,Third Party Payments,Third Party,Personal Care.,,02/09/2023,15/09/2023,1087.5,,Helping Hands
Adult Services,Community Care Team,Social Care and Health,Chepstow Adult Team,Third Party Payments,Third Party,Personal Care.,,02/09/2023,15/09/2023,1575,,Helping Hands
Adult Services,Community Care Team,Social Care and Health,Chepstow Adult Team,Third Party Payments,Third Party,Personal Care.,,16/08/2023,04/09/2023,180.54,,Abicare Services Ltd
Adult Services,Community Care Team,Social Care and Health,Chepstow Adult Team,Third Party Payments,Third Party,Personal Care.,,09/08/2023,04/09/2023,1750,,Helping Hands
Adult Services,Community Care Team,Social Care and Health,Chepstow Adult Team,Third Party Payments,Third Party,Personal Care.,,09/08/2023,04/09/2023,3150,,Helping Hands
Adult Services,Community Care Team,Social Care and Health,Chepstow Adult Team,Third Party Payments,Third Party,Personal Care.,,16/08/2023,04/09/2023,2680,,Abicare Services Ltd
Adult Services,Community Care Team,Social Care and Health,Chepstow Adult Team,Third Party Payments,Third Party,Personal Care.,,09/08/2023,04/09/2023,1387.5,,Helping Hands
Adult Services,Community Care Team,Social Care and Health,Chepstow Adult Team,Third Party Payments,Third Party,Personal Care.,,09/08/2023,04/09/2023,62.5,,Helping Hands
Adult Services,Community Care Team,Social Care and Health,Chepstow Adult Team,Third Party Payments,Third Party,Personal Care.,,09/08/2023,04/09/2023,662.5,,Helping Hands
Adult Services,Community Care Team,Social Care and Health,Chepstow Adult Team,Third Party Payments,Third Party,Personal Care.,,09/08/2023,04/09/2023,1575,,Helping Hands
Schools Total,School Group 1 � Pupil Capacity 1-143,MCC Schools,Ysgol Gymraeg Y Ffin,Supplies & Services,"Equipment, Furniture and Materials",Materials & Consumables.,,31/08/2023,04/09/2023,26.99,,Hope Education Ltd
Control Division,Control Dept,Control,Payroll Monthly General,Current Liabilities,Short Term Creditors,Resource Link Payments,,04/09/2023,04/09/2023,12.5,,Caps
Control Division,Control Dept,Control,Payroll Monthly General,Current Liabilities,Short Term Creditors,Resource Link Payments,,04/09/2023,04/09/2023,105.7,,DWP Debt Management
Adult Services,Community Care Team,Social Care and Health,Monmouth Adult Team,Third Party Payments,Third Party,Nursing.,,20/09/2023,29/09/2023,3388,,Adriana Ltd
Adult Services,Community Care Team,Social Care and Health,Monmouth Adult Team,Third Party Payments,Third Party,Nursing.,,20/09/2023,29/09/2023,3388,,Adriana Ltd
Adult Services,Community Care Team,Social Care and Health,Monmouth Adult Team,Third Party Payments,Third Party,Nursing.,,20/09/2023,29/09/2023,3388,,Adriana Ltd
Adult Services,Community Care Team,Social Care and Health,Chepstow Adult Team,Third Party Payments,Third Party,FNC Social Care Nursing Tasks,,20/09/2023,29/09/2023,31.44,,Adriana Ltd
Adult Services,Community Care Team,Social Care and Health,Chepstow Adult Team,Third Party Payments,Third Party,FNC Social Care Nursing Tasks,,20/09/2023,29/09/2023,31.44,,Adriana Ltd
Adult Services,Community Care Team,Social Care and Health,Chepstow Adult Team,Third Party Payments,Third Party,FNC Social Care Nursing Tasks,,20/09/2023,29/09/2023,31.44,,Adriana Ltd
Adult Services,Community Care Team,Social Care and Health,Monmouth Adult Team,Third Party Payments,Third Party,FNC Social Care Nursing Tasks,,20/09/2023,29/09/2023,31.44,,Adriana Ltd
Adult Services,Community Care Team,Social Care and Health,Monmouth Adult Team,Third Party Payments,Third Party,FNC Social Care Nursing Tasks,,20/09/2023,29/09/2023,31.44,,Adriana Ltd
Adult Services,Community Care Team,Social Care and Health,Monmouth Adult Team,Third Party Payments,Third Party,FNC Social Care Nursing Tasks,,20/09/2023,29/09/2023,31.44,,Adriana Ltd
Neighbourhood Services,Waste and Street Services,Communities & Place,Refuse & Cleansing Operations,Supplies & Services,"Equipment, Furniture and Materials",Materials & Consumables.,,23/08/2023,26/09/2023,3.88,,Robert Price Ltd
Neighbourhood Services,Waste and Street Services,Communities & Place,Refuse & Cleansing Operations,Supplies & Services,"Equipment, Furniture and Materials",Materials & Consumables.,,23/08/2023,26/09/2023,14.2,,Robert Price Ltd
Neighbourhood Services,Waste and Street Services,Communities & Place,Refuse & Cleansing Operations,Supplies & Services,"Equipment, Furniture and Materials",Materials & Consumables.,,06/09/2023,26/09/2023,41.14,,Robert Price Ltd
Neighbourhood Services,Waste and Street Services,Communities & Place,Refuse & Cleansing Operations,Supplies & Services,"Equipment, Furniture and Materials",Materials & Consumables.,,07/09/2023,26/09/2023,34.6,,Robert Price Ltd
Neighbourhood Services,Waste and Street Services,Communities & Place,Refuse & Cleansing Operations,Supplies & Services,"Equipment, Furniture and Materials",Materials & Consumables.,,08/09/2023,26/09/2023,278.84,,Robert Price Ltd
Neighbourhood Services,Waste and Street Services,Communities & Place,Refuse & Cleansing Operations,Supplies & Services,"Equipment, Furniture and Materials",Materials & Consumables.,,11/08/2023,26/09/2023,11.26,,Robert Price Ltd
Neighbourhood Services,Waste and Street Services,Communities & Place,Refuse & Cleansing Operations,Supplies & Services,"Equipment, Furniture and Materials",Materials & Consumables.,,08/09/2023,26/09/2023,149.76,,Robert Price Ltd
Neighbourhood Services,Waste and Street Services,Communities & Place,Refuse & Cleansing Operations,Supplies & Services,"Equipment, Furniture and Materials",Materials & Consumables.,,11/09/2023,26/09/2023,47.25,,Robert Price Ltd
Neighbourhood Services,Waste and Street Services,Communities & Place,Refuse & Cleansing Operations,Supplies & Services,"Equipment, Furniture and Materials",Materials & Consumables.,,11/09/2023,26/09/2023,47.25,,Robert Price Ltd
Neighbourhood Services,Waste and Street Services,Communities & Place,Refuse & Cleansing Operations,Supplies & Services,"Equipment, Furniture and Materials",Materials & Consumables.,,14/09/2023,26/09/2023,56.91,,Robert Price Ltd
Neighbourhood Services,Waste and Street Services,Communities & Place,Refuse & Cleansing Operations,Supplies & Services,"Equipment, Furniture and Materials",Materials & Consumables.,,14/09/2023,26/09/2023,84.86,,Robert Price Ltd
Neighbourhood Services,Waste and Street Services,Communities & Place,Fitting Shop Grounds,Supplies & Services,"Equipment, Furniture and Materials",Materials & Consumables.,,07/09/2023,26/09/2023,159,,Mon & Border Motor Factors Ltd
Neighbourhood Services,Waste and Street Services,Communities & Place,Fitting Shop Grounds,Supplies & Services,"Equipment, Furniture and Materials",Materials & Consumables.,,12/09/2023,26/09/2023,283.86,,David Evans Agricultural Ltd
Neighbourhood Services,Waste and Street Services,Communities & Place,Fitting Shop Grounds,Supplies & Services,"Equipment, Furniture and Materials",Materials & Consumables.,,13/09/2023,26/09/2023,391.2,,Trailparts
Neighbourhood Services,Waste and Street Services,Communities & Place,Fitting Shop Grounds,Supplies & Services,"Equipment, Furniture and Materials",Materials & Consumables.,,14/09/2023,26/09/2023,131.7,,Trailparts
Neighbourhood Services,Highways,Communities & Place,Potholing,Supplies & Services,"Equipment, Furniture and Materials",Materials & Consumables.,,10/08/2023,05/09/2023,285,,Dragon Asphalt Ltd
Neighbourhood Services,Highways,Communities & Place,Internal others,Supplies & Services,"Equipment, Furniture and Materials",Materials & Consumables.,,17/08/2023,05/09/2023,290.7,,Dragon Asphalt Ltd
Neighbourhood Services,Highways,Communities & Place,Internal others,Supplies & Services,"Equipment, Furniture and Materials",Materials & Consumables.,,19/08/2023,05/09/2023,285,,Dragon Asphalt Ltd
Neighbourhood Services,Highways,Communities & Place,Internal others,Supplies & Services,"Equipment, Furniture and Materials",Materials & Consumables.,,16/08/2023,05/09/2023,302.1,,Dragon Asphalt Ltd
Neighbourhood Services,Highways,Communities & Place,Internal others,Supplies & Services,"Equipment, Furniture and Materials",Materials & Consumables.,,15/08/2023,05/09/2023,345.8,,Dragon Asphalt Ltd
Neighbourhood Services,Highways,Communities & Place,Internal others,Supplies & Services,"Equipment, Furniture and Materials",Materials & Consumables.,,14/08/2023,05/09/2023,277.4,,Dragon Asphalt Ltd
Children Services,Children Services Teams,Social Care and Health,Youth Offending Team,Supplies & Services,Communications and Computing,Postages,,14/08/2023,05/09/2023,410.97,,Quadient UK Ltd
Adult Services,Community Care Team,Social Care and Health,Chepstow Adult Team,Third Party Payments,Third Party,Nursing.,,20/09/2023,29/09/2023,3509,,Adriana Ltd
Capital Division,Capital Dept,Capital,Capital Programme,Supplies & Services,Services,Professional And Specialist Fees,,21/06/2023,25/09/2023,409.4,,WSP (Real Estate & Infrastructure) Ltd
Capital Division,Capital Dept,Capital,Capital Programme,Supplies & Services,Services,Professional And Specialist Fees,,24/08/2023,25/09/2023,13090,,WSP UK Limited
Schools Total,School Group 7 � Pupil Capacity 501-1800,MCC Schools,Monmouth Comprehensive,Supplies & Services,Services,Residential Trips,,20/09/2023,27/09/2023,39.96,,GLS Educational Supplies Ltd
Schools Total,School Group 7 � Pupil Capacity 501-1800,MCC Schools,Monmouth Comprehensive,Supplies & Services,Services,Residential Trips,,20/09/2023,27/09/2023,2.95,,GLS Educational Supplies Ltd
Schools Total,School Group 7 � Pupil Capacity 501-1800,MCC Schools,Monmouth Comprehensive,Supplies & Services,Services,Residential Trips,,20/09/2023,27/09/2023,11.2,,Amazon Payments UK Limited
Capital Division,Capital Dept,Capital,Capital Programme,Supplies & Services,Services,Professional And Specialist Fees,,19/09/2023,25/09/2023,572,,Natural Resources Wales
Neighbourhood Services,Highways,Communities & Place,Overhead - Mon Highways,Premises,Cleaning and Domestic Supplies,Premises Pest Control,,13/07/2023,27/09/2023,323,,P&P Pest Control
Schools Total,School Group 2 � Pupil Capacity 144-314,MCC Schools,Kymin View Primary School,Supplies & Services,Services,Residential Trips,,19/07/2023,05/09/2023,800,,Welsh Water
Children Services,Children Services Other,Social Care and Health,Younger People�s Accommodation � Under 18,Supplies & Services,Services,Leaving Care Grants,,20/09/2023,25/09/2023,250,,REDACTED PERSONAL DATA
Schools Total,School Group 7 � Pupil Capacity 501-1800,MCC Schools,King Henry 3-19 School,Premises,"Repairs, Alterations & Maintenance of Buildings",Skip Hire,,21/08/2023,29/09/2023,313.5,,Thomas Waste Management Ltd
"Enterprise, Housing & Community Animation",General Fund Housing,Communities & Place,Homelessness,Supplies & Services,Services,Storage Fees,,07/09/2023,13/09/2023,1320,,Highmore Facilities Ltd
Schools Total,School Group 7 � Pupil Capacity 501-1800,MCC Schools,King Henry 3-19 School,Premises,"Repairs, Alterations & Maintenance of Buildings",Skip Hire,,14/09/2023,29/09/2023,316.25,,Thomas Waste Management Ltd
Schools Total,School Group 7 � Pupil Capacity 501-1800,MCC Schools,King Henry 3-19 School,Premises,"Repairs, Alterations & Maintenance of Buildings",Skip Hire,,27/09/2023,29/09/2023,313.5,,Thomas Waste Management Ltd
Schools Total,School Group 7 � Pupil Capacity 501-1800,MCC Schools,King Henry 3-19 School,Supplies & Services,Services,Professional And Specialist Fees,,18/09/2023,29/09/2023,720,,Upbeat Music And Arts Service Ltd
Schools Total,School Group 7 � Pupil Capacity 501-1800,MCC Schools,Caldicot School,Supplies & Services,Services,Residential Trips,,26/09/2023,29/09/2023,890,,Ferris Holidays Ltd
Schools Total,School Group 1 � Pupil Capacity 1-143,MCC Schools,Llanvihangel Crucorney Primary School,Transport,Contract Hire and Operating Leases,Vehicle Hire Charge,,19/09/2023,29/09/2023,200,,Varteg Motors Ltd
Schools Total,School Group 7 � Pupil Capacity 501-1800,MCC Schools,Chepstow School,Premises,Catering,Catering Equipment,,28/07/2023,15/09/2023,21367.89,,Aramark Plc
Schools Total,School Group 7 � Pupil Capacity 501-1800,MCC Schools,Chepstow School,Supplies & Services,Services,Professional And Specialist Fees,,03/07/2023,15/09/2023,302.44,,Litmus Partnership Ltd
Schools Total,School Group 7 � Pupil Capacity 501-1800,MCC Schools,Chepstow School,Supplies & Services,Services,Professional And Specialist Fees,,01/08/2023,15/09/2023,250,,Litmus Partnership Ltd
Standards,Early Years,Children & Young People,Flying Start Grant,Supplies & Services,"Printing, Stationery and General Office Expenses",Book Purchases,,09/09/2023,13/09/2023,183.56,,Amazon Payments UK Limited
Schools Total,School Group 2 � Pupil Capacity 144-314,MCC Schools,Kymin View Primary School,Transport,Contract Hire and Operating Leases,Vehicle Hire Charge,,18/07/2023,05/09/2023,395,,REDACTED PERSONAL DATA
Schools Total,School Group 2 � Pupil Capacity 144-314,MCC Schools,Kymin View Primary School,Transport,Contract Hire and Operating Leases,Vehicle Hire Charge,,18/07/2023,05/09/2023,75,,REDACTED PERSONAL DATA
Schools Total,School Group 2 � Pupil Capacity 144-314,MCC Schools,Goytre Fawr Primary School,Supplies & Services,Services,Professional And Specialist Fees,,21/09/2023,25/09/2023,260,,Skirrid Mountain Productions
Corporate (COL),Corporate (COL),Corporate Costs & Levies,Corporate Management (CM),Supplies & Services,Services,Professional And Specialist Fees,,24/07/2023,04/09/2023,20702.73,,Wales Audit Office
"Enterprise, Housing & Community Animation",Community & Partnerships Development,Communities & Place,Community & Partnership Development,Supplies & Services,"Printing, Stationery and General Office Expenses",Publications,,31/08/2023,05/09/2023,108,,Zenith Print and Packaging Ltd
Schools Total,School Group 7 � Pupil Capacity 501-1800,MCC Schools,Monmouth Comprehensive,Supplies & Services,Services,Residential Trips,,24/08/2023,05/09/2023,300,,Amazon Payments UK Limited
Capital Division,Capital Dept,Capital,Capital Programme,Supplies & Services,Services,Professional And Specialist Fees,,01/09/2023,21/09/2023,3550,,Amey Consulting
Capital Division,Capital Dept,Capital,Capital Programme,Supplies & Services,Services,Professional And Specialist Fees,,28/07/2023,27/09/2023,3271,,Amey Consulting
Adult Services,Community Care Team,Social Care and Health,SEWEDT,Third Party Payments,Third Party,Third party payments NOT relating to goods or services,,06/09/2023,06/09/2023,71860.5,,Caerphilly County Borough Council
Schools Total,School Group 2 � Pupil Capacity 144-314,MCC Schools,Cantref Primary School,Supplies & Services,Communications and Computing,ICT Support Costs ( Direct ),,01/09/2023,06/09/2023,500,,Spectrum Fibre Ltd (T/A Ogi)
Standards,Early Years,Children & Young People,Flying Start Grant,Supplies & Services,Services,Child Minding Fees,,01/09/2023,06/09/2023,1425,,Wales 1 Day Nursery Ltd
Standards,Early Years,Children & Young People,Flying Start Grant,Supplies & Services,Services,Child Minding Fees,,01/09/2023,06/09/2023,5625,,Sunshine Pre-School
Standards,Early Years,Children & Young People,Flying Start Grant,Supplies & Services,Services,Child Minding Fees,,01/09/2023,06/09/2023,2304,,Puddle Ducks
Capital Division,Capital Dept,Capital,Capital Programme,Premises,"Repairs, Alterations & Maintenance of Buildings",Building Improvements / Maintenance,,14/09/2023,21/09/2023,79573.19,,A.J Quinn Building Contractors Ltd
Children Services,Children Services Teams,Social Care and Health,Family Support and Protection Team � North,Supplies & Services,Services,Professional And Specialist Fees,,31/08/2023,07/09/2023,480,,DNA Legal
Capital Division,Capital Dept,Capital,Capital Programme,Premises,"Repairs, Alterations & Maintenance of Buildings",Building Improvements / Maintenance,,31/08/2022,26/09/2023,485,,Enviroteq
Schools Total,School Group 2 � Pupil Capacity 144-314,MCC Schools,St Mary�s RC Primary School (VA),Premises,"Repairs, Alterations & Maintenance of Buildings",Building Improvements / Maintenance,,09/08/2023,04/09/2023,46,,A.J Quinn Building Contractors Ltd
Capital Division,Capital Dept,Capital,Capital Programme,Premises,"Repairs, Alterations & Maintenance of Buildings",Building Improvements / Maintenance,,10/08/2023,04/09/2023,2401.2,,A.J Quinn Building Contractors Ltd
Schools Total,School Group 2 � Pupil Capacity 144-314,MCC Schools,Pembroke Primary School,Premises,"Repairs, Alterations & Maintenance of Buildings",Building Improvements / Maintenance,,16/08/2023,19/09/2023,97.29,,A.J Quinn Building Contractors Ltd
Capital Division,Capital Dept,Capital,Capital Programme,Premises,"Repairs, Alterations & Maintenance of Buildings",Building Improvements / Maintenance,,16/08/2023,22/09/2023,2112.69,,A.J Quinn Building Contractors Ltd
Schools Total,School Group 1 � Pupil Capacity 1-143,MCC Schools,Ysgol Gymraeg Y Ffin,Premises,"Repairs, Alterations & Maintenance of Buildings",Building Improvements / Maintenance,,21/08/2023,19/09/2023,536.41,,A.J Quinn Building Contractors Ltd
Schools Total,School Group 2 � Pupil Capacity 144-314,MCC Schools,Shirenewton Primary School,Premises,"Repairs, Alterations & Maintenance of Buildings",Building Improvements / Maintenance,,31/08/2023,19/09/2023,50.43,,Robert Price Ltd
Schools Total,School Group 2 � Pupil Capacity 144-314,MCC Schools,Shirenewton Primary School,Premises,"Repairs, Alterations & Maintenance of Buildings",Building Improvements / Maintenance,,23/08/2023,19/09/2023,67.86,,Travis Perkins Trading Co Ltd
"Commercial, Corporate & landlord Services",Asset Management,Resources,Commercialisation of Assets,Premises,"Repairs, Alterations & Maintenance of Buildings",Building Improvements / Maintenance,,12/07/2023,19/09/2023,121297.8,,Hills Construction (South West) Ltd
"Commercial, Corporate & landlord Services",Asset Management,Resources,Commercialisation of Assets,Premises,"Repairs, Alterations & Maintenance of Buildings",Building Improvements / Maintenance,,04/09/2023,19/09/2023,32712.69,,Hills Construction (South West) Ltd
Corporate Health & Safety,Health & Safety,Resources,Safety Services,Supplies & Services,Services,Professional And Specialist Fees,,24/08/2023,04/09/2023,40,,INSIGHT WORKPLACE HEALTH
Schools Total,School Group 2 � Pupil Capacity 144-314,MCC Schools,Dewstow Primary School,Premises,"Repairs, Alterations & Maintenance of Buildings",Building Improvements / Maintenance,,04/09/2023,19/09/2023,4334.4,,A.J Quinn Building Contractors Ltd
"Facilities, Fleet & Decarbonisation",Transport Department,Communities & Place,Transport,Transport,Direct Transport Costs,Oil,,25/08/2023,25/09/2023,16,,Motorcare
Schools Total,School Group 2 � Pupil Capacity 144-314,MCC Schools,Thornwell Primary School,Supplies & Services,Services,Sub-Contractors Fees,,12/08/2023,12/09/2023,157.49,,Wye Valley Country Store
"Enterprise, Housing & Community Animation",General Fund Housing,Communities & Place,Lodgings Scheme,Premises,"Repairs, Alterations & Maintenance of Buildings",Building Improvements / Maintenance,,23/08/2023,08/09/2023,160,,Highmore Facilities Ltd
Capital Division,Capital Dept,Capital,Capital Programme,Premises,"Repairs, Alterations & Maintenance of Buildings",Building Improvements / Maintenance,,22/06/2023,08/09/2023,500,,Foresight Fire Prevention Ltd
Schools Total,School Group 2 � Pupil Capacity 144-314,MCC Schools,Thornwell Primary School,Supplies & Services,Services,Sub-Contractors Fees,,24/07/2023,12/09/2023,17.99,,Amazon Payments UK Limited
Schools Total,School Group 2 � Pupil Capacity 144-314,MCC Schools,Thornwell Primary School,Supplies & Services,Services,Sub-Contractors Fees,,24/07/2023,12/09/2023,24.99,,Amazon Payments UK Limited
Standards,Additional Learning Needs,Children & Young People,Additional Learning Needs,Supplies & Services,Services,Sub-Contractors Fees,,01/07/2023,08/09/2023,7130.48,,Orbis Education and Care
Standards,Additional Learning Needs,Children & Young People,Additional Learning Needs,Supplies & Services,Services,Sub-Contractors Fees,,01/08/2023,08/09/2023,7130.48,,Orbis Education and Care
"Enterprise, Housing & Community Animation",General Fund Housing,Communities & Place,Emergency Accommodation Hostel,Premises,"Repairs, Alterations & Maintenance of Buildings",Building Improvements / Maintenance,,23/08/2023,08/09/2023,180,,Highmore Facilities Ltd
Children Services,Children Services Teams,Social Care and Health,Family Support and Protection Team � North,Supplies & Services,Services,Professional And Specialist Fees,,31/07/2023,15/09/2023,1246,,DNA Legal
Children Services,Children Services Teams,Social Care and Health,Family Support and Protection Team � North,Supplies & Services,Services,Professional And Specialist Fees,,10/08/2023,15/09/2023,1341,,DNA Legal
Schools Total,School Group 7 � Pupil Capacity 501-1800,MCC Schools,Chepstow School,Premises,"Repairs, Alterations & Maintenance of Buildings",Building Improvements / Maintenance,,07/09/2023,18/09/2023,115,,Sportsafe UK Ltd
Capital Division,Capital Dept,Capital,Capital Programme,Premises,"Repairs, Alterations & Maintenance of Buildings",Building Improvements / Maintenance,,14/08/2023,19/09/2023,4188.2,,A.J Quinn Building Contractors Ltd
Capital Division,Capital Dept,Capital,Capital Programme,Premises,"Repairs, Alterations & Maintenance of Buildings",Building Improvements / Maintenance,,01/09/2023,19/09/2023,25621.5,,A.J Quinn Building Contractors Ltd
Capital Division,Capital Dept,Capital,Capital Programme,Premises,"Repairs, Alterations & Maintenance of Buildings",Building Improvements / Maintenance,,01/09/2023,19/09/2023,41996,,A.J Quinn Building Contractors Ltd
Capital Division,Capital Dept,Capital,Capital Programme,Premises,"Repairs, Alterations & Maintenance of Buildings",Building Improvements / Maintenance,,01/09/2023,19/09/2023,45491.9,,A.J Quinn Building Contractors Ltd
Capital Division,Capital Dept,Capital,Capital Programme,Premises,"Repairs, Alterations & Maintenance of Buildings",Building Improvements / Maintenance,,01/09/2023,19/09/2023,2566,,A.J Quinn Building Contractors Ltd
Children Services,Children Services Other,Social Care and Health,Counsel Costs,Supplies & Services,Services,Professional And Specialist Fees,,20/07/2023,26/09/2023,288,,Athena Forensics Limited
"Commercial, Corporate & landlord Services",Asset Management,Resources,County Farms Unit,Premises,"Repairs, Alterations & Maintenance of Buildings",Building Improvements / Maintenance,,04/09/2023,18/09/2023,932.68,,A.J Quinn Building Contractors Ltd
Schools Total,School Group 2 � Pupil Capacity 144-314,MCC Schools,Cross Ash Primary School,Supplies & Services,"Printing, Stationery and General Office Expenses",Stationery,,14/07/2023,25/09/2023,5.18,,Hope Education Ltd
Schools Total,School Group 2 � Pupil Capacity 144-314,MCC Schools,Cross Ash Primary School,Supplies & Services,"Printing, Stationery and General Office Expenses",Stationery,,14/07/2023,25/09/2023,5.18,,Hope Education Ltd
Schools Total,School Group 2 � Pupil Capacity 144-314,MCC Schools,Cross Ash Primary School,Supplies & Services,"Printing, Stationery and General Office Expenses",Stationery,,14/07/2023,25/09/2023,7.35,,Hope Education Ltd
Schools Total,School Group 7 � Pupil Capacity 501-1800,MCC Schools,Caldicot School,Employees,Direct Employee Expenses,Agency Staff,,06/09/2023,12/09/2023,122.97,,Teaching Personnel
Schools Total,School Group 7 � Pupil Capacity 501-1800,MCC Schools,Caldicot School,Employees,Direct Employee Expenses,Agency Staff,,06/09/2023,12/09/2023,125.11,,Teaching Personnel
Schools Total,School Group 7 � Pupil Capacity 501-1800,MCC Schools,Caldicot School,Employees,Direct Employee Expenses,Agency Staff,,06/09/2023,12/09/2023,122.97,,Teaching Personnel
Schools Total,School Group 7 � Pupil Capacity 501-1800,MCC Schools,Caldicot School,Employees,Direct Employee Expenses,Agency Staff,,06/09/2023,12/09/2023,122.97,,Teaching Personnel
Schools Total,School Group 7 � Pupil Capacity 501-1800,MCC Schools,Caldicot School,Employees,Direct Employee Expenses,Agency Staff,,06/09/2023,12/09/2023,123.18,,Teaching Personnel
Schools Total,School Group 7 � Pupil Capacity 501-1800,MCC Schools,Caldicot School,Employees,Direct Employee Expenses,Agency Staff,,06/09/2023,12/09/2023,122.97,,Teaching Personnel
Schools Total,School Group 7 � Pupil Capacity 501-1800,MCC Schools,Caldicot School,Employees,Direct Employee Expenses,Agency Staff,,06/09/2023,12/09/2023,123.2,,Teaching Personnel
Schools Total,School Group 7 � Pupil Capacity 501-1800,MCC Schools,Caldicot School,Employees,Direct Employee Expenses,Agency Staff,,06/09/2023,12/09/2023,122.97,,Teaching Personnel
Schools Total,School Group 7 � Pupil Capacity 501-1800,MCC Schools,Caldicot School,Employees,Direct Employee Expenses,Agency Staff,,06/09/2023,12/09/2023,123.18,,Teaching Personnel
Schools Total,School Group 2 � Pupil Capacity 144-314,MCC Schools,Goytre Fawr Primary School,Supplies & Services,Grants and Subscriptions,Subscriptions,,19/07/2023,12/09/2023,1512.46,,Pearson Education LTD
Schools Total,School Group 2 � Pupil Capacity 144-314,MCC Schools,Goytre Fawr Primary School,Supplies & Services,Grants and Subscriptions,Subscriptions,,19/07/2023,12/09/2023,3.15,,Pearson Education LTD
Schools Total,School Group 2 � Pupil Capacity 144-314,MCC Schools,Goytre Fawr Primary School,Supplies & Services,Grants and Subscriptions,Subscriptions,,19/07/2023,12/09/2023,-3.15,,Pearson Education LTD
Schools Total,School Group 7 � Pupil Capacity 501-1800,MCC Schools,Monmouth Comprehensive,Third Party Payments,Third Party,School Meal Service,,05/09/2023,12/09/2023,65.7,,Nisbets
Schools Total,School Group 7 � Pupil Capacity 501-1800,MCC Schools,Monmouth Comprehensive,Supplies & Services,"Printing, Stationery and General Office Expenses",Photocopying.,,04/09/2023,12/09/2023,922.5,,Springfield Business Papers
Schools Total,School Group 7 � Pupil Capacity 501-1800,MCC Schools,Monmouth Comprehensive,Supplies & Services,"Printing, Stationery and General Office Expenses",Stationery,,11/08/2023,12/09/2023,287.86,,Better Equipped Educational Supplies
Schools Total,School Group 2 � Pupil Capacity 144-314,MCC Schools,Thornwell Primary School,Supplies & Services,"Printing, Stationery and General Office Expenses",Stationery,,03/08/2023,12/09/2023,6.52,,Amazon Payments UK Limited
Schools Total,School Group 2 � Pupil Capacity 144-314,MCC Schools,Thornwell Primary School,Supplies & Services,"Printing, Stationery and General Office Expenses",Stationery,,03/08/2023,12/09/2023,3.66,,Amazon Payments UK Limited
Schools Total,School Group 2 � Pupil Capacity 144-314,MCC Schools,Thornwell Primary School,Supplies & Services,"Printing, Stationery and General Office Expenses",Stationery,,03/08/2023,12/09/2023,4.99,,Amazon Payments UK Limited
Schools Total,School Group 2 � Pupil Capacity 144-314,MCC Schools,Thornwell Primary School,Supplies & Services,"Printing, Stationery and General Office Expenses",Stationery,,04/08/2023,12/09/2023,13.37,,Amazon Payments UK Limited
Schools Total,School Group 2 � Pupil Capacity 144-314,MCC Schools,Thornwell Primary School,Supplies & Services,"Printing, Stationery and General Office Expenses",Stationery,,03/08/2023,12/09/2023,6.66,,Amazon Payments UK Limited
Schools Total,School Group 2 � Pupil Capacity 144-314,MCC Schools,Thornwell Primary School,Supplies & Services,"Printing, Stationery and General Office Expenses",Stationery,,04/08/2023,12/09/2023,6.66,,Amazon Payments UK Limited
Children Services,Children Services Teams,Social Care and Health,Family Support and Protection Team � North,Third Party Payments,Third Party,Individual Needs,,22/08/2023,08/09/2023,165.6,,Midway Transitional Solutions Ltd
Children Services,Children Services Teams,Social Care and Health,Family Support and Protection Team � North,Third Party Payments,Third Party,Individual Needs,,22/08/2023,08/09/2023,46,,Midway Transitional Solutions Ltd
Children Services,Children Services Teams,Social Care and Health,Family Support and Protection Team � North,Third Party Payments,Third Party,Individual Needs,,22/08/2023,08/09/2023,-46,,Midway Transitional Solutions Ltd
"Enterprise, Housing & Community Animation",General Fund Housing,Communities & Place,Homelessness,Supplies & Services,Services,Homelessness Bed & Breakfast Accomodation,,04/09/2023,08/09/2023,1167,,Stepping Stone Newport Ltd
Schools Total,Schools,MCC Schools,Pupil Referral Unit,Supplies & Services,Grants and Subscriptions,Subscriptions,,18/07/2023,08/09/2023,180,,Assessment Foundation CIC
Standards,Additional Learning Needs,Children & Young People,Additional Learning Needs,Third Party Payments,Third Party,Placement Fees,,06/09/2023,08/09/2023,4607.76,,Aurora
Schools Total,School Group 7 � Pupil Capacity 501-1800,MCC Schools,Monmouth Comprehensive,Supplies & Services,"Printing, Stationery and General Office Expenses",Stationery,,05/09/2023,12/09/2023,82.2,,Arboreta Papers
Schools Total,School Group 7 � Pupil Capacity 501-1800,MCC Schools,Monmouth Comprehensive,Supplies & Services,"Printing, Stationery and General Office Expenses",Stationery,,05/09/2023,12/09/2023,39,,UKMT
Schools Total,School Group 7 � Pupil Capacity 501-1800,MCC Schools,Monmouth Comprehensive,Supplies & Services,"Printing, Stationery and General Office Expenses",Stationery,,05/09/2023,12/09/2023,39,,UKMT
Adult Services,Community Care Team,Social Care and Health,Mental Health Care Team,Third Party Payments,Third Party,Nursing.,,20/09/2023,29/09/2023,2057,,Adriana Ltd
Adult Services,Community Care Team,Social Care and Health,Mental Health Care Team,Third Party Payments,Third Party,Residential.,,20/09/2023,29/09/2023,4224,,Adriana Ltd
Adult Services,Community Care Team,Social Care and Health,Mental Health Care Team,Third Party Payments,Third Party,Residential.,,20/09/2023,29/09/2023,1152,,Adriana Ltd
Adult Services,Community Care Team,Social Care and Health,Monmouth Adult Team,Third Party Payments,Third Party,Nursing.,,20/09/2023,29/09/2023,3388,,Adriana Ltd
Adult Services,Community Care Team,Social Care and Health,Monmouth Adult Team,Third Party Payments,Third Party,Nursing.,,20/09/2023,29/09/2023,3388,,Adriana Ltd
Adult Services,Community Care Team,Social Care and Health,Monmouth Adult Team,Third Party Payments,Third Party,Nursing.,,20/09/2023,29/09/2023,3388,,Adriana Ltd
Adult Services,Community Care Team,Social Care and Health,Monmouth Adult Team,Third Party Payments,Third Party,Nursing.,,20/09/2023,29/09/2023,3388,,Adriana Ltd
Adult Services,Community Care Team,Social Care and Health,Chepstow Adult Team,Third Party Payments,Third Party,Residential.,,20/09/2023,29/09/2023,484,,Adriana Ltd
Adult Services,Community Care Team,Social Care and Health,Chepstow Adult Team,Third Party Payments,Third Party,FNC Social Care Nursing Tasks,,20/09/2023,29/09/2023,32.56,,Adriana Ltd
Adult Services,Community Care Team,Social Care and Health,Mental Health Care Team,Third Party Payments,Third Party,FNC Social Care Nursing Tasks,,20/09/2023,29/09/2023,19.08,,Adriana Ltd
Adult Services,Community Care Team,Social Care and Health,Monmouth Adult Team,Third Party Payments,Third Party,FNC Social Care Nursing Tasks,,20/09/2023,29/09/2023,31.44,,Adriana Ltd
Adult Services,Community Care Team,Social Care and Health,Monmouth Adult Team,Third Party Payments,Third Party,FNC Social Care Nursing Tasks,,20/09/2023,29/09/2023,31.44,,Adriana Ltd
Adult Services,Community Care Team,Social Care and Health,Monmouth Adult Team,Third Party Payments,Third Party,FNC Social Care Nursing Tasks,,20/09/2023,29/09/2023,31.44,,Adriana Ltd
Adult Services,Community Care Team,Social Care and Health,Monmouth Adult Team,Third Party Payments,Third Party,FNC Social Care Nursing Tasks,,20/09/2023,29/09/2023,31.44,,Adriana Ltd
Adult Services,Community Care Team,Social Care and Health,Monmouth Adult Team,Third Party Payments,Third Party,FNC Social Care Nursing Tasks,,20/09/2023,29/09/2023,31.44,,Adriana Ltd
Adult Services,Community Care Team,Social Care and Health,Monmouth Adult Team,Third Party Payments,Third Party,FNC Social Care Nursing Tasks,,20/09/2023,29/09/2023,31.44,,Adriana Ltd
Neighbourhood Services,Waste and Street Services,Communities & Place,Refuse & Cleansing Operations,Supplies & Services,"Equipment, Furniture and Materials",Materials & Consumables.,,23/08/2023,26/09/2023,61.34,,Robert Price Ltd
Adult Services,Community Care Team,Social Care and Health,Monmouth Adult Team,Third Party Payments,Third Party,Residential.,,20/09/2023,29/09/2023,3220,,Adriana Ltd
Adult Services,Community Care Team,Social Care and Health,Chepstow Adult Team,Third Party Payments,Third Party,Nursing.,,20/09/2023,29/09/2023,1331,,Adriana Ltd
Adult Services,Community Care Team,Social Care and Health,Monmouth Adult Team,Third Party Payments,Third Party,Nursing.,,20/09/2023,29/09/2023,3388,,Adriana Ltd
Adult Services,Community Care Team,Social Care and Health,Monmouth Adult Team,Third Party Payments,Third Party,Nursing.,,20/09/2023,29/09/2023,3388,,Adriana Ltd
Adult Services,Community Care Team,Social Care and Health,Monmouth Adult Team,Third Party Payments,Third Party,Nursing.,,20/09/2023,29/09/2023,3388,,Adriana Ltd
Adult Services,Community Care Team,Social Care and Health,Monmouth Adult Team,Third Party Payments,Third Party,Nursing.,,20/09/2023,29/09/2023,3388,,Adriana Ltd
Adult Services,Community Care Team,Social Care and Health,Chepstow Adult Team,Third Party Payments,Third Party,FNC Social Care Nursing Tasks,,20/09/2023,29/09/2023,12.35,,Adriana Ltd
Adult Services,Community Care Team,Social Care and Health,Monmouth Adult Team,Third Party Payments,Third Party,FNC Social Care Nursing Tasks,,20/09/2023,29/09/2023,31.44,,Adriana Ltd
Adult Services,Community Care Team,Social Care and Health,Monmouth Adult Team,Third Party Payments,Third Party,FNC Social Care Nursing Tasks,,20/09/2023,29/09/2023,31.44,,Adriana Ltd
Adult Services,Community Care Team,Social Care and Health,Monmouth Adult Team,Third Party Payments,Third Party,FNC Social Care Nursing Tasks,,20/09/2023,29/09/2023,31.44,,Adriana Ltd
Neighbourhood Services,Waste and Street Services,Communities & Place,Refuse & Cleansing Operations,Supplies & Services,"Equipment, Furniture and Materials",Materials & Consumables.,,18/09/2023,27/09/2023,16.1,,Fasteners & Engineering Suppliers Ltd
Neighbourhood Services,Waste and Street Services,Communities & Place,Refuse & Cleansing Operations,Supplies & Services,"Equipment, Furniture and Materials",Materials & Consumables.,,31/08/2023,06/09/2023,59.99,,Robert Price Ltd
"Facilities, Fleet & Decarbonisation",Home to School Transport Dept,Communities & Place,School Transport � External,Transport,Contract Hire and Operating Leases,PTU Vehicle Contracts,,13/09/2023,14/09/2023,6958.98,,CDS Hire Limited
"Facilities, Fleet & Decarbonisation",Home to School Transport Dept,Communities & Place,School Transport � External,Transport,Contract Hire and Operating Leases,PTU Vehicle Contracts,,13/09/2023,14/09/2023,7023.47,,CDS Hire Limited
"Facilities, Fleet & Decarbonisation",Home to School Transport Dept,Communities & Place,School Transport � External,Transport,Contract Hire and Operating Leases,PTU Vehicle Contracts,,13/09/2023,14/09/2023,8347.5,,Celtic Minibuses Ltd
"Facilities, Fleet & Decarbonisation",Home to School Transport Dept,Communities & Place,School Transport � External,Transport,Contract Hire and Operating Leases,PTU Vehicle Contracts,,13/09/2023,14/09/2023,1362.5,,Fast Cars of Abergavenny
"Facilities, Fleet & Decarbonisation",Home to School Transport Dept,Communities & Place,School Transport � External,Transport,Contract Hire and Operating Leases,PTU Vehicle Contracts,,13/09/2023,14/09/2023,787.5,,G & H Minibus
"Facilities, Fleet & Decarbonisation",Home to School Transport Dept,Communities & Place,School Transport � External,Transport,Contract Hire and Operating Leases,PTU Vehicle Contracts,,13/09/2023,14/09/2023,2283.75,,G & H Minibus
"Facilities, Fleet & Decarbonisation",Home to School Transport Dept,Communities & Place,School Transport � External,Transport,Contract Hire and Operating Leases,PTU Vehicle Contracts,,13/09/2023,14/09/2023,3508.17,,REDACTED PERSONAL DATA
"Facilities, Fleet & Decarbonisation",Home to School Transport Dept,Communities & Place,School Transport � External,Transport,Contract Hire and Operating Leases,PTU Vehicle Contracts,,13/09/2023,14/09/2023,2992.5,,Jaks Minibus Hire
"Facilities, Fleet & Decarbonisation",Home to School Transport Dept,Communities & Place,SEN Post 16 Travel,Transport,Contract Hire and Operating Leases,PTU Vehicle Contracts,,13/09/2023,14/09/2023,1416.67,,G & H Minibus
"Facilities, Fleet & Decarbonisation",Home to School Transport Dept,Communities & Place,School Transport � External,Transport,Contract Hire and Operating Leases,PTU Vehicle Contracts,,13/09/2023,14/09/2023,2520,,Platinum Private Hire
"Facilities, Fleet & Decarbonisation",Home to School Transport Dept,Communities & Place,School Transport � External,Transport,Contract Hire and Operating Leases,PTU Vehicle Contracts,,13/09/2023,14/09/2023,7638.75,,Rees Motor (Travel)
"Facilities, Fleet & Decarbonisation",Home to School Transport Dept,Communities & Place,School Transport � External,Transport,Contract Hire and Operating Leases,PTU Vehicle Contracts,,13/09/2023,14/09/2023,2671.67,,Rideout Travel
"Facilities, Fleet & Decarbonisation",Home to School Transport Dept,Communities & Place,School Transport � External,Transport,Contract Hire and Operating Leases,PTU Vehicle Contracts,,13/09/2023,14/09/2023,5355,,Rideout Travel
"Facilities, Fleet & Decarbonisation",Home to School Transport Dept,Communities & Place,School Transport � External,Transport,Contract Hire and Operating Leases,PTU Vehicle Contracts,,13/09/2023,14/09/2023,1732.5,,RST TAXIS
"Facilities, Fleet & Decarbonisation",Home to School Transport Dept,Communities & Place,School Transport � External,Transport,Contract Hire and Operating Leases,PTU Vehicle Contracts,,13/09/2023,14/09/2023,708.75,,RST TAXIS
"Facilities, Fleet & Decarbonisation",Home to School Transport Dept,Communities & Place,School Transport � External,Transport,Contract Hire and Operating Leases,PTU Vehicle Contracts,,13/09/2023,14/09/2023,551.25,,REDACTED PERSONAL DATA
"Facilities, Fleet & Decarbonisation",Home to School Transport Dept,Communities & Place,School Transport � External,Transport,Contract Hire and Operating Leases,PTU Vehicle Contracts,,13/09/2023,14/09/2023,1512,,Terrys Taxis
"Facilities, Fleet & Decarbonisation",Home to School Transport Dept,Communities & Place,School Transport � External,Transport,Contract Hire and Operating Leases,PTU Vehicle Contracts,,13/09/2023,14/09/2023,3460,,Terrys Taxis
"Facilities, Fleet & Decarbonisation",Home to School Transport Dept,Communities & Place,School Transport � External,Transport,Contract Hire and Operating Leases,PTU Vehicle Contracts,,13/09/2023,14/09/2023,13230,,Varteg Motors Ltd
"Facilities, Fleet & Decarbonisation",Home to School Transport Dept,Communities & Place,School Transport � External,Transport,Contract Hire and Operating Leases,PTU Vehicle Contracts,,13/09/2023,14/09/2023,3622.5,,Varteg Motors Ltd
"Facilities, Fleet & Decarbonisation",Home to School Transport Dept,Communities & Place,School Transport � External,Transport,Contract Hire and Operating Leases,PTU Vehicle Contracts,,13/09/2023,14/09/2023,3464.84,,REDACTED PERSONAL DATA
"Facilities, Fleet & Decarbonisation",Home to School Transport Dept,Communities & Place,School Transport � External,Transport,Contract Hire and Operating Leases,PTU Vehicle Contracts,,13/09/2023,14/09/2023,8307.65,,REDACTED PERSONAL DATA
"Facilities, Fleet & Decarbonisation",Home to School Transport Dept,Communities & Place,School Transport � External,Transport,Contract Hire and Operating Leases,PTU Vehicle Contracts,,13/09/2023,14/09/2023,2992.34,,REDACTED PERSONAL DATA
"Facilities, Fleet & Decarbonisation",Home to School Transport Dept,Communities & Place,School Transport � External,Transport,Contract Hire and Operating Leases,PTU Vehicle Contracts,,13/09/2023,14/09/2023,5197.5,,REDACTED PERSONAL DATA
"Facilities, Fleet & Decarbonisation",Home to School Transport Dept,Communities & Place,School Transport � External,Transport,Contract Hire and Operating Leases,PTU Vehicle Contracts,,13/09/2023,14/09/2023,4961.25,,REDACTED PERSONAL DATA
Finance & Business Devlopment,Attractions,MonLife Directorate,Caldicot Castle & Country Park,Supplies & Services,Catering,Cafe,,01/09/2023,05/09/2023,101.75,,Castell Howell Foods Ltd
Finance & Business Devlopment,Attractions,MonLife Directorate,Caldicot Castle & Country Park,Supplies & Services,Catering,Cafe,,01/09/2023,05/09/2023,66.93,,Castell Howell Foods Ltd
Finance & Business Devlopment,Attractions,MonLife Directorate,Tourist Information Centres,Supplies & Services,Catering,Cafe,,01/09/2023,05/09/2023,107.8,,Castell Howell Foods Ltd
Finance & Business Devlopment,Attractions,MonLife Directorate,Tourist Information Centres,Supplies & Services,Catering,Cafe,,01/09/2023,05/09/2023,106.82,,Castell Howell Foods Ltd
Finance & Business Devlopment,Attractions,MonLife Directorate,Old Station Tintern,Supplies & Services,Catering,Cafe,,31/08/2023,05/09/2023,122.32,,Isabel's Bakehouse
"Facilities, Fleet & Decarbonisation",Home to School Transport Dept,Communities & Place,School Transport � External,Transport,Contract Hire and Operating Leases,PTU Vehicle Contracts,,13/09/2023,14/09/2023,413.28,,REDACTED PERSONAL DATA
"Facilities, Fleet & Decarbonisation",Home to School Transport Dept,Communities & Place,School Transport � External,Transport,Contract Hire and Operating Leases,PTU Vehicle Contracts,,13/09/2023,14/09/2023,787.5,,Jay's Taxis
Control Division,Control Dept,Control,Payroll Monthly General,Current Liabilities,Short Term Creditors,Resource Link Payments,,04/09/2023,04/09/2023,578.81,,DWP CMS Employers
Control Division,Control Dept,Control,Payroll Monthly 2 (Schools),Current Liabilities,Short Term Creditors,Resource Link Payments,,04/09/2023,04/09/2023,5,,Caps
Control Division,Control Dept,Control,Payroll Monthly 2 (Schools),Current Liabilities,Short Term Creditors,Resource Link Payments,,04/09/2023,04/09/2023,234.94,,DWP Debt Management
Adult Services,Community Care Team,Social Care and Health,Chepstow Adult Team,Third Party Payments,Third Party,Personal Care.,,09/08/2023,04/09/2023,1050,,Helping Hands
Adult Services,Community Care Team,Social Care and Health,Chepstow Adult Team,Third Party Payments,Third Party,Personal Care.,,16/08/2023,04/09/2023,962.8,,Abicare Services Ltd
Adult Services,Community Care Team,Social Care and Health,Chepstow Adult Team,Third Party Payments,Third Party,Personal Care.,,09/08/2023,04/09/2023,962.5,,Helping Hands
Adult Services,Community Care Team,Social Care and Health,Chepstow Adult Team,Third Party Payments,Third Party,Personal Care.,,09/08/2023,04/09/2023,412.5,,Helping Hands
Adult Services,Community Care Team,Social Care and Health,Chepstow Adult Team,Third Party Payments,Third Party,Personal Care.,,16/08/2023,04/09/2023,1440,,Community Care Services
Adult Services,Community Care Team,Social Care and Health,Chepstow Adult Team,Third Party Payments,Third Party,Personal Care.,,09/08/2023,04/09/2023,357.03,,Helping Hands
Schools Total,School Group 2 � Pupil Capacity 144-314,MCC Schools,Raglan CiW Primary School (VC),Supplies & Services,"Equipment, Furniture and Materials",Materials & Consumables.,,15/09/2023,27/09/2023,4.9,,ESPO
Schools Total,School Group 2 � Pupil Capacity 144-314,MCC Schools,Raglan CiW Primary School (VC),Supplies & Services,"Equipment, Furniture and Materials",Materials & Consumables.,,15/09/2023,27/09/2023,8.4,,ESPO
Schools Total,School Group 2 � Pupil Capacity 144-314,MCC Schools,Raglan CiW Primary School (VC),Supplies & Services,"Equipment, Furniture and Materials",Materials & Consumables.,,15/09/2023,27/09/2023,1.25,,ESPO
Schools Total,School Group 2 � Pupil Capacity 144-314,MCC Schools,Raglan CiW Primary School (VC),Supplies & Services,"Equipment, Furniture and Materials",Materials & Consumables.,,15/09/2023,27/09/2023,2.2,,ESPO
Schools Total,School Group 2 � Pupil Capacity 144-314,MCC Schools,Raglan CiW Primary School (VC),Supplies & Services,"Equipment, Furniture and Materials",Materials & Consumables.,,15/09/2023,27/09/2023,1.9,,ESPO
Schools Total,School Group 2 � Pupil Capacity 144-314,MCC Schools,Trellech Primary School,Supplies & Services,"Equipment, Furniture and Materials",Materials & Consumables.,,30/08/2023,27/09/2023,86.6,,ESPO
Schools Total,School Group 2 � Pupil Capacity 144-314,MCC Schools,Trellech Primary School,Supplies & Services,"Equipment, Furniture and Materials",Materials & Consumables.,,04/09/2023,27/09/2023,504.43,,ESPO
Schools Total,School Group 2 � Pupil Capacity 144-314,MCC Schools,Archbishop Rowan Williams CiW Primary School (VA),Supplies & Services,"Equipment, Furniture and Materials",Materials & Consumables.,,12/09/2023,21/09/2023,106.16,,RM Educational Resources Ltd
Schools Total,School Group 2 � Pupil Capacity 144-314,MCC Schools,St Mary�s RC Primary School (VA),Supplies & Services,"Equipment, Furniture and Materials",Materials & Consumables.,,20/09/2023,21/09/2023,10.42,,Amazon Payments UK Limited
Schools Total,School Group 2 � Pupil Capacity 144-314,MCC Schools,St Mary�s RC Primary School (VA),Supplies & Services,"Equipment, Furniture and Materials",Materials & Consumables.,,17/07/2023,06/09/2023,3.26,,Amazon Payments UK Limited
Schools Total,School Group 2 � Pupil Capacity 144-314,MCC Schools,Raglan CiW Primary School (VC),Supplies & Services,"Equipment, Furniture and Materials",Materials & Consumables.,,08/09/2023,14/09/2023,255.5,,Lyreco Ltd
Adult Services,Community Care Team,Social Care and Health,Chepstow Adult Team,Third Party Payments,Third Party,Personal Care.,,02/09/2023,15/09/2023,175,,Helping Hands
Adult Services,Community Care Team,Social Care and Health,Chepstow Adult Team,Third Party Payments,Third Party,Personal Care.,,02/09/2023,15/09/2023,350,,Helping Hands
Schools Total,School Group 2 � Pupil Capacity 144-314,MCC Schools,Raglan CiW Primary School (VC),Supplies & Services,"Equipment, Furniture and Materials",Materials & Consumables.,,30/08/2023,19/09/2023,8.45,,ESPO
Adult Services,Community Care Team,Social Care and Health,Chepstow Adult Team,Third Party Payments,Third Party,Personal Care.,,09/08/2023,04/09/2023,2012.5,,Helping Hands
Adult Services,Community Care Team,Social Care and Health,Chepstow Adult Team,Third Party Payments,Third Party,Personal Care.,,16/08/2023,04/09/2023,2528,,Abicare Services Ltd
Adult Services,Community Care Team,Social Care and Health,Chepstow Adult Team,Third Party Payments,Third Party,Personal Care.,,16/08/2023,04/09/2023,2430,,Community Care Services
Adult Services,Community Care Team,Social Care and Health,Chepstow Adult Team,Third Party Payments,Third Party,Personal Care.,,02/09/2023,15/09/2023,743.75,,Helping Hands
Adult Services,Community Care Team,Social Care and Health,Chepstow Adult Team,Third Party Payments,Third Party,Personal Care.,,02/09/2023,15/09/2023,3150,,Helping Hands
Adult Services,Community Care Team,Social Care and Health,Chepstow Adult Team,Third Party Payments,Third Party,Personal Care.,,02/09/2023,15/09/2023,1525,,Helping Hands
Adult Services,Community Care Team,Social Care and Health,Chepstow Adult Team,Third Party Payments,Third Party,Personal Care.,,09/08/2023,04/09/2023,2675,,Helping Hands
Adult Services,Community Care Team,Social Care and Health,Chepstow Adult Team,Third Party Payments,Third Party,Personal Care.,,09/08/2023,04/09/2023,1218.75,,Helping Hands
Adult Services,Direct Care,Social Care and Health,Monmouthshire Meals,Premises,"Repairs, Alterations & Maintenance of Buildings",Building Improvements / Maintenance,,09/08/2023,15/09/2023,2554.63,,Reecer Hire Limited
Schools Total,School Group 7 � Pupil Capacity 501-1800,MCC Schools,King Henry 3-19 School,Premises,"Repairs, Alterations & Maintenance of Buildings",Premises Repairs And Maintenance,,19/09/2023,29/09/2023,94.72,,Screwfix Trade UK
Schools Total,School Group 7 � Pupil Capacity 501-1800,MCC Schools,Monmouth Comprehensive,Premises,"Repairs, Alterations & Maintenance of Buildings",Premises Repairs And Maintenance,,01/08/2023,05/09/2023,215,,Closomat Ltd
"Commercial, Corporate & landlord Services",Property Services & Facilities Management,Resources,Gwent Police Collaboration,Premises,"Repairs, Alterations & Maintenance of Buildings",Building Improvements / Maintenance,,18/09/2023,19/09/2023,55,,P&P Pest Control
Schools Total,School Group 7 � Pupil Capacity 501-1800,MCC Schools,Chepstow School,Supplies & Services,"Equipment, Furniture and Materials",Provisions.,,08/09/2023,15/09/2023,5.5,,Select School Supplies
Schools Total,School Group 7 � Pupil Capacity 501-1800,MCC Schools,Chepstow School,Supplies & Services,"Equipment, Furniture and Materials",Provisions.,,08/09/2023,15/09/2023,6.85,,Select School Supplies
Schools Total,School Group 7 � Pupil Capacity 501-1800,MCC Schools,Chepstow School,Supplies & Services,"Equipment, Furniture and Materials",Provisions.,,08/09/2023,15/09/2023,2.4,,Select School Supplies
"Leisure, Youth & Outdoor Adventure",Leisure Services,MonLife Directorate,Caldicot Leisure Centre,Premises,"Repairs, Alterations & Maintenance of Buildings",Premises Repairs And Maintenance,,01/09/2023,15/09/2023,204.25,,Gym Systems & Servicing
Adult Services,Direct Care,Social Care and Health,Monmouthshire Meals,Premises,"Repairs, Alterations & Maintenance of Buildings",Building Improvements / Maintenance,,01/06/2023,15/09/2023,2472.21,,Reecer Hire Limited
Adult Services,Direct Care,Social Care and Health,Monmouthshire Meals,Premises,"Repairs, Alterations & Maintenance of Buildings",Building Improvements / Maintenance,,11/07/2023,15/09/2023,2554.63,,Reecer Hire Limited
Schools Total,School Group 7 � Pupil Capacity 501-1800,MCC Schools,Monmouth Comprehensive,Premises,"Repairs, Alterations & Maintenance of Buildings",Premises Repairs And Maintenance,,07/09/2023,15/09/2023,157.5,,IRM Bristol Ltd
Schools Total,School Group 7 � Pupil Capacity 501-1800,MCC Schools,Monmouth Comprehensive,Premises,"Repairs, Alterations & Maintenance of Buildings",Premises Repairs And Maintenance,,07/09/2023,15/09/2023,105,,IRM Bristol Ltd
"Commercial, Corporate & landlord Services",Property Services & Facilities Management,Resources,Gwent Police Collaboration,Premises,"Repairs, Alterations & Maintenance of Buildings",Building Improvements / Maintenance,,16/08/2023,19/09/2023,79.66,,A.J Quinn Building Contractors Ltd
"Commercial, Corporate & landlord Services",Property Services & Facilities Management,Resources,Gwent Police Collaboration,Premises,"Repairs, Alterations & Maintenance of Buildings",Building Improvements / Maintenance,,16/08/2023,19/09/2023,59.69,,A.J Quinn Building Contractors Ltd
"Commercial, Corporate & landlord Services",Property Services & Facilities Management,Resources,Gwent Police Collaboration,Premises,"Repairs, Alterations & Maintenance of Buildings",Building Improvements / Maintenance,,16/08/2023,19/09/2023,36.69,,A.J Quinn Building Contractors Ltd
"Commercial, Corporate & landlord Services",Property Services & Facilities Management,Resources,Gwent Police Collaboration,Premises,"Repairs, Alterations & Maintenance of Buildings",Building Improvements / Maintenance,,23/08/2023,19/09/2023,98.66,,A.J Quinn Building Contractors Ltd
"Commercial, Corporate & landlord Services",Property Services & Facilities Management,Resources,Gwent Police Collaboration,Premises,"Repairs, Alterations & Maintenance of Buildings",Building Improvements / Maintenance,,18/09/2023,19/09/2023,55,,P&P Pest Control
"Leisure, Youth & Outdoor Adventure",Leisure Services,MonLife Directorate,Abergavenny Leisure Centre,Premises,"Repairs, Alterations & Maintenance of Buildings",Premises Repairs And Maintenance,,03/08/2023,06/09/2023,120,,Airspace Solutions Ltd
Schools Total,School Group 7 � Pupil Capacity 501-1800,MCC Schools,Chepstow School,Supplies & Services,"Equipment, Furniture and Materials",Provisions.,,19/09/2023,25/09/2023,104.25,,Seawhite Of Brighton Ltd
"Commercial, Corporate & landlord Services",Property Services & Facilities Management,Resources,Gwent Police Collaboration,Premises,"Repairs, Alterations & Maintenance of Buildings",Building Improvements / Maintenance,,09/08/2023,04/09/2023,46950.33,,A.J Quinn Building Contractors Ltd
Schools Total,School Group 7 � Pupil Capacity 501-1800,MCC Schools,Chepstow School,Supplies & Services,"Equipment, Furniture and Materials",Provisions.,,07/09/2023,27/09/2023,4.76,,Hope Education Ltd
Schools Total,School Group 7 � Pupil Capacity 501-1800,MCC Schools,Chepstow School,Supplies & Services,"Equipment, Furniture and Materials",Provisions.,,07/09/2023,27/09/2023,3.49,,Hope Education Ltd
Schools Total,School Group 7 � Pupil Capacity 501-1800,MCC Schools,Chepstow School,Supplies & Services,"Equipment, Furniture and Materials",Provisions.,,07/09/2023,27/09/2023,1.87,,Hope Education Ltd
Schools Total,School Group 7 � Pupil Capacity 501-1800,MCC Schools,Chepstow School,Supplies & Services,"Equipment, Furniture and Materials",Provisions.,,07/09/2023,27/09/2023,10.18,,Hope Education Ltd
Schools Total,School Group 7 � Pupil Capacity 501-1800,MCC Schools,Chepstow School,Supplies & Services,"Equipment, Furniture and Materials",Provisions.,,07/09/2023,27/09/2023,26.72,,Hope Education Ltd
Schools Total,School Group 7 � Pupil Capacity 501-1800,MCC Schools,Chepstow School,Supplies & Services,"Equipment, Furniture and Materials",Provisions.,,07/09/2023,27/09/2023,22.99,,Hope Education Ltd
"Commercial, Corporate & landlord Services",Property Services & Facilities Management,Resources,Gwent Police Collaboration,Premises,"Repairs, Alterations & Maintenance of Buildings",Building Improvements / Maintenance,,14/08/2023,04/09/2023,9744.4,,A.J Quinn Building Contractors Ltd
Schools Total,School Group 7 � Pupil Capacity 501-1800,MCC Schools,Chepstow School,Supplies & Services,"Equipment, Furniture and Materials",Provisions.,,04/09/2023,22/09/2023,47.38,,Amazon Payments UK Limited
"Commercial, Corporate & landlord Services",Property Services & Facilities Management,Resources,Gwent Police Collaboration,Premises,"Repairs, Alterations & Maintenance of Buildings",Building Improvements / Maintenance,,24/08/2023,05/09/2023,165,,Power Electrics (Bristol) Ltd
"Commercial, Corporate & landlord Services",Property Services & Facilities Management,Resources,Gwent Police Collaboration,Premises,"Repairs, Alterations & Maintenance of Buildings",Building Improvements / Maintenance,,24/08/2023,05/09/2023,165,,Power Electrics (Bristol) Ltd
"Commercial, Corporate & landlord Services",Property Services & Facilities Management,Resources,Gwent Police Collaboration,Premises,"Repairs, Alterations & Maintenance of Buildings",Building Improvements / Maintenance,,24/08/2023,05/09/2023,165,,Power Electrics (Bristol) Ltd
Schools Total,School Group 2 � Pupil Capacity 144-314,MCC Schools,Thornwell Primary School,Supplies & Services,"Equipment, Furniture and Materials",Provisions.,,04/09/2023,06/09/2023,38.97,,Castell Howell Foods Ltd
"Commercial, Corporate & landlord Services",Property Services & Facilities Management,Resources,Gwent Police Collaboration,Premises,"Repairs, Alterations & Maintenance of Buildings",Building Improvements / Maintenance,,05/09/2023,06/09/2023,126,,Ambassador Fire & Security LTD
"Commercial, Corporate & landlord Services",Property Services & Facilities Management,Resources,Gwent Police Collaboration,Premises,"Repairs, Alterations & Maintenance of Buildings",Building Improvements / Maintenance,,05/09/2023,06/09/2023,50,,Ambassador Fire & Security LTD
Resources,Support Services,Children & Young People,School & Student Access,Supplies & Services,"Printing, Stationery and General Office Expenses",Publications,,26/07/2023,04/09/2023,850,,Art Matters
"Enterprise, Housing & Community Animation",Business Growth & Enterprise,Communities & Place,CELT Shared Prosperity Fund - Adult,Supplies & Services,"Printing, Stationery and General Office Expenses",Publications,,21/09/2023,25/09/2023,48,,Zenith Print and Packaging Ltd
Standards,Early Years,Children & Young People,Flying Start Grant,Supplies & Services,"Printing, Stationery and General Office Expenses",Publications,,18/09/2023,25/09/2023,84,,Zenith Print and Packaging Ltd
Schools Total,School Group 7 � Pupil Capacity 501-1800,MCC Schools,Caldicot School,Supplies & Services,"Printing, Stationery and General Office Expenses",Book Purchases,,05/09/2023,25/09/2023,19.97,,Amazon Payments UK Limited
Children Services,Children Services Teams,Social Care and Health,Long Term Support Team,Third Party Payments,Third Party,Third party payments NOT relating to goods or services,,21/09/2023,29/09/2023,85,,REDACTED PERSONAL DATA
Children Services,Children Services Other,Social Care and Health,Younger People�s Accommodation � Under 18,Supplies & Services,Services,Leaving Care Grants,,21/09/2023,29/09/2023,45,,REDACTED PERSONAL DATA
Schools Total,School Group 7 � Pupil Capacity 501-1800,MCC Schools,Monmouth Comprehensive,Supplies & Services,"Printing, Stationery and General Office Expenses",Book Purchases,,07/09/2023,12/09/2023,48.14,,Browns Books for Students
Schools Total,School Group 7 � Pupil Capacity 501-1800,MCC Schools,Caldicot School,Supplies & Services,Services,Professional And Specialist Fees,,04/09/2023,12/09/2023,2500,,JT LEARNING LTD
Schools Total,School Group 7 � Pupil Capacity 501-1800,MCC Schools,Monmouth Comprehensive,Transport,Contract Hire and Operating Leases,Vehicle Hire Charge,,06/09/2023,12/09/2023,2345,,REDACTED PERSONAL DATA
Schools Total,School Group 2 � Pupil Capacity 144-314,MCC Schools,Pembroke Primary School,Supplies & Services,Services,Residential Trips,,17/07/2023,12/09/2023,325,,REDACTED PERSONAL DATA
Standards,Early Years,Children & Young People,Expansion of Early Years Grant,Third Party Payments,Third Party,Third party payments NOT relating to goods or services,,01/09/2023,21/09/2023,1350,,Stepping Stones Magor
Standards,Early Years,Children & Young People,Expansion of Early Years Grant,Third Party Payments,Third Party,Third party payments NOT relating to goods or services,,20/09/2023,21/09/2023,4500,,Busy Bodies at Trellech Playgroup
Schools Total,School Group 7 � Pupil Capacity 501-1800,MCC Schools,Caldicot School,Supplies & Services,"Printing, Stationery and General Office Expenses",Book Purchases,,07/07/2023,14/09/2023,20.99,,Amazon Payments UK Limited
Corporate (COL),Corporate (COL),Corporate Costs & Levies,Corporate Management (CM),Supplies & Services,Services,Professional And Specialist Fees,,01/08/2023,04/09/2023,20702.73,,Wales Audit Office
Resources,Support Services,Children & Young People,School & Student Access,Supplies & Services,"Printing, Stationery and General Office Expenses",Publications,,26/07/2023,04/09/2023,85,,Art Matters
"Leisure, Youth & Outdoor Adventure",Youth & Education,MonLife Directorate,Gilwern,Supplies & Services,"Equipment, Furniture and Materials",Repairs & Maintenance.,,11/09/2023,22/09/2023,102.71,,Newhall Janitorial Ltd
Standards,Early Years,Children & Young People,Flying Start Grant,Supplies & Services,Services,Child Minding Fees,,04/09/2023,19/09/2023,1125,,Little Explorers Nursery
Schools Total,School Group 7 � Pupil Capacity 501-1800,MCC Schools,Chepstow School,Premises,Catering,Catering Equipment,,28/07/2023,15/09/2023,-21367.89,,Aramark Plc
Schools Total,School Group 7 � Pupil Capacity 501-1800,MCC Schools,Chepstow School,Premises,Catering,Catering Equipment,,28/07/2023,15/09/2023,-16782.29,,Aramark Plc
Schools Total,School Group 7 � Pupil Capacity 501-1800,MCC Schools,Chepstow School,Premises,Catering,Catering Equipment,,28/07/2023,15/09/2023,16782.29,,Aramark Plc
Schools Total,School Group 7 � Pupil Capacity 501-1800,MCC Schools,Chepstow School,Premises,Catering,Catering Equipment,,28/07/2023,15/09/2023,2364.85,,Aramark Plc
Finance,Revenues Department,Resources,Debtors,Supplies & Services,"Equipment, Furniture and Materials",Repairs & Maintenance.,,14/09/2023,19/09/2023,819.46,,Print Trade Suppliers Ltd
"Policy, Scrutiny & Customer Service",Community Hubs,Chief Executive's Unit,Strategic Management,Supplies & Services,"Printing, Stationery and General Office Expenses",Book Purchases,,18/09/2023,21/09/2023,360.45,,Askews & Holts Library Services Ltd
"Policy, Scrutiny & Customer Service",Community Hubs,Chief Executive's Unit,Strategic Management,Supplies & Services,"Printing, Stationery and General Office Expenses",Book Purchases,,18/09/2023,21/09/2023,696.67,,Askews & Holts Library Services Ltd
Standards,Early Years,Children & Young People,Flying Start Grant,Supplies & Services,Services,Child Minding Fees,,27/09/2023,29/09/2023,50,,REDACTED PERSONAL DATA
Standards,Early Years,Children & Young People,Flying Start Grant,Supplies & Services,"Printing, Stationery and General Office Expenses",Book Purchases,,27/09/2023,29/09/2023,17,,Signalong Ltd
Standards,Early Years,Children & Young People,Flying Start Grant,Supplies & Services,"Printing, Stationery and General Office Expenses",Book Purchases,,27/09/2023,29/09/2023,390,,Signalong Ltd
Schools Total,School Group 2 � Pupil Capacity 144-314,MCC Schools,Goytre Fawr Primary School,Supplies & Services,Services,Professional And Specialist Fees,,04/09/2023,06/09/2023,200,,Upbeat Music And Arts Service Ltd
Schools Total,School Group 7 � Pupil Capacity 501-1800,MCC Schools,Caldicot School,Transport,Contract Hire and Operating Leases,Vehicle Hire Charge,,24/08/2023,07/09/2023,-100,,Lex Autolease Ltd
Capital Division,Capital Dept,Capital,Capital Programme,Transport,Direct Transport Costs,Acquisition,,17/08/2023,12/09/2023,60599,,Euro Commercials (South Wales) L
Capital Division,Capital Dept,Capital,Capital Programme,Transport,Direct Transport Costs,Acquisition,,17/08/2023,12/09/2023,60599,,Euro Commercials (South Wales) L
Schools Total,School Group 7 � Pupil Capacity 501-1800,MCC Schools,Monmouth Comprehensive,Supplies & Services,Services,Residential Trips,,15/09/2023,21/09/2023,4.16,,FR Monkhouse Ltd
Schools Total,School Group 7 � Pupil Capacity 501-1800,MCC Schools,Monmouth Comprehensive,Supplies & Services,Services,Residential Trips,,15/09/2023,21/09/2023,160,,FR Monkhouse Ltd
Schools Total,School Group 2 � Pupil Capacity 144-314,MCC Schools,Cross Ash Primary School,Employees,Direct Employee Expenses,Agency Staff,,03/09/2023,08/09/2023,41.82,,New Directions Education Ltd
Schools Total,School Group 7 � Pupil Capacity 501-1800,MCC Schools,King Henry VIII Comprehensive,Employees,Direct Employee Expenses,Agency Staff,,03/09/2023,08/09/2023,217.95,,New Directions Education Ltd
Schools Total,School Group 7 � Pupil Capacity 501-1800,MCC Schools,Monmouth Comprehensive,Employees,Direct Employee Expenses,Agency Staff,,06/09/2023,15/09/2023,-125.94,,TeacherActive
Adult Services,Community Care Team,Social Care and Health,Abergavenny Adult Team,Third Party Payments,Third Party,Personal Care.,,19/09/2023,25/09/2023,3541.66,,Radis Community Care
Adult Services,Community Care Team,Social Care and Health,Abergavenny Adult Team,Third Party Payments,Third Party,Personal Care.,,19/09/2023,25/09/2023,1812.54,,Radis Community Care
Adult Services,Community Care Team,Social Care and Health,Abergavenny Adult Team,Third Party Payments,Third Party,Personal Care.,,19/09/2023,25/09/2023,1585.95,,Radis Community Care
"Commercial, Corporate & landlord Services",Property Services & Facilities Management,Resources,Reactive Maintenance,Premises,"Repairs, Alterations & Maintenance of Buildings",Building Improvements / Maintenance,,14/09/2023,21/09/2023,59.03,,A.J Quinn Building Contractors Ltd
"Commercial, Corporate & landlord Services",Property Services & Facilities Management,Resources,Reactive Maintenance,Premises,"Repairs, Alterations & Maintenance of Buildings",Building Improvements / Maintenance,,14/09/2023,21/09/2023,59.03,,A.J Quinn Building Contractors Ltd
"Commercial, Corporate & landlord Services",Property Services & Facilities Management,Resources,Reactive Maintenance,Premises,"Repairs, Alterations & Maintenance of Buildings",Building Improvements / Maintenance,,14/09/2023,21/09/2023,46,,A.J Quinn Building Contractors Ltd
"Commercial, Corporate & landlord Services",Property Services & Facilities Management,Resources,Reactive Maintenance,Premises,"Repairs, Alterations & Maintenance of Buildings",Building Improvements / Maintenance,,14/09/2023,21/09/2023,23,,A.J Quinn Building Contractors Ltd
Schools Total,Schools,MCC Schools,Pupil Referral Unit,Supplies & Services,"Equipment, Furniture and Materials",Equipment Purchases,,19/09/2023,21/09/2023,225.25,,ESPO
Standards,Early Years,Children & Young People,Flying Start Grant,Supplies & Services,Communications and Computing,Telephone,,18/09/2023,21/09/2023,701.92,,SRS Public
Adult Services,Community Care Team,Social Care and Health,Abergavenny Adult Team,Third Party Payments,Third Party,Personal Care.,,11/09/2023,29/09/2023,3900,,Gibraltar Care Village Limited t/a PSP Healthcare Limited
Schools Total,School Group 7 � Pupil Capacity 501-1800,MCC Schools,King Henry 3-19 School,Supplies & Services,"Equipment, Furniture and Materials",Health & Safety Equipment.,,18/09/2023,26/09/2023,12.41,,Amazon Payments UK Limited
"Commercial, Corporate & landlord Services",Property Services & Facilities Management,Resources,Reactive Maintenance,Premises,"Repairs, Alterations & Maintenance of Buildings",Building Improvements / Maintenance,,07/09/2023,21/09/2023,53.84,,A.J Quinn Building Contractors Ltd
Adult Services,Community Care Team,Social Care and Health,Abergavenny Adult Team,Third Party Payments,Third Party,Personal Care.,,19/09/2023,25/09/2023,481,,Radis Community Care
Adult Services,Community Care Team,Social Care and Health,Abergavenny Adult Team,Third Party Payments,Third Party,Personal Care.,,19/09/2023,25/09/2023,3782.44,,Radis Community Care
Adult Services,Community Care Team,Social Care and Health,Abergavenny Adult Team,Third Party Payments,Third Party,Personal Care.,,19/09/2023,25/09/2023,259,,Radis Community Care
Adult Services,Community Care Team,Social Care and Health,Abergavenny Adult Team,Third Party Payments,Third Party,Personal Care.,,19/09/2023,25/09/2023,527.24,,Radis Community Care
Schools Total,School Group 2 � Pupil Capacity 144-314,MCC Schools,Dewstow Primary School,Employees,Direct Employee Expenses,Agency Staff,,20/09/2023,25/09/2023,3227.41,,Teaching Personnel
"Commercial, Corporate & landlord Services",Property Services & Facilities Management,Resources,External Clients,Premises,"Repairs, Alterations & Maintenance of Buildings",Building Improvements / Maintenance,,01/09/2023,21/09/2023,245,,Hightech Water Services
"Commercial, Corporate & landlord Services",Property Services & Facilities Management,Resources,External Clients,Premises,"Repairs, Alterations & Maintenance of Buildings",Building Improvements / Maintenance,,11/05/2023,21/09/2023,325,,Hightech Water Services
Schools Total,School Group 2 � Pupil Capacity 144-314,MCC Schools,St Mary�s RC Primary School (VA),Supplies & Services,Communications and Computing,Telephone - Call Charges,,10/08/2023,06/09/2023,60,,Solutions In Technology (IT) Ltd
Schools Total,School Group 2 � Pupil Capacity 144-314,MCC Schools,Raglan CiW Primary School (VC),Employees,Direct Employee Expenses,Agency Staff,,25/07/2023,08/09/2023,218.88,,TeacherActive
Schools Total,School Group 2 � Pupil Capacity 144-314,MCC Schools,Raglan CiW Primary School (VC),Employees,Direct Employee Expenses,Agency Staff,,23/07/2023,08/09/2023,1037.8,,New Directions Education Ltd
"Commercial, Corporate & landlord Services",Property Services & Facilities Management,Resources,Facilities,Supplies & Services,"Equipment, Furniture and Materials",Equipment Purchases,,22/09/2023,29/09/2023,6,,Newport Locksmiths Ltd
"Commercial, Corporate & landlord Services",Property Services & Facilities Management,Resources,Facilities,Supplies & Services,"Equipment, Furniture and Materials",Equipment Purchases,,22/09/2023,29/09/2023,12,,Newport Locksmiths Ltd
"Commercial, Corporate & landlord Services",Property Services & Facilities Management,Resources,Facilities,Supplies & Services,"Equipment, Furniture and Materials",Equipment Purchases,,22/09/2023,29/09/2023,7,,Newport Locksmiths Ltd
Schools Total,School Group 2 � Pupil Capacity 144-314,MCC Schools,Pembroke Primary School,Employees,Direct Employee Expenses,Agency Staff,,26/07/2023,18/09/2023,2938.69,,Teaching 4 Wales Ltd
Schools Total,SCHGRP3 � School Group 3 � Pupil Capacity 315-500,MCC Schools,The Dell Primary School,Supplies & Services,Communications and Computing,Leased Line Rental,,14/08/2023,22/09/2023,109.99,,General Communications
"Commercial, Corporate & landlord Services",Property Services & Facilities Management,Resources,Reactive Maintenance,Premises,"Repairs, Alterations & Maintenance of Buildings",Building Improvements / Maintenance,,07/09/2023,18/09/2023,75.02,,A.J Quinn Building Contractors Ltd
Adult Services,Community Care Team,Social Care and Health,Monmouth Adult Team,Third Party Payments,Third Party,Personal Care.,,02/09/2023,18/09/2023,1450,,Helping Hands
"Facilities, Fleet & Decarbonisation",Home to School Transport Dept,Communities & Place,School Transport � External,Transport,Contract Hire and Operating Leases,PTU Vehicle Contracts,,13/09/2023,14/09/2023,4723.43,,K & M Taxis Executive Hire Ltd
"Facilities, Fleet & Decarbonisation",Home to School Transport Dept,Communities & Place,School Transport � External,Transport,Contract Hire and Operating Leases,PTU Vehicle Contracts,,13/09/2023,14/09/2023,11023.11,,K & M Taxis Executive Hire Ltd
"Facilities, Fleet & Decarbonisation",Home to School Transport Dept,Communities & Place,School Transport � External,Transport,Contract Hire and Operating Leases,PTU Vehicle Contracts,,13/09/2023,14/09/2023,2992.34,,K & M Taxis Executive Hire Ltd
"Facilities, Fleet & Decarbonisation",Home to School Transport Dept,Communities & Place,School Transport � External,Transport,Contract Hire and Operating Leases,PTU Vehicle Contracts,,13/09/2023,14/09/2023,1433.25,,REDACTED PERSONAL DATA
"Facilities, Fleet & Decarbonisation",Home to School Transport Dept,Communities & Place,School Transport � External,Transport,Contract Hire and Operating Leases,PTU Vehicle Contracts,,13/09/2023,14/09/2023,2205,,Magor taxis
"Facilities, Fleet & Decarbonisation",Home to School Transport Dept,Communities & Place,School Transport � External,Transport,Contract Hire and Operating Leases,PTU Vehicle Contracts,,13/09/2023,14/09/2023,1653.75,,Murrays Minibus Hire
"Facilities, Fleet & Decarbonisation",Home to School Transport Dept,Communities & Place,School Transport � External,Transport,Contract Hire and Operating Leases,PTU Vehicle Contracts,,13/09/2023,14/09/2023,5906.25,,Murrays Minibus Hire
"Facilities, Fleet & Decarbonisation",Home to School Transport Dept,Communities & Place,School Transport � External,Transport,Contract Hire and Operating Leases,PTU Vehicle Contracts,,13/09/2023,14/09/2023,7134.75,,Murrays Minibus Hire
"Facilities, Fleet & Decarbonisation",Home to School Transport Dept,Communities & Place,School Transport � External,Transport,Contract Hire and Operating Leases,PTU Vehicle Contracts,,13/09/2023,14/09/2023,4000.5,,Murrays Minibus Hire
"Facilities, Fleet & Decarbonisation",Home to School Transport Dept,Communities & Place,SEN Post 16 Travel,Transport,Contract Hire and Operating Leases,PTU Vehicle Contracts,,13/09/2023,14/09/2023,10742.5,,Maniver Hussain Ali LTD
Individual School Budget,Individual Schools Budget,Children & Young People,ISB Primary Schools,Transport,Contract Hire and Operating Leases,PTU Vehicle Contracts,,13/09/2023,14/09/2023,1386,,Gwent Travel Solutions Ltd
"Facilities, Fleet & Decarbonisation",Home to School Transport Dept,Communities & Place,School Transport � External,Transport,Contract Hire and Operating Leases,PTU Vehicle Contracts,,13/09/2023,14/09/2023,2189.25,,Zahid Limited
"Facilities, Fleet & Decarbonisation",Home to School Transport Dept,Communities & Place,School Transport � External,Transport,Contract Hire and Operating Leases,PTU Vehicle Contracts,,13/09/2023,14/09/2023,22081.5,,Zahid Limited
"Facilities, Fleet & Decarbonisation",Home to School Transport Dept,Communities & Place,School Transport � External,Transport,Contract Hire and Operating Leases,PTU Vehicle Contracts,,13/09/2023,14/09/2023,1968.75,,REDACTED PERSONAL DATA
"Facilities, Fleet & Decarbonisation",Home to School Transport Dept,Communities & Place,School Transport � External,Transport,Contract Hire and Operating Leases,PTU Vehicle Contracts,,13/09/2023,14/09/2023,1968.75,,REDACTED PERSONAL DATA
"Facilities, Fleet & Decarbonisation",Home to School Transport Dept,Communities & Place,School Transport � External,Transport,Contract Hire and Operating Leases,PTU Vehicle Contracts,,13/09/2023,14/09/2023,1574.21,,Ed's Taxis
"Facilities, Fleet & Decarbonisation",Home to School Transport Dept,Communities & Place,School Transport � External,Transport,Contract Hire and Operating Leases,PTU Vehicle Contracts,,13/09/2023,14/09/2023,935,,Queenie's Private Hire
"Facilities, Fleet & Decarbonisation",Home to School Transport Dept,Communities & Place,School Transport � External,Transport,Contract Hire and Operating Leases,PTU Vehicle Contracts,,13/09/2023,14/09/2023,1512,,Veezu Ltd
"Facilities, Fleet & Decarbonisation",Home to School Transport Dept,Communities & Place,School Transport � External,Transport,Contract Hire and Operating Leases,PTU Vehicle Contracts,,13/09/2023,14/09/2023,7204.7,,REDACTED PERSONAL DATA
"Facilities, Fleet & Decarbonisation",Home to School Transport Dept,Communities & Place,School Transport � External,Transport,Contract Hire and Operating Leases,PTU Vehicle Contracts,,13/09/2023,14/09/2023,3858.75,,Newport Transport Ltd
"Facilities, Fleet & Decarbonisation",Home to School Transport Dept,Communities & Place,School Transport � External,Transport,Contract Hire and Operating Leases,PTU Vehicle Contracts,,13/09/2023,14/09/2023,7344.17,,S R Transport
"Facilities, Fleet & Decarbonisation",Home to School Transport Dept,Communities & Place,School Transport � External,Transport,Contract Hire and Operating Leases,PTU Vehicle Contracts,,13/09/2023,14/09/2023,1413.09,,Tiger Taxis
"Facilities, Fleet & Decarbonisation",Home to School Transport Dept,Communities & Place,School Transport � External,Transport,Contract Hire and Operating Leases,PTU Vehicle Contracts,,13/09/2023,14/09/2023,2205,,REDACTED PERSONAL DATA
"Facilities, Fleet & Decarbonisation",Home to School Transport Dept,Communities & Place,School Transport � External,Transport,Contract Hire and Operating Leases,PTU Vehicle Contracts,,13/09/2023,14/09/2023,2681.75,,Ace Taxis & Minibus
"Facilities, Fleet & Decarbonisation",Home to School Transport Dept,Communities & Place,School Transport � External,Transport,Contract Hire and Operating Leases,PTU Vehicle Contracts,,13/09/2023,14/09/2023,2584.1,,REDACTED PERSONAL DATA
Schools Total,School Group 2 � Pupil Capacity 144-314,MCC Schools,Thornwell Primary School,Supplies & Services,"Equipment, Furniture and Materials",Cleaning Materials.,,15/08/2023,26/09/2023,15.82,,Amazon Payments UK Limited
Adult Services,Direct Care Residential,Social Care and Health,Severn View Residential,Supplies & Services,"Equipment, Furniture and Materials",Provisions.,,05/09/2023,18/09/2023,336.22,,Castell Howell Foods Ltd
Adult Services,Direct Care Residential,Social Care and Health,Severn View Residential,Supplies & Services,"Equipment, Furniture and Materials",Provisions.,,05/09/2023,18/09/2023,321.5,,Castell Howell Foods Ltd
Adult Services,Direct Care Residential,Social Care and Health,Severn View Residential,Supplies & Services,"Equipment, Furniture and Materials",Provisions.,,05/09/2023,18/09/2023,-321.5,,Castell Howell Foods Ltd
Adult Services,Direct Care Residential,Social Care and Health,Severn View Residential,Supplies & Services,"Equipment, Furniture and Materials",Provisions.,,07/09/2023,18/09/2023,412.84,,Castell Howell Foods Ltd
Adult Services,Direct Care Residential,Social Care and Health,Severn View Residential,Supplies & Services,"Equipment, Furniture and Materials",Provisions.,,07/09/2023,18/09/2023,363.58,,Castell Howell Foods Ltd
Adult Services,Direct Care Residential,Social Care and Health,Severn View Residential,Supplies & Services,"Equipment, Furniture and Materials",Provisions.,,07/09/2023,18/09/2023,-363.58,,Castell Howell Foods Ltd
Adult Services,Direct Care Residential,Social Care and Health,Severn View Residential,Supplies & Services,"Equipment, Furniture and Materials",Provisions.,,12/09/2023,18/09/2023,473.18,,Castell Howell Foods Ltd
Adult Services,ADULT DISABILITY SERVICES,Social Care and Health,CLDT,Third Party Payments,Third Party,Personal Care.,,05/09/2023,21/09/2023,3822.42,,The National Autistic Society
Adult Services,ADULT DISABILITY SERVICES,Social Care and Health,CLDT,Third Party Payments,Third Party,Personal Care.,,05/09/2023,21/09/2023,301.65,,The National Autistic Society
Adult Services,Community Care Team,Social Care and Health,Mental Health Care Team,Third Party Payments,Third Party,Personal Care.,,05/09/2023,21/09/2023,454.68,,The National Autistic Society
Adult Services,Community Care Team,Social Care and Health,Mental Health Care Team,Third Party Payments,Third Party,Personal Care.,,05/09/2023,21/09/2023,756.9,,The National Autistic Society
Neighbourhood Services,Highways,Communities & Place,Task Orders,Supplies & Services,"Equipment, Furniture and Materials",Materials & Consumables.,,22/08/2023,19/09/2023,469.2,,Hill & Smith Limited
Adult Services,ADULT DISABILITY SERVICES,Social Care and Health,CLDT,Third Party Payments,Third Party,Personal Care.,,05/09/2023,21/09/2023,70,,The National Autistic Society
Adult Services,ADULT DISABILITY SERVICES,Social Care and Health,CLDT,Third Party Payments,Third Party,Personal Care.,,07/09/2023,21/09/2023,8994.73,,The National Autistic Society
Adult Services,ADULT DISABILITY SERVICES,Social Care and Health,CLDT,Third Party Payments,Third Party,Personal Care.,,07/09/2023,21/09/2023,2217.7,,The National Autistic Society
Adult Services,Community Care Team,Social Care and Health,Mental Health Care Team,Third Party Payments,Third Party,Personal Care.,,05/09/2023,21/09/2023,583.22,,The National Autistic Society
Adult Services,ADULT DISABILITY SERVICES,Social Care and Health,CLDT,Third Party Payments,Third Party,Personal Care.,,07/09/2023,21/09/2023,11433.15,,The National Autistic Society
Adult Services,Community Care Team,Social Care and Health,Mental Health Care Team,Third Party Payments,Third Party,Personal Care.,,19/09/2023,25/09/2023,494.73,,Radis Community Care
Adult Services,ADULT DISABILITY SERVICES,Social Care and Health,CLDT,Third Party Payments,Third Party,Personal Care.,,07/09/2023,21/09/2023,5717.55,,The National Autistic Society
Adult Services,Community Care Team,Social Care and Health,Mental Health Care Team,Third Party Payments,Third Party,Personal Care.,,04/09/2023,07/09/2023,1419.3,,Lougher Home Care Ltd
Adult Services,Community Care Team,Social Care and Health,Mental Health Care Team,Third Party Payments,Third Party,Personal Care.,,07/08/2023,18/09/2023,7644.16,,Pobl Care & Support
Schools Total,School Group 2 � Pupil Capacity 144-314,MCC Schools,Thornwell Primary School,Premises,Cleaning and Domestic Supplies,Toilet Requisites,,14/09/2023,26/09/2023,19.87,,Amazon Payments UK Limited
Children Services,Children Services Other,Social Care and Health,External Placements - CLA,Third Party Payments,Third Party,Residential.,,04/09/2023,19/09/2023,21478.57,,SICS Gofal Cymru CYF
Adult Services,ADULT DISABILITY SERVICES,Social Care and Health,CLDT,Third Party Payments,Third Party,Personal Care.,,14/09/2023,29/09/2023,4422.08,,Grove Care Partnership Limited (Consensus)
Adult Services,ADULT DISABILITY SERVICES,Social Care and Health,CLDT,Third Party Payments,Third Party,Personal Care.,,14/09/2023,29/09/2023,4422.08,,Grove Care Partnership Limited (Consensus)
Adult Services,ADULT DISABILITY SERVICES,Social Care and Health,CLDT,Third Party Payments,Third Party,Personal Care.,,14/09/2023,29/09/2023,7738.68,,Grove Care Partnership Limited (Consensus)
Adult Services,ADULT DISABILITY SERVICES,Social Care and Health,CLDT,Third Party Payments,Third Party,Personal Care.,,14/09/2023,29/09/2023,4974.84,,Grove Care Partnership Limited (Consensus)
Adult Services,ADULT DISABILITY SERVICES,Social Care and Health,CLDT,Third Party Payments,Third Party,Personal Care.,,08/09/2023,29/09/2023,7439.06,,React Support Services Ltd
Adult Services,Community Care Team,Social Care and Health,Mental Health Care Team,Third Party Payments,Third Party,Personal Care.,,04/09/2023,21/09/2023,4819.44,,Pobl Care & Support
Adult Services,Community Care Team,Social Care and Health,Mental Health Care Team,Third Party Payments,Third Party,Personal Care.,,04/09/2023,21/09/2023,2190.8,,Pobl Care & Support
Adult Services,ADULT DISABILITY SERVICES,Social Care and Health,CLDT,Third Party Payments,Third Party,Personal Care.,,31/08/2023,21/09/2023,554.52,,Pobl Care & Support
